Workbook

Sheet HOME
B2: ADATBEVITEL | I2: PÁLYAGÖRBE | V2: HODOGRÁF
AK3: 240 | AM3: 240 | AN3: TRUE | AO3: TRUE | AP3: TRUE
AK4: 180 | AM4: 180 | AN4: TRUE | AO4: TRUE | AP4: TRUE
R5: 2 | AK5: 50 | AM5: 50 | AN5: TRUE | AO5: TRUE | AP5: TRUE
AJ6: 10 | AK6: =AJ6*0.1 -> 1 | AL6: 4 | AM6: =AL6*0.1 -> 0.4 | AN6: TRUE | AO6: TRUE | AP6: TRUE
AJ7: 10 | AK7: =(AJ7-10)*-1 -> 0 | AL7: 10 | AM7: =(AL7-10)*-1 -> 0 | AN7: TRUE | AO7: TRUE | AP7: TRUE
C8: x irányú vetület | AJ8: 10 | AK8: =AJ8-10 -> 0 | AL8: 10 | AM8: =AL8-10 -> 0 | AN8: TRUE | AO8: TRUE | AP8: TRUE
C9: *t0 | D9: *t1 | E9: *t2 | F9: *t3 | G9: *t4 | AN9: TRUE | AO9: TRUE | AP9: TRUE
B10: fx(t) | AN10: TRUE
B11: gx(t) | C11: 3
B12: αx(t) | D12: 5 | AJ12: axonometrikus | AL12: axonometrikus
B13: hx(t) | C13: 0 | AJ13: perspektívikus
B14: βx(t) | D14: 5
C15: y irányú vetület
C16: *t0 | D16: *t1 | E16: *t2 | F16: *t3 | G16: *t4
B17: fy(t)
B18: gy(t) | C18: 4
B19: αy(t) | D19: 5
B20: hy(t) | C20: 1
B21: βy(t) | D21: 5
C22: z irányú vetület
C23: *t0 | D23: *t1 | E23: *t2 | F23: *t3 | G23: *t4
B24: fz(t)
B25: gz(t) | C25: 0
B26: αz(t) | D26: 5
B27: hz(t) | C27: 2
B28: βz(t) | D28: 5
B30: t0 | C30: 0 | D30: sec
B31: dt | C31: 0.01 | D31: sec
B33: idő: | C33: 0 | D33: sec
B35: eredmények: | D35: x | E35: y | F35: z
B36: helyvektor | D36: =CALC!C15 -> 3 | E36: =CALC!D15 -> 4 | F36: =CALC!E15 -> 0
B37: sebességvektor | D37: =CALC!F15 -> 0 | E37: =CALC!G15 -> 5 | F37: =CALC!H15 -> 10
B38: gyorsulásvektor | D38: =CALC!I15 -> -75 | E38: =CALC!J15 -> -100 | F38: =CALC!K15 -> 0 | V38: tengelyek mérete | X38: 5 | Z38: síkok mérete | AB38: 5
B39: érintő | D39: =CALC!AB15 -> 0 | E39: =CALC!AC15 -> 0.4472135955 | F39: =CALC!AD15 -> 0.894427191
B40: főnormális | D40: =CALC!AH15 -> -0.6425294053 | E40: =CALC!AI15 -> -0.685364699 | F40: =CALC!AJ15 -> 0.3426823495
B41: binormális | D41: =CALC!AE15 -> 0.7662610282 | E41: =CALC!AF15 -> -0.5746957711 | F41: =CALC!AG15 -> 0.2873478856 | Q41: megjelenítési mód:
B43: görbületi sugár | D43: =CALC!AC69 -> 1.070882342 | S43: mérete:
B44: előre definiált görbék: | Q44: DKR tengelyek | S44: 5
Q45: DKR síkok | S45: 5
Q46: TKR tengelyek | S46: 1
Q47: TKR síkok | S47: 1
Q48: sebességvektor | S48: 0.7
Q49: gyorsulásvektor | S49: 1

Sheet CALC
A1: 1 | B1: 2 | C1: 3 | D1: 4 | E1: 5 | F1: 6 | G1: 7 | H1: 8 | I1: 9 | J1: 10 | K1: 11 | L1: 12 | M1: 13 | N1: 14 | O1: 15 | P1: 16 | Q1: 17 | R1: 18 | S1: 19 | T1: 20 | U1: 21 | V1: 22 | W1: 23 | X1: 24
A2: 2 | B2: 0 | C2: x | D2: y | E2: z | F2: x | G2: y | H2: z | I2: x | J2: y | K2: z | L2: x | M2: y | N2: z | O2: x | P2: y | Q2: z | R2: t0 | S2: =HOME!C30 -> 0
A3: 3 | B3: =HOME!C33 -> 0 | C3: t0 | D3: t0 | E3: t0 | F3: t1 | G3: t1 | H3: t1 | I3: t2 | J3: t2 | K3: t2 | L3: t3 | M3: t3 | N3: t3 | O3: t4 | P3: t4 | Q3: t4 | R3: dt | S3: =HOME!C31 -> 0.01 | T3: a1 | U3: =HOME!AK3 -> 240 | V3: =HOME!AM3 -> 240 | W3: axis_l | X3: =HOME!S44 -> 5 | Y3: =HOME!X38 -> 5 | AA3: x | AB3: =IF(HOME!AN3=TRUE,1,0) -> 1 | AC3: y | AD3: =IF(HOME!AO3=TRUE,1,0) -> 1 | AE3: z | AF3: =IF(HOME!AP3=TRUE,1,0) -> 1 | AG3: vetítő | AH3: =IF(HOME!AN9=TRUE,1,0) -> 1 | AJ3: belső nézet:
A4: 4 | B4: f0 | C4: =HOME!C10 -> 0 | D4: =HOME!C17 -> 0 | E4: =HOME!C24 -> 0 | F4: =HOME!D10 -> 0 | G4: =HOME!D17 -> 0 | H4: =HOME!D24 -> 0 | I4: =HOME!E10 -> 0 | J4: =HOME!E17 -> 0 | K4: =HOME!E24 -> 0 | L4: =HOME!F10 -> 0 | M4: =HOME!F17 -> 0 | N4: =HOME!F24 -> 0 | O4: =HOME!G10 -> 0 | P4: =HOME!G17 -> 0 | Q4: =HOME!G24 -> 0 | T4: a2 | U4: =HOME!AK4 -> 180 | V4: =HOME!AM4 -> 180 | W4: zoom | X4: =HOME!AK6 -> 1 | Y4: =HOME!AM6 -> 0.4 | AA4: tpont | AB4: =IF(HOME!AN4=TRUE,1,0) -> 1 | AC4: görbe | AD4: =IF(HOME!AO4=TRUE,1,0) -> 1 | AE4: helyvekt | AF4: =IF(HOME!AP4=TRUE,1,0) -> 1 | AG4: ae | AH4: =IF(AL15=0,0,IF(HOME!AO9=TRUE,1,0)) -> 1 | AJ4: 0
A5: 5 | B5: g(t) | C5: =HOME!C11 -> 3 | D5: =HOME!C18 -> 4 | E5: =HOME!C25 -> 0 | F5: =HOME!D11 -> 0 | G5: =HOME!D18 -> 0 | H5: =HOME!D25 -> 0 | I5: =HOME!E11 -> 0 | J5: =HOME!E18 -> 0 | K5: =HOME!E25 -> 0 | L5: =HOME!F11 -> 0 | M5: =HOME!F18 -> 0 | N5: =HOME!F25 -> 0 | O5: =HOME!G11 -> 0 | P5: =HOME!G18 -> 0 | Q5: =HOME!G25 -> 0 | R5: 2 | T5: a3 | U5: =HOME!AK5 -> 50 | V5: =HOME!AM5 -> 50 | W5: move_x | X5: =HOME!AK7 -> 0 | Y5: =HOME!AM7 -> 0 | AA5: érintő | AB5: =IF(AL15=0,0,IF(HOME!AN5=TRUE,1,0)) -> 1 | AC5: binormális | AD5: =IF(AL15=0,0,IF(HOME!AO5=TRUE,1,0)) -> 1 | AE5: főnormális | AF5: =IF(AL15=0,0,IF(HOME!AP5=TRUE,1,0)) -> 1 | AG5: an | AH5: =IF(AL15=0,0,IF(HOME!AP9=TRUE,1,0)) -> 1
A6: 6 | B6: α(t) | C6: =HOME!C12 -> 0 | D6: =HOME!C19 -> 0 | E6: =HOME!C26 -> 0 | F6: =HOME!D12 -> 5 | G6: =HOME!D19 -> 5 | H6: =HOME!D26 -> 5 | I6: =HOME!E12 -> 0 | J6: =HOME!E19 -> 0 | K6: =HOME!E26 -> 0 | L6: =HOME!F12 -> 0 | M6: =HOME!F19 -> 0 | N6: =HOME!F26 -> 0 | O6: =HOME!G12 -> 0 | P6: =HOME!G19 -> 0 | Q6: =HOME!G26 -> 0 | T6: ES | U6: 5 | W6: move_y | X6: =HOME!AK8 -> 0 | Y6: =HOME!AM8 -> 0 | AA6: sebvekt | AB6: =IF(HOME!AN6=TRUE,1,0) -> 1 | AC6: gyorsvekt | AD6: =IF(HOME!AO6=TRUE,1,0) -> 1 | AE6: simulókör | AF6: =IF(HOME!AP6=TRUE,1,0) -> 1 | AG6: a_vetítő | AH6: =IF(AL15=0,0,IF(HOME!AN10=TRUE,1,0)) -> 1
A7: 7 | B7: h(t) | C7: =HOME!C13 -> 0 | D7: =HOME!C20 -> 1 | E7: =HOME!C27 -> 2 | F7: =HOME!D13 -> 0 | G7: =HOME!D20 -> 0 | H7: =HOME!D27 -> 0 | I7: =HOME!E13 -> 0 | J7: =HOME!E20 -> 0 | K7: =HOME!E27 -> 0 | L7: =HOME!F13 -> 0 | M7: =HOME!F20 -> 0 | N7: =HOME!F27 -> 0 | O7: =HOME!G13 -> 0 | P7: =HOME!G20 -> 0 | Q7: =HOME!G27 -> 0 | T7: SO | U7: 4 | AA7: z | AB7: =IF(HOME!AN7=TRUE,1,0) -> 1 | AC7: y | AD7: =IF(HOME!AO7=TRUE,1,0) -> 1 | AE7: x | AF7: =IF(HOME!AP7=TRUE,1,0) -> 1
A8: 8 | B8: β(t) | C8: =HOME!C14 -> 0 | D8: =HOME!C21 -> 0 | E8: =HOME!C28 -> 0 | F8: =HOME!D14 -> 5 | G8: =HOME!D21 -> 5 | H8: =HOME!D28 -> 5 | I8: =HOME!E14 -> 0 | J8: =HOME!E21 -> 0 | K8: =HOME!E28 -> 0 | L8: =HOME!F14 -> 0 | M8: =HOME!F21 -> 0 | N8: =HOME!F28 -> 0 | O8: =HOME!G14 -> 0 | P8: =HOME!G21 -> 0 | Q8: =HOME!G28 -> 0 | T8: ax:1p:2 | U8: =IF(HOME!AL12="axonometrikus",1,2) -> 1 | AA8: b | AB8: =IF(HOME!AN8=TRUE,1,0) -> 1 | AC8: n | AD8: =IF(HOME!AO8=TRUE,1,0) -> 1 | AE8: e | AF8: =IF(HOME!AP8=TRUE,1,0) -> 1
A9: 9 | B9: 4*OZ4*ZB15^3+3*LZ4*ZB15^2+2*IZ4*ZB15+FZ4
A10: 10 | C10: 1 | D10: 0 | E10: 0 | G10: =COS(U4*PI()/180) -> -1 | H10: 0 | I10: =-1*SIN(U4*PI()/180) -> -1.225148455e-16 | K10: =COS(U5*PI()/180) -> 0.6427876097 | L10: =-1*SIN(U5*PI()/180) -> -0.7660444431 | M10: 0 | O10: =MMULT(G10:I12,MMULT(C10:E12,K10:M12)) -> -0.6427876097 | P10: 0.7660444431 | Q10: 6.125742275e-17 | S10: 1 | T10: 0 | U10: 0 | W10: =COS(V4*PI()/180) -> -1 | X10: 0 | Y10: =-1*SIN(V4*PI()/180) -> -1.225148455e-16 | AA10: =COS(V5*PI()/180) -> 0.6427876097 | AB10: =-1*SIN(V5*PI()/180) -> -0.7660444431 | AC10: 0 | AE10: =MMULT(W10:Y12,MMULT(S10:U12,AA10:AC12)) -> -0.6427876097 | AF10: 0.7660444431 | AG10: 6.125742275e-17
A11: 11 | B11: Rx= | C11: 0 | D11: =COS(U3*PI()/180) -> -0.5 | E11: =-1*SIN(U3*PI()/180) -> 0.8660254038 | F11: Ry= | G11: 0 | H11: 1 | I11: 0 | J11: Rz= | K11: =SIN(U5*PI()/180) -> 0.7660444431 | L11: =COS(U5*PI()/180) -> 0.6427876097 | M11: 0 | N11: R= | O11: -0.3830222216 | P11: -0.3213938048 | Q11: 0.8660254038 | R11: Rx= | S11: 0 | T11: =COS(V3*PI()/180) -> -0.5 | U11: =-1*SIN(V3*PI()/180) -> 0.8660254038 | V11: Ry= | W11: 0 | X11: 1 | Y11: 0 | Z11: Rz= | AA11: =SIN(V5*PI()/180) -> 0.7660444431 | AB11: =COS(V5*PI()/180) -> 0.6427876097 | AC11: 0 | AD11: R= | AE11: -0.3830222216 | AF11: -0.3213938048 | AG11: 0.8660254038
A12: 12 | C12: 0 | D12: =SIN(U3*PI()/180) -> -0.8660254038 | E12: =COS(U3*PI()/180) -> -0.5 | G12: =SIN(U4*PI()/180) -> 1.225148455e-16 | H12: 0 | I12: =COS(U4*PI()/180) -> -1 | K12: 0 | L12: 0 | M12: 1 | O12: 0.6634139482 | P12: 0.5566703992 | Q12: 0.5 | S12: 0 | T12: =SIN(V3*PI()/180) -> -0.8660254038 | U12: =COS(V3*PI()/180) -> -0.5 | W12: =SIN(V4*PI()/180) -> 1.225148455e-16 | X12: 0 | Y12: =COS(V4*PI()/180) -> -1 | AA12: 0 | AB12: 0 | AC12: 1 | AE12: 0.6634139482 | AF12: 0.5566703992 | AG12: 0.5
A13: 13 | C13: elmozdulás | F13: sebesség | I13: gyorsulás | L13: axonometrikus | O13: perspektívikus | Q13: axonometrikus | T13: perspektívikus | Y13: kísérő triéder
A14: 14 | B14: t | C14: rx | D14: ry | E14: rz | F14: vx | G14: vy | H14: vz | I14: ax | J14: a_y | K14: az | L14: x | M14: y | N14: z | O14: u | P14: v | Q14: vx | R14: vy | S14: vz | T14: u | U14: v | V14: báziscsere után | AB14: ex | AC14: e_y | AD14: ez | AE14: bx | AF14: by | AG14: bz | AH14: nx | AI14: ny | AJ14: nz
A15: 15 | B15: =B3 -> 0 | C15: =(C$4+F$4*$B15+I$4*$B15^2+L$4*$B15^3+O$4*$B15^4)+(C$5+F$5*$B15+I$5*$B15^2+L$5*$B15^3+O$5*$B15^4)*(COS(C$6+F$6*$B15+I$6*$B15^2+L$6*$B15^3+O$6*$B15^4))+(C$7+F$7*$B15+I$7*$B15^2+L$7*$B15^3+O$7*$B15^4)*(SIN(C$8+F$8*$B15+I$8*$B15^2+L$8*$B15^3+O$8*$B15^4)) -> 3 | D15: =(D$4+G$4*$B15+J$4*$B15^2+M$4*$B15^3+P$4*$B15^4)+(D$5+G$5*$B15+J$5*$B15^2+M$5*$B15^3+P$5*$B15^5)*(COS(D$6+G$6*$B15+J$6*$B15^2+M$6*$B15^3+P$6*$B15^4))+(D$7+G$7*$B15+J$7*$B15^2+M$7*$B15^3+P$7*$B15^4)*(SIN(D$8+G$8*$B15+J$8*$B15^2+M$8*$B15^3+P$8*$B15^4)) -> 4 | E15: =(E$4+H$4*$B15+K$4*$B15^2+N$4*$B15^3+Q$4*$B15^4)+(E$5+H$5*$B15+K$5*$B15^2+N$5*$B15^3+Q$5*$B15^5)*(COS(E$6+H$6*$B15+K$6*$B15^2+N$6*$B15^3+Q$6*$B15^4))+(E$7+H$7*$B15+K$7*$B15^2+N$7*$B15^3+Q$7*$B15^4)*(SIN(E$8+H$8*$B15+K$8*$B15^2+N$8*$B15^3+Q$8*$B15^4)) -> 0 | F15: =(F$7+2*I$7*$B15+3*L$7*$B15^2+4*O$7*$B15^3)*SIN(O$8*$B15^4+L$8*$B15^3+I$8*$B15^2+F$8*$B15+C$8)+(F$8+2*I$8*$B15+3*L$8*$B15^2+4*O$8*$B15^3)*(C$7+F$7*$B15+I$7*$B15^2+L$7*$B15^3+O$7*$B15^4)*COS(O$8*$B15^4+L$8*$B15^3+I$8*$B15^2+F$8*$B15+C$8)-(F$6+2*I$6*$B15+3*L$6*$B15^2+4*O$6*$B15^3)*(C$5+F$5*$B15+I$5*$B15^2+L$5*$B15^3+O$5*$B15^4)*SIN(O$6*$B15^4+L$6*$B15^3+I$6*$B15^2+F$6*$B15+C$6)+(F$5+2*I$5*$B15+3*L$5*$B15^2+4*O$5*$B15^3)*COS(O$6*$B15^4+L$6*$B15^3+I$6*$B15^2+F$6*$B15+C$6)+4*O$4*$B15^3+3*L$4*$B15^2+2*I$4*$B15+F$4 -> 0 | G15: =(G$7+2*J$7*$B15+3*M$7*$B15^2+4*P$7*$B15^3)*SIN(P$8*$B15^4+M$8*$B15^3+J$8*$B15^2+G$8*$B15+D$8)+(G$8+2*J$8*$B15+3*M$8*$B15^2+4*P$8*$B15^3)*(D$7+G$7*$B15+J$7*$B15^2+M$7*$B15^3+P$7*$B15^4)*COS(P$8*$B15^4+M$8*$B15^3+J$8*$B15^2+G$8*$B15+D$8)-(G$6+2*J$6*$B15+3*M$6*$B15^2+4*P$6*$B15^3)*(D$5+G$5*$B15+J$5*$B15^2+M$5*$B15^3+P$5*$B15^4)*SIN(P$6*$B15^4+M$6*$B15^3+J$6*$B15^2+G$6*$B15+D$6)+(G$5+2*J$5*$B15+3*M$5*$B15^2+4*P$5*$B15^3)*COS(P$6*$B15^4+M$6*$B15^3+J$6*$B15^2+G$6*$B15+D$6)+4*P$4*$B15^3+3*M$4*$B15^2+2*J$4*$B15+G$4 -> 5 | H15: 10 | I15: =-1*(F$8+2*I$8*$B15+3*L$8*$B15^2+4*O$8*$B15^3)^2*(C$7+F$7*$B15+I$7*$B15^2+L$7*$B15^3+O$7*$B15^4)*SIN(O$8*$B15^4+L$8*$B15^3+I$8*$B15^2+F$8*$B15+C$8)+(2*I$7+6*L$7*$B15+12*O$7*$B15^2)*SIN(O$8*$B15^4+L$8*$B15^3+I$8*$B15^2+F$8*$B15+C$8)+(2*I$8+6*L$8*$B15+12*O$8*$B15^2)*(C$7+F$7*$B15+I$7*$B15^2+L$7*$B15^3+O$7*$B15^4)*COS(O$8*$B15^4+L$8*$B15^3+I$8*$B15^2+F$8*$B15+C$8)+2*(F$7+2*I$7*$B15+3*L$7*$B15^2+4*O$7*$B15^3)*(F$8+2*I$8*$B15+3*L$8*$B15^2+4*O$8*$B15^3)*COS(O$8*$B15^4+L$8*$B15^3+I$8*$B15^2+F$8*$B15+C$8)-(2*I$6+6*L$6*$B15+12*O$6*$B15^2)*(C$5+F$5*$B15+I$5*$B15^2+L$5*$B15^3+O$5*$B15^4)*SIN(O$6*$B15^4+L$6*$B15^3+I$6*$B15^2+F$6*$B15+C$6)-2*(F$5+2*I$5*$B15+3*L$5*$B15^2+4*O$5*$B15^3)*(F$6+2*I$6*$B15+3*L$6*$B15^2+4*O$6*$B15^3)*SIN(O$6*$B15^4+L$6*$B15^3+I$6*$B15^2+F$6*$B15+C$6)-(F$6+2*I$6*$B15+3*L$6*$B15^2+4*O$6*$B15^3)^2*(C$5+F$5*$B15+I$5*$B15^2+L$5*$B15^3+O$5*$B15^4)*COS(O$6*$B15^4+L$6*$B15^3+I$6*$B15^2+F$6*$B15+C$6)+(2*I$5+6*L$5*$B15+12*O$5*$B15^2)*COS(O$6*$B15^4+L$6*$B15^3+I$6*$B15^2+F$6*$B15+C$6)+12*O$4*$B15^2+6*L$4*$B15+2*I$4 -> -75 | J15: =-1*(G$8+2*J$8*$B15+3*M$8*$B15^2+4*P$8*$B15^3)^2*(D$7+G$7*$B15+J$7*$B15^2+M$7*$B15^3+P$7*$B15^4)*SIN(P$8*$B15^4+M$8*$B15^3+J$8*$B15^2+G$8*$B15+D$8)+(2*J$7+6*M$7*$B15+12*P$7*$B15^2)*SIN(P$8*$B15^4+M$8*$B15^3+J$8*$B15^2+G$8*$B15+D$8)+(2*J$8+6*M$8*$B15+12*P$8*$B15^2)*(D$7+G$7*$B15+J$7*$B15^2+M$7*$B15^3+P$7*$B15^4)*COS(P$8*$B15^4+M$8*$B15^3+J$8*$B15^2+G$8*$B15+D$8)+2*(G$7+2*J$7*$B15+3*M$7*$B15^2+4*P$7*$B15^3)*(G$8+2*J$8*$B15+3*M$8*$B15^2+4*P$8*$B15^3)*COS(P$8*$B15^4+M$8*$B15^3+J$8*$B15^2+G$8*$B15+D$8)-(2*J$6+6*M$6*$B15+12*P$6*$B15^2)*(D$5+G$5*$B15+J$5*$B15^2+M$5*$B15^3+P$5*$B15^4)*SIN(P$6*$B15^4+M$6*$B15^3+J$6*$B15^2+G$6*$B15+D$6)-2*(G$5+2*J$5*$B15+3*M$5*$B15^2+4*P$5*$B15^3)*(G$6+2*J$6*$B15+3*M$6*$B15^2+4*P$6*$B15^3)*SIN(P$6*$B15^4+M$6*$B15^3+J$6*$B15^2+G$6*$B15+D$6)-(G$6+2*J$6*$B15+3*M$6*$B15^2+4*P$6*$B15^3)^2*(D$5+G$5*$B15+J$5*$B15^2+M$5*$B15^3+P$5*$B15^4)*COS(P$6*$B15^4+M$6*$B15^3+J$6*$B15^2+G$6*$B15+D$6)+(2*J$5+6*M$5*$B15+12*P$5*$B15^2)*COS(P$6*$B15^4+M$6*$B15^3+J$6*$B15^2+G$6*$B15+D$6)+12*P$4*$B15^2+6*M$4*$B15+2*J$4 -> -100 | K15: 0 | L15: =IF($AK$38=0,TRANSPOSE(MMULT($O$10:$Q$12,TRANSPOSE(C15:E15))),TRANSPOSE(MMULT($O$10:$Q$12,TRANSPOSE(Y15:AA15)))) -> 1.135814943 | M15: -2.434641884 | N15: 4.216923441 | O15: =$X$5+$X$4*IF($U$8=1,L15,(L15*$U$6)/($U$6+$U$7+M15)) -> 1.135814943 | P15: =$X$6+$X$4*IF($U$8=1,M15,(N15*$U$6)/($U$6+$U$7+M15)) -> -2.434641884 | Q15: =TRANSPOSE(MMULT($AE$10:$AG$12,TRANSPOSE(F15:H15))) -> 3.830222216 | R15: 7.053285014 | S15: 7.783351996 | T15: =$Y$5+$Y$4*IF($U$8=1,Q15,(Q15*$U$6)/($U$6+$U$7+R15)) -> 1.532088886 | U15: =$Y$6+$Y$4*IF($U$8=1,R15,(S15*$U$6)/($U$6+$U$7+R15)) -> 2.821314005 | V15: =TRANSPOSE(MMULT($AO$40:$AQ$42,TRANSPOSE(C15:E15))) -> 1.788854382 | W15: -3 | X15: -3.577708764 | Y15: =V15+$AL$46 -> 0 | Z15: =W15+$AL$47 -> 0 | AA15: =X15+$AL$48 -> 0 | AB15: =F15/($F$15^2+$G$15^2+$H$15^2)^0.5 -> 0 | AC15: =G15/($F$15^2+$G$15^2+$H$15^2)^0.5 -> 0.4472135955 | AD15: =H15/($F$15^2+$G$15^2+$H$15^2)^0.5 -> 0.894427191 | AE15: =(G15*K15-H15*J15)/((G15*K15-H15*J15)^2+(F15*K15-H15*I15)^2+(F15*J15-G15*I15)^2)^0.5 -> 0.7662610282 | AF15: =-1*(F15*K15-H15*I15)/((G15*K15-H15*J15)^2+(F15*K15-H15*I15)^2+(F15*J15-G15*I15)^2)^0.5 -> -0.5746957711 | AG15: =(F15*J15-G15*I15)/((G15*K15-H15*J15)^2+(F15*K15-H15*I15)^2+(F15*J15-G15*I15)^2)^0.5 -> 0.2873478856 | AH15: =AF15*AD15-AC15*AG15 -> -0.6425294053 | AI15: =-1*(AE15*AD15-AG15*AB15) -> -0.685364699 | AJ15: =AE15*AC15-AB15*AF15 -> 0.3426823495 | AK15: =SUM(AB15:AJ15) -> 0.8353421743 | AL15: =IF(ISNUMBER(AK15),1,0) -> 1
A16: 16 | B16: 0 | C16: =(C$4+F$4*$B16+I$4*$B16^2+L$4*$B16^3+O$4*$B16^4)+(C$5+F$5*$B16+I$5*$B16^2+L$5*$B16^3+O$5*$B16^5)*(COS(C$6+F$6*$B16+I$6*$B16^2+L$6*$B16^3+O$6*$B16^4))+(C$7+F$7*$B16+I$7*$B16^2+L$7*$B16^3+O$7*$B16^4)*(SIN(C$8+F$8*$B16+I$8*$B16^2+L$8*$B16^3+O$8*$B16^4)) -> 3 | D16: =(D$4+G$4*$B16+J$4*$B16^2+M$4*$B16^3+P$4*$B16^4)+(D$5+G$5*$B16+J$5*$B16^2+M$5*$B16^3+P$5*$B16^5)*(COS(D$6+G$6*$B16+J$6*$B16^2+M$6*$B16^3+P$6*$B16^4))+(D$7+G$7*$B16+J$7*$B16^2+M$7*$B16^3+P$7*$B16^4)*(SIN(D$8+G$8*$B16+J$8*$B16^2+M$8*$B16^3+P$8*$B16^4)) -> 4 | E16: 0 | F16: =(F$7+2*I$7*$B16+3*L$7*$B16^2+4*O$7*$B16^3)*SIN(O$8*$B16^4+L$8*$B16^3+I$8*$B16^2+F$8*$B16+C$8)+(F$8+2*I$8*$B16+3*L$8*$B16^2+4*O$8*$B16^3)*(C$7+F$7*$B16+I$7*$B16^2+L$7*$B16^3+O$7*$B16^4)*COS(O$8*$B16^4+L$8*$B16^3+I$8*$B16^2+F$8*$B16+C$8)-(F$6+2*I$6*$B16+3*L$6*$B16^2+4*O$6*$B16^3)*(C$5+F$5*$B16+I$5*$B16^2+L$5*$B16^3+O$5*$B16^4)*SIN(O$6*$B16^4+L$6*$B16^3+I$6*$B16^2+F$6*$B16+C$6)+(F$5+2*I$5*$B16+3*L$5*$B16^2+4*O$5*$B16^3)*COS(O$6*$B16^4+L$6*$B16^3+I$6*$B16^2+F$6*$B16+C$6)+4*O$4*$B16^3+3*L$4*$B16^2+2*I$4*$B16+F$4 -> 0 | G16: =(G$7+2*J$7*$B16+3*M$7*$B16^2+4*P$7*$B16^3)*SIN(P$8*$B16^4+M$8*$B16^3+J$8*$B16^2+G$8*$B16+D$8)+(G$8+2*J$8*$B16+3*M$8*$B16^2+4*P$8*$B16^3)*(D$7+G$7*$B16+J$7*$B16^2+M$7*$B16^3+P$7*$B16^4)*COS(P$8*$B16^4+M$8*$B16^3+J$8*$B16^2+G$8*$B16+D$8)-(G$6+2*J$6*$B16+3*M$6*$B16^2+4*P$6*$B16^3)*(D$5+G$5*$B16+J$5*$B16^2+M$5*$B16^3+P$5*$B16^4)*SIN(P$6*$B16^4+M$6*$B16^3+J$6*$B16^2+G$6*$B16+D$6)+(G$5+2*J$5*$B16+3*M$5*$B16^2+4*P$5*$B16^3)*COS(P$6*$B16^4+M$6*$B16^3+J$6*$B16^2+G$6*$B16+D$6)+4*P$4*$B16^3+3*M$4*$B16^2+2*J$4*$B16+G$4 -> 5 | H16: =(H$7+2*K$7*$B16+3*N$7*$B16^2+4*Q$7*$B16^3)*SIN(Q$8*$B16^4+N$8*$B16^3+K$8*$B16^2+H$8*$B16+E$8)+(H$8+2*K$8*$B16+3*N$8*$B16^2+4*Q$8*$B16^3)*(E$7+H$7*$B16+K$7*$B16^2+N$7*$B16^3+Q$7*$B16^4)*COS(Q$8*$B16^4+N$8*$B16^3+K$8*$B16^2+H$8*$B16+E$8)-(H$6+2*K$6*$B16+3*N$6*$B16^2+4*Q$6*$B16^3)*(E$5+H$5*$B16+K$5*$B16^2+N$5*$B16^3+Q$5*$B16^4)*SIN(Q$6*$B16^4+N$6*$B16^3+K$6*$B16^2+H$6*$B16+E$6)+(H$5+2*K$5*$B16+3*N$5*$B16^2+4*Q$5*$B16^3)*COS(Q$6*$B16^4+N$6*$B16^3+K$6*$B16^2+H$6*$B16+E$6)+4*Q$4*$B16^3+3*N$4*$B16^2+2*K$4*$B16+H$4 -> 10 | I16: =-1*(F$8+2*I$8*$B16+3*L$8*$B16^2+4*O$8*$B16^3)^2*(C$7+F$7*$B16+I$7*$B16^2+L$7*$B16^3+O$7*$B16^4)*SIN(O$8*$B16^4+L$8*$B16^3+I$8*$B16^2+F$8*$B16+C$8)+(2*I$7+6*L$7*$B16+12*O$7*$B16^2)*SIN(O$8*$B16^4+L$8*$B16^3+I$8*$B16^2+F$8*$B16+C$8)+(2*I$8+6*L$8*$B16+12*O$8*$B16^2)*(C$7+F$7*$B16+I$7*$B16^2+L$7*$B16^3+O$7*$B16^4)*COS(O$8*$B16^4+L$8*$B16^3+I$8*$B16^2+F$8*$B16+C$8)+2*(F$7+2*I$7*$B16+3*L$7*$B16^2+4*O$7*$B16^3)*(F$8+2*I$8*$B16+3*L$8*$B16^2+4*O$8*$B16^3)*COS(O$8*$B16^4+L$8*$B16^3+I$8*$B16^2+F$8*$B16+C$8)-(2*I$6+6*L$6*$B16+12*O$6*$B16^2)*(C$5+F$5*$B16+I$5*$B16^2+L$5*$B16^3+O$5*$B16^4)*SIN(O$6*$B16^4+L$6*$B16^3+I$6*$B16^2+F$6*$B16+C$6)-2*(F$5+2*I$5*$B16+3*L$5*$B16^2+4*O$5*$B16^3)*(F$6+2*I$6*$B16+3*L$6*$B16^2+4*O$6*$B16^3)*SIN(O$6*$B16^4+L$6*$B16^3+I$6*$B16^2+F$6*$B16+C$6)-(F$6+2*I$6*$B16+3*L$6*$B16^2+4*O$6*$B16^3)^2*(C$5+F$5*$B16+I$5*$B16^2+L$5*$B16^3+O$5*$B16^4)*COS(O$6*$B16^4+L$6*$B16^3+I$6*$B16^2+F$6*$B16+C$6)+(2*I$5+6*L$5*$B16+12*O$5*$B16^2)*COS(O$6*$B16^4+L$6*$B16^3+I$6*$B16^2+F$6*$B16+C$6)+12*O$4*$B16^2+6*L$4*$B16+2*I$4 -> -75 | J16: =-1*(G$8+2*J$8*$B16+3*M$8*$B16^2+4*P$8*$B16^3)^2*(D$7+G$7*$B16+J$7*$B16^2+M$7*$B16^3+P$7*$B16^4)*SIN(P$8*$B16^4+M$8*$B16^3+J$8*$B16^2+G$8*$B16+D$8)+(2*J$7+6*M$7*$B16+12*P$7*$B16^2)*SIN(P$8*$B16^4+M$8*$B16^3+J$8*$B16^2+G$8*$B16+D$8)+(2*J$8+6*M$8*$B16+12*P$8*$B16^2)*(D$7+G$7*$B16+J$7*$B16^2+M$7*$B16^3+P$7*$B16^4)*COS(P$8*$B16^4+M$8*$B16^3+J$8*$B16^2+G$8*$B16+D$8)+2*(G$7+2*J$7*$B16+3*M$7*$B16^2+4*P$7*$B16^3)*(G$8+2*J$8*$B16+3*M$8*$B16^2+4*P$8*$B16^3)*COS(P$8*$B16^4+M$8*$B16^3+J$8*$B16^2+G$8*$B16+D$8)-(2*J$6+6*M$6*$B16+12*P$6*$B16^2)*(D$5+G$5*$B16+J$5*$B16^2+M$5*$B16^3+P$5*$B16^4)*SIN(P$6*$B16^4+M$6*$B16^3+J$6*$B16^2+G$6*$B16+D$6)-2*(G$5+2*J$5*$B16+3*M$5*$B16^2+4*P$5*$B16^3)*(G$6+2*J$6*$B16+3*M$6*$B16^2+4*P$6*$B16^3)*SIN(P$6*$B16^4+M$6*$B16^3+J$6*$B16^2+G$6*$B16+D$6)-(G$6+2*J$6*$B16+3*M$6*$B16^2+4*P$6*$B16^3)^2*(D$5+G$5*$B16+J$5*$B16^2+M$5*$B16^3+P$5*$B16^4)*COS(P$6*$B16^4+M$6*$B16^3+J$6*$B16^2+G$6*$B16+D$6)+(2*J$5+6*M$5*$B16+12*P$5*$B16^2)*COS(P$6*$B16^4+M$6*$B16^3+J$6*$B16^2+G$6*$B16+D$6)+12*P$4*$B16^2+6*M$4*$B16+2*J$4 -> -100 | K16: =-1*(H$8+2*K$8*$B16+3*N$8*$B16^2+4*Q$8*$B16^3)^2*(E$7+H$7*$B16+K$7*$B16^2+N$7*$B16^3+Q$7*$B16^4)*SIN(Q$8*$B16^4+N$8*$B16^3+K$8*$B16^2+H$8*$B16+E$8)+(2*K$7+6*N$7*$B16+12*Q$7*$B16^2)*SIN(Q$8*$B16^4+N$8*$B16^3+K$8*$B16^2+H$8*$B16+E$8)+(2*K$8+6*N$8*$B16+12*Q$8*$B16^2)*(E$7+H$7*$B16+K$7*$B16^2+N$7*$B16^3+Q$7*$B16^4)*COS(Q$8*$B16^4+N$8*$B16^3+K$8*$B16^2+H$8*$B16+E$8)+2*(H$7+2*K$7*$B16+3*N$7*$B16^2+4*Q$7*$B16^3)*(H$8+2*K$8*$B16+3*N$8*$B16^2+4*Q$8*$B16^3)*COS(Q$8*$B16^4+N$8*$B16^3+K$8*$B16^2+H$8*$B16+E$8)-(2*K$6+6*N$6*$B16+12*Q$6*$B16^2)*(E$5+H$5*$B16+K$5*$B16^2+N$5*$B16^3+Q$5*$B16^4)*SIN(Q$6*$B16^4+N$6*$B16^3+K$6*$B16^2+H$6*$B16+E$6)-2*(H$5+2*K$5*$B16+3*N$5*$B16^2+4*Q$5*$B16^3)*(H$6+2*K$6*$B16+3*N$6*$B16^2+4*Q$6*$B16^3)*SIN(Q$6*$B16^4+N$6*$B16^3+K$6*$B16^2+H$6*$B16+E$6)-(H$6+2*K$6*$B16+3*N$6*$B16^2+4*Q$6*$B16^3)^2*(E$5+H$5*$B16+K$5*$B16^2+N$5*$B16^3+Q$5*$B16^4)*COS(Q$6*$B16^4+N$6*$B16^3+K$6*$B16^2+H$6*$B16+E$6)+(2*K$5+6*N$5*$B16+12*Q$5*$B16^2)*COS(Q$6*$B16^4+N$6*$B16^3+K$6*$B16^2+H$6*$B16+E$6)+12*Q$4*$B16^2+6*N$4*$B16+2*K$4 -> 0 | L16: =IF($AK$38=0,TRANSPOSE(MMULT($O$10:$Q$12,TRANSPOSE(C16:E16))),TRANSPOSE(MMULT($O$10:$Q$12,TRANSPOSE(Y16:AA16)))) -> 1.135814943 | M16: -2.434641884 | N16: 4.216923441 | O16: =IF($AD$4=0,NA(),$X$5+$X$4*IF($U$8=1,L16,(L16*$U$6)/($U$6+$U$7+M16))) -> 1.135814943 | P16: =IF($AD$4=0,NA(),$X$6+$X$4*IF($U$8=1,M16,(N16*$U$6)/($U$6+$U$7+M16))) -> -2.434641884 | Q16: =TRANSPOSE(MMULT($AE$10:$AG$12,TRANSPOSE(F16:H16))) -> 3.830222216 | R16: 7.053285014 | S16: 7.783351996 | T16: =$Y$5+$Y$4*IF($U$8=1,Q16,(Q16*$U$6)/($U$6+$U$7+R16)) -> 1.532088886 | U16: =$Y$6+$Y$4*IF($U$8=1,R16,(S16*$U$6)/($U$6+$U$7+R16)) -> 2.821314005 | V16: =TRANSPOSE(MMULT($AO$40:$AQ$42,TRANSPOSE(C16:E16))) -> 1.788854382 | W16: -3 | X16: -3.577708764 | Y16: =V16+$AL$46 -> 0 | Z16: =W16+$AL$47 -> 0 | AA16: =X16+$AL$48 -> 0
A17: 17 | B17: =IF(B16<$B$3,B16+$S$3,NA()) ->  | D17: =(D$4+G$4*$B17+J$4*$B17^2+M$4*$B17^3+P$4*$B17^4)+(D$5+G$5*$B17+J$5*$B17^2+M$5*$B17^3+P$5*$B17^5)*(COS(D$6+G$6*$B17+J$6*$B17^2+M$6*$B17^3+P$6*$B17^4))+(D$7+G$7*$B17+J$7*$B17^2+M$7*$B17^3+P$7*$B17^4)*(SIN(D$8+G$8*$B17+J$8*$B17^2+M$8*$B17^3+P$8*$B17^4)) ->  | E17: =(E$4+H$4*$B17+K$4*$B17^2+N$4*$B17^3+Q$4*$B17^4)+(E$5+H$5*$B17+K$5*$B17^2+N$5*$B17^3+Q$5*$B17^5)*(COS(E$6+H$6*$B17+K$6*$B17^2+N$6*$B17^3+Q$6*$B17^4))+(E$7+H$7*$B17+K$7*$B17^2+N$7*$B17^3+Q$7*$B17^4)*(SIN(E$8+H$8*$B17+K$8*$B17^2+N$8*$B17^3+Q$8*$B17^4)) ->  | L17: =IF($AK$38=0,TRANSPOSE(MMULT($O$10:$Q$12,TRANSPOSE(C17:E17))),TRANSPOSE(MMULT($O$10:$Q$12,TRANSPOSE(Y17:AA17)))) ->  | O17: =IF($AD$4=0,NA(),$X$5+$X$4*IF($U$8=1,L17,(L17*$U$6)/($U$6+$U$7+M17))) ->  | P17: =IF($AD$4=0,NA(),$X$6+$X$4*IF($U$8=1,M17,(N17*$U$6)/($U$6+$U$7+M17))) ->  | Q17: =TRANSPOSE(MMULT($AE$10:$AG$12,TRANSPOSE(F17:H17))) ->  | V17: =TRANSPOSE(MMULT($AO$40:$AQ$42,TRANSPOSE(C17:E17))) ->  | AB17: tpont | AC17: =IF($AB$4=1,O15,NA()) -> 1.135814943 | AD17: =IF($AB$4=1,P15,NA()) -> -2.434641884
A18: 18 | B18: =IF(B17<$B$3,B17+$S$3,NA()) ->  | L18: =IF($AK$38=0,TRANSPOSE(MMULT($O$10:$Q$12,TRANSPOSE(C18:E18))),TRANSPOSE(MMULT($O$10:$Q$12,TRANSPOSE(Y18:AA18)))) ->  | Q18: =TRANSPOSE(MMULT($AE$10:$AG$12,TRANSPOSE(F18:H18))) ->  | V18: =TRANSPOSE(MMULT($AO$40:$AQ$42,TRANSPOSE(C18:E18))) ->  | AB18: x_axis | AK18: x_axis
A19: 19 | L19: =IF($AK$38=0,TRANSPOSE(MMULT($O$10:$Q$12,TRANSPOSE(C19:E19))),TRANSPOSE(MMULT($O$10:$Q$12,TRANSPOSE(Y19:AA19)))) ->  | Q19: =TRANSPOSE(MMULT($AE$10:$AG$12,TRANSPOSE(F19:H19))) ->  | V19: =TRANSPOSE(MMULT($AO$40:$AQ$42,TRANSPOSE(C19:E19))) ->  | AB19: =IF($AJ$4=1,-AM46,0) -> 0 | AC19: =IF($AJ$4=1,-AM47,0) -> 0 | AD19: =IF($AJ$4=1,-AM48,0) -> 0 | AE19: =TRANSPOSE(MMULT(O10:Q12,TRANSPOSE(AB19:AD19))) -> 0 | AF19: 0 | AG19: 0 | AH19: =IF(AB3=0,NA(),$X$5+$X$4*IF($U$8=1,AE19,(AE19*$U$6)/($U$6+$U$7+AF19))) -> 0 | AI19: =IF(AB3=0,NA(),$X$6+$X$4*IF($U$8=1,AF19,(AG19*$U$6)/($U$6+$U$7+AF19))) -> 0 | AK19: 0 | AL19: 0 | AM19: 0 | AN19: 0 | AO19: 0 | AP19: 0 | AQ19: =$Y$5+$Y$4*IF($U$8=1,AN19,(AN19*$U$6)/($U$6+$U$7+AO19)) -> 0 | AR19: =$Y$6+$Y$4*IF($U$8=1,AO19,(AP19*$U$6)/($U$6+$U$7+AO19)) -> 0
A20: 20 | L20: =IF($AK$38=0,TRANSPOSE(MMULT($O$10:$Q$12,TRANSPOSE(C20:E20))),TRANSPOSE(MMULT($O$10:$Q$12,TRANSPOSE(Y20:AA20)))) ->  | Q20: =TRANSPOSE(MMULT($AE$10:$AG$12,TRANSPOSE(F20:H20))) ->  | V20: =TRANSPOSE(MMULT($AO$40:$AQ$42,TRANSPOSE(C20:E20))) ->  | AB20: =IF($AJ$4=1,(AB19+$X$3*AN46),$X$3) -> 5 | AC20: =IF($AJ$4=1,(AC19+$X$3*AN47),0) -> 0 | AD20: =IF($AJ$4=1,(AD19+$X$3*AN48),0) -> 0 | AE20: =TRANSPOSE(MMULT(O10:Q12,TRANSPOSE(AB20:AD20))) -> -3.213938048 | AF20: -1.915111108 | AG20: 3.317069741 | AH20: =IF(AB3=0,NA(),$X$5+$X$4*IF($U$8=1,AE20,(AE20*$U$6)/($U$6+$U$7+AF20))) -> -3.213938048 | AI20: =IF(AB3=0,NA(),$X$6+$X$4*IF($U$8=1,AF20,(AG20*$U$6)/($U$6+$U$7+AF20))) -> -1.915111108 | AK20: =Y3 -> 5 | AL20: 0 | AM20: 0 | AN20: =TRANSPOSE(MMULT(AE10:AG12,TRANSPOSE(AK20:AM20))) -> -3.213938048 | AO20: -1.915111108 | AP20: 3.317069741 | AQ20: =$Y$5+$Y$4*IF($U$8=1,AN20,(AN20*$U$6)/($U$6+$U$7+AO20)) -> -1.285575219 | AR20: =$Y$6+$Y$4*IF($U$8=1,AO20,(AP20*$U$6)/($U$6+$U$7+AO20)) -> -0.7660444431
A21: 21 | L21: =IF($AK$38=0,TRANSPOSE(MMULT($O$10:$Q$12,TRANSPOSE(C21:E21))),TRANSPOSE(MMULT($O$10:$Q$12,TRANSPOSE(Y21:AA21)))) ->  | Q21: =TRANSPOSE(MMULT($AE$10:$AG$12,TRANSPOSE(F21:H21))) ->  | V21: =TRANSPOSE(MMULT($AO$40:$AQ$42,TRANSPOSE(C21:E21))) ->  | AB21: y_axis | AK21: y_axis
A22: 22 | L22: =IF($AK$38=0,TRANSPOSE(MMULT($O$10:$Q$12,TRANSPOSE(C22:E22))),TRANSPOSE(MMULT($O$10:$Q$12,TRANSPOSE(Y22:AA22)))) ->  | Q22: =TRANSPOSE(MMULT($AE$10:$AG$12,TRANSPOSE(F22:H22))) ->  | V22: =TRANSPOSE(MMULT($AO$40:$AQ$42,TRANSPOSE(C22:E22))) ->  | AB22: =IF($AJ$4=1,-AM46,0) -> 0 | AC22: =IF($AJ$4=1,-AM47,0) -> 0 | AD22: =IF($AJ$4=1,-AM48,0) -> 0 | AE22: =TRANSPOSE(MMULT(O10:Q12,TRANSPOSE(AB22:AD22))) -> 0 | AF22: 0 | AG22: 0 | AH22: =IF(AD3=0,NA(),$X$5+$X$4*IF($U$8=1,AE22,(AE22*$U$6)/($U$6+$U$7+AF22))) -> 0 | AI22: =IF(AD3=0,NA(),$X$6+$X$4*IF($U$8=1,AF22,(AG22*$U$6)/($U$6+$U$7+AF22))) -> 0 | AK22: 0 | AL22: 0 | AM22: 0 | AN22: 0 | AO22: 0 | AP22: 0 | AQ22: =$Y$5+$Y$4*IF($U$8=1,AN22,(AN22*$U$6)/($U$6+$U$7+AO22)) -> 0 | AR22: =$Y$6+$Y$4*IF($U$8=1,AO22,(AP22*$U$6)/($U$6+$U$7+AO22)) -> 0
A23: 23 | L23: =IF($AK$38=0,TRANSPOSE(MMULT($O$10:$Q$12,TRANSPOSE(C23:E23))),TRANSPOSE(MMULT($O$10:$Q$12,TRANSPOSE(Y23:AA23)))) ->  | Q23: =TRANSPOSE(MMULT($AE$10:$AG$12,TRANSPOSE(F23:H23))) ->  | V23: =TRANSPOSE(MMULT($AO$40:$AQ$42,TRANSPOSE(C23:E23))) ->  | AB23: =IF($AJ$4=1,(AB22+$X$3*AO46),0) -> 0 | AC23: =IF($AJ$4=1,(AC22+$X$3*AO47),$X$3) -> 5 | AD23: =IF($AJ$4=1,(AD22+$X$3*AO48),0) -> 0 | AE23: =TRANSPOSE(MMULT(O10:Q12,TRANSPOSE(AB23:AD23))) -> 3.830222216 | AF23: -1.606969024 | AG23: 2.783351996 | AH23: =IF(AD3=0,NA(),$X$5+$X$4*IF($U$8=1,AE23,(AE23*$U$6)/($U$6+$U$7+AF23))) -> 3.830222216 | AI23: =IF(AD3=0,NA(),$X$6+$X$4*IF($U$8=1,AF23,(AG23*$U$6)/($U$6+$U$7+AF23))) -> -1.606969024 | AK23: 0 | AL23: =Y3 -> 5 | AM23: 0 | AN23: =TRANSPOSE(MMULT(AE10:AG12,TRANSPOSE(AK23:AM23))) -> 3.830222216 | AO23: -1.606969024 | AP23: 2.783351996 | AQ23: =$Y$5+$Y$4*IF($U$8=1,AN23,(AN23*$U$6)/($U$6+$U$7+AO23)) -> 1.532088886 | AR23: =$Y$6+$Y$4*IF($U$8=1,AO23,(AP23*$U$6)/($U$6+$U$7+AO23)) -> -0.6427876097
A24: 24 | L24: =IF($AK$38=0,TRANSPOSE(MMULT($O$10:$Q$12,TRANSPOSE(C24:E24))),TRANSPOSE(MMULT($O$10:$Q$12,TRANSPOSE(Y24:AA24)))) ->  | Q24: =TRANSPOSE(MMULT($AE$10:$AG$12,TRANSPOSE(F24:H24))) ->  | V24: =TRANSPOSE(MMULT($AO$40:$AQ$42,TRANSPOSE(C24:E24))) -> 
A25: 25 | L25: =IF($AK$38=0,TRANSPOSE(MMULT($O$10:$Q$12,TRANSPOSE(C25:E25))),TRANSPOSE(MMULT($O$10:$Q$12,TRANSPOSE(Y25:AA25)))) ->  | Q25: =TRANSPOSE(MMULT($AE$10:$AG$12,TRANSPOSE(F25:H25))) ->  | V25: =TRANSPOSE(MMULT($AO$40:$AQ$42,TRANSPOSE(C25:E25))) ->  | AB25: z_axis | AK25: z_axis
A26: 26 | L26: =IF($AK$38=0,TRANSPOSE(MMULT($O$10:$Q$12,TRANSPOSE(C26:E26))),TRANSPOSE(MMULT($O$10:$Q$12,TRANSPOSE(Y26:AA26)))) ->  | Q26: =TRANSPOSE(MMULT($AE$10:$AG$12,TRANSPOSE(F26:H26))) ->  | V26: =TRANSPOSE(MMULT($AO$40:$AQ$42,TRANSPOSE(C26:E26))) ->  | AB26: =IF($AJ$4=1,-AM46,0) -> 0 | AC26: =IF($AJ$4=1,-AM47,0) -> 0 | AD26: =IF($AJ$4=1,-AM48,0) -> 0 | AE26: =TRANSPOSE(MMULT(O10:Q12,TRANSPOSE(AB26:AD26))) -> 0 | AF26: 0 | AG26: 0 | AH26: =IF(AF3=0,NA(),$X$5+$X$4*IF($U$8=1,AE26,(AE26*$U$6)/($U$6+$U$7+AF26))) -> 0 | AI26: =IF(AF3=0,NA(),$X$6+$X$4*IF($U$8=1,AF26,(AG26*$U$6)/($U$6+$U$7+AF26))) -> 0 | AK26: 0 | AL26: 0 | AM26: 0 | AN26: 0 | AO26: 0 | AP26: 0 | AQ26: =$Y$5+$Y$4*IF($U$8=1,AN26,(AN26*$U$6)/($U$6+$U$7+AO26)) -> 0 | AR26: =$Y$6+$Y$4*IF($U$8=1,AO26,(AP26*$U$6)/($U$6+$U$7+AO26)) -> 0
A27: 27 | L27: =IF($AK$38=0,TRANSPOSE(MMULT($O$10:$Q$12,TRANSPOSE(C27:E27))),TRANSPOSE(MMULT($O$10:$Q$12,TRANSPOSE(Y27:AA27)))) ->  | Q27: =TRANSPOSE(MMULT($AE$10:$AG$12,TRANSPOSE(F27:H27))) ->  | V27: =TRANSPOSE(MMULT($AO$40:$AQ$42,TRANSPOSE(C27:E27))) ->  | AB27: =IF($AJ$4=1,(AB26+$X$3*AP46),0) -> 0 | AC27: =IF($AJ$4=1,(AC26+$X$3*AP47),0) -> 0 | AD27: =IF($AJ$4=1,(AD26+$X$3*AP48),X3) -> 5 | AE27: =TRANSPOSE(MMULT(O10:Q12,TRANSPOSE(AB27:AD27))) -> 3.062871137e-16 | AF27: 4.330127019 | AG27: 2.5 | AH27: =IF(AF3=0,NA(),$X$5+$X$4*IF($U$8=1,AE27,(AE27*$U$6)/($U$6+$U$7+AF27))) -> 3.062871137e-16 | AI27: =IF(AF3=0,NA(),$X$6+$X$4*IF($U$8=1,AF27,(AG27*$U$6)/($U$6+$U$7+AF27))) -> 4.330127019 | AK27: 0 | AL27: 0 | AM27: =Y3 -> 5 | AN27: =TRANSPOSE(MMULT(AE10:AG12,TRANSPOSE(AK27:AM27))) -> 3.062871137e-16 | AO27: 4.330127019 | AP27: 2.5 | AQ27: =$Y$5+$Y$4*IF($U$8=1,AN27,(AN27*$U$6)/($U$6+$U$7+AO27)) -> 1.225148455e-16 | AR27: =$Y$6+$Y$4*IF($U$8=1,AO27,(AP27*$U$6)/($U$6+$U$7+AO27)) -> 1.732050808
A28: 28 | L28: =IF($AK$38=0,TRANSPOSE(MMULT($O$10:$Q$12,TRANSPOSE(C28:E28))),TRANSPOSE(MMULT($O$10:$Q$12,TRANSPOSE(Y28:AA28)))) ->  | Q28: =TRANSPOSE(MMULT($AE$10:$AG$12,TRANSPOSE(F28:H28))) ->  | V28: =TRANSPOSE(MMULT($AO$40:$AQ$42,TRANSPOSE(C28:E28))) -> 
A29: 29 | L29: =IF($AK$38=0,TRANSPOSE(MMULT($O$10:$Q$12,TRANSPOSE(C29:E29))),TRANSPOSE(MMULT($O$10:$Q$12,TRANSPOSE(Y29:AA29)))) ->  | Q29: =TRANSPOSE(MMULT($AE$10:$AG$12,TRANSPOSE(F29:H29))) ->  | V29: =TRANSPOSE(MMULT($AO$40:$AQ$42,TRANSPOSE(C29:E29))) ->  | AD29: r: | AE29: axonometrikus | AH29: perspektívikus | AM29: v: | AN29: axonometrikus | AQ29: perspektívikus
A30: 30 | L30: =IF($AK$38=0,TRANSPOSE(MMULT($O$10:$Q$12,TRANSPOSE(C30:E30))),TRANSPOSE(MMULT($O$10:$Q$12,TRANSPOSE(Y30:AA30)))) ->  | Q30: =TRANSPOSE(MMULT($AE$10:$AG$12,TRANSPOSE(F30:H30))) ->  | V30: =TRANSPOSE(MMULT($AO$40:$AQ$42,TRANSPOSE(C30:E30))) ->  | AE30: 0 | AF30: 0 | AG30: 0 | AH30: =IF(AF4=0,NA(),$X$5+$X$4*IF($U$8=1,AE30,(AE30*$U$6)/($U$6+$U$7+AF30))) -> 0 | AI30: =IF(AF4=0,NA(),$X$6+$X$4*IF($U$8=1,AF30,(AG30*$U$6)/($U$6+$U$7+AF30))) -> 0 | AN30: 0 | AO30: 0 | AP30: 0 | AQ30: =$Y$5+$Y$4*IF($U$8=1,AN30,(AN30*$U$6)/($U$6+$U$7+AO30)) -> 0 | AR30: =$Y$6+$Y$4*IF($U$8=1,AO30,(AP30*$U$6)/($U$6+$U$7+AO30)) -> 0
A31: 31 | L31: =IF($AK$38=0,TRANSPOSE(MMULT($O$10:$Q$12,TRANSPOSE(C31:E31))),TRANSPOSE(MMULT($O$10:$Q$12,TRANSPOSE(Y31:AA31)))) ->  | Q31: =TRANSPOSE(MMULT($AE$10:$AG$12,TRANSPOSE(F31:H31))) ->  | V31: =TRANSPOSE(MMULT($AO$40:$AQ$42,TRANSPOSE(C31:E31))) ->  | AE31: =L15 -> 1.135814943 | AF31: =M15 -> -2.434641884 | AG31: =N15 -> 4.216923441 | AH31: =IF(AF4=0,NA(),$X$5+$X$4*IF($U$8=1,AE31,(AE31*$U$6)/($U$6+$U$7+AF31))) -> 1.135814943 | AI31: =IF(AF4=0,NA(),$X$6+$X$4*IF($U$8=1,AF31,(AG31*$U$6)/($U$6+$U$7+AF31))) -> -2.434641884 | AN31: =Q15 -> 3.830222216 | AO31: =R15 -> 7.053285014 | AP31: =S15 -> 7.783351996 | AQ31: =$Y$5+$Y$4*IF($U$8=1,AN31,(AN31*$U$6)/($U$6+$U$7+AO31)) -> 1.532088886 | AR31: =$Y$6+$Y$4*IF($U$8=1,AO31,(AP31*$U$6)/($U$6+$U$7+AO31)) -> 2.821314005
A32: 32 | L32: =IF($AK$38=0,TRANSPOSE(MMULT($O$10:$Q$12,TRANSPOSE(C32:E32))),TRANSPOSE(MMULT($O$10:$Q$12,TRANSPOSE(Y32:AA32)))) ->  | Q32: =TRANSPOSE(MMULT($AE$10:$AG$12,TRANSPOSE(F32:H32))) ->  | V32: =TRANSPOSE(MMULT($AO$40:$AQ$42,TRANSPOSE(C32:E32))) -> 
A33: 33 | L33: =IF($AK$38=0,TRANSPOSE(MMULT($O$10:$Q$12,TRANSPOSE(C33:E33))),TRANSPOSE(MMULT($O$10:$Q$12,TRANSPOSE(Y33:AA33)))) ->  | Q33: =TRANSPOSE(MMULT($AE$10:$AG$12,TRANSPOSE(F33:H33))) ->  | V33: =TRANSPOSE(MMULT($AO$40:$AQ$42,TRANSPOSE(C33:E33))) ->  | AB33: V_vektor | AC33: =HOME!S48 -> 0.7 | AE33: axonometrikus | AH33: perspektívikus
A34: 34 | L34: =IF($AK$38=0,TRANSPOSE(MMULT($O$10:$Q$12,TRANSPOSE(C34:E34))),TRANSPOSE(MMULT($O$10:$Q$12,TRANSPOSE(Y34:AA34)))) ->  | Q34: =TRANSPOSE(MMULT($AE$10:$AG$12,TRANSPOSE(F34:H34))) ->  | V34: =TRANSPOSE(MMULT($AO$40:$AQ$42,TRANSPOSE(C34:E34))) ->  | AB34: =IF(AJ4=1,0,C15) -> 3 | AC34: =IF(AJ4=1,0,D15) -> 4 | AD34: =IF(AJ4=1,0,E15) -> 0 | AE34: =TRANSPOSE(MMULT(O10:Q12,TRANSPOSE(AB34:AD34))) -> 1.135814943 | AF34: -2.434641884 | AG34: 4.216923441 | AH34: =IF(AB6=0,NA(),$X$5+$X$4*IF($U$8=1,AE34,(AE34*$U$6)/($U$6+$U$7+AF34))) -> 1.135814943 | AI34: =IF(AB6=0,NA(),$X$6+$X$4*IF($U$8=1,AF34,(AG34*$U$6)/($U$6+$U$7+AF34))) -> -2.434641884 | AK34: globális bázis | AO34: k=zxe | AP34: z*
A35: 35 | L35: =IF($AK$38=0,TRANSPOSE(MMULT($O$10:$Q$12,TRANSPOSE(C35:E35))),TRANSPOSE(MMULT($O$10:$Q$12,TRANSPOSE(Y35:AA35)))) ->  | Q35: =TRANSPOSE(MMULT($AE$10:$AG$12,TRANSPOSE(F35:H35))) ->  | V35: =TRANSPOSE(MMULT($AO$40:$AQ$42,TRANSPOSE(C35:E35))) ->  | AB35: =IF(AJ4=0,AB34+$AC$33*(F15/($F$15^2+$G$15^2+$H$15^2)^0.5),AT46/($F$15^2+$G$15^2+$H$15^2)^0.5) -> 3 | AC35: =IF(AJ4=0,AC34+$AC$33*(G15/($F$15^2+$G$15^2+$H$15^2)^0.5),AT47/($F$15^2+$G$15^2+$H$15^2)^0.5) -> 4.313049517 | AD35: =IF(AJ4=0,AD34+$AC$33*(H15/($F$15^2+$G$15^2+$H$15^2)^0.5),AT48/($F$15^2+$G$15^2+$H$15^2)^0.5) -> 0.6260990337 | AE35: =TRANSPOSE(MMULT(O10:Q12,TRANSPOSE(AB35:AD35))) -> 1.375624786 | AF35: -1.993036391 | AG35: 4.704238358 | AH35: =IF(AB6=0,NA(),$X$5+$X$4*IF($U$8=1,AE35,(AE35*$U$6)/($U$6+$U$7+AF35))) -> 1.375624786 | AI35: =IF(AB6=0,NA(),$X$6+$X$4*IF($U$8=1,AF35,(AG35*$U$6)/($U$6+$U$7+AF35))) -> -1.993036391 | AK35: 1 | AL35: 0 | AM35: 0 | AO35: =AM36*AD15-AM37*AC15 -> -0.4472135955 | AP35: =AC15*AO37-AD15*AO36 -> 0
A36: 36 | L36: =IF($AK$38=0,TRANSPOSE(MMULT($O$10:$Q$12,TRANSPOSE(C36:E36))),TRANSPOSE(MMULT($O$10:$Q$12,TRANSPOSE(Y36:AA36)))) ->  | Q36: =TRANSPOSE(MMULT($AE$10:$AG$12,TRANSPOSE(F36:H36))) ->  | V36: =TRANSPOSE(MMULT($AO$40:$AQ$42,TRANSPOSE(C36:E36))) ->  | AK36: 0 | AL36: 1 | AM36: 0 | AO36: =-1*(AM35*AD15-AM37*AB15) -> 0 | AP36: =-1*(AB15*AO37-AD15*AO35) -> -0.4
A37: 37 | L37: =IF($AK$38=0,TRANSPOSE(MMULT($O$10:$Q$12,TRANSPOSE(C37:E37))),TRANSPOSE(MMULT($O$10:$Q$12,TRANSPOSE(Y37:AA37)))) ->  | Q37: =TRANSPOSE(MMULT($AE$10:$AG$12,TRANSPOSE(F37:H37))) ->  | V37: =TRANSPOSE(MMULT($AO$40:$AQ$42,TRANSPOSE(C37:E37))) ->  | AB37: a_vektor | AC37: =HOME!S49 -> 1 | AK37: 0 | AL37: 0 | AM37: 1 | AO37: =AM35*AC15-AM36*AB15 -> 0 | AP37: =AB15*AO36-AC15*AO35 -> 0.2
A38: 38 | L38: =IF($AK$38=0,TRANSPOSE(MMULT($O$10:$Q$12,TRANSPOSE(C38:E38))),TRANSPOSE(MMULT($O$10:$Q$12,TRANSPOSE(Y38:AA38)))) ->  | Q38: =TRANSPOSE(MMULT($AE$10:$AG$12,TRANSPOSE(F38:H38))) ->  | V38: =TRANSPOSE(MMULT($AO$40:$AQ$42,TRANSPOSE(C38:E38))) ->  | AB38: =IF(AJ4=1,0,C15) -> 3 | AC38: =IF(AJ4=1,0,D15) -> 4 | AD38: =IF(AJ4=1,0,E15) -> 0 | AE38: =TRANSPOSE(MMULT(O10:Q12,TRANSPOSE(AB38:AD38))) -> 1.135814943 | AF38: -2.434641884 | AG38: 4.216923441 | AH38: =IF(AD6=0,NA(),$X$5+$X$4*IF($U$8=1,AE38,(AE38*$U$6)/($U$6+$U$7+AF38))) -> 1.135814943 | AI38: =IF(AD6=0,NA(),$X$6+$X$4*IF($U$8=1,AF38,(AG38*$U$6)/($U$6+$U$7+AF38))) -> -2.434641884 | AK38: 0
A39: 39 | L39: =IF($AK$38=0,TRANSPOSE(MMULT($O$10:$Q$12,TRANSPOSE(C39:E39))),TRANSPOSE(MMULT($O$10:$Q$12,TRANSPOSE(Y39:AA39)))) ->  | Q39: =TRANSPOSE(MMULT($AE$10:$AG$12,TRANSPOSE(F39:H39))) ->  | V39: =TRANSPOSE(MMULT($AO$40:$AQ$42,TRANSPOSE(C39:E39))) ->  | AB39: =IF(AJ4=0,AB38+$AC$37*(I15/($I$15^2+$J$15^2+$K$15^2)^0.5),AU46/(($I$15^2+$J$15^2+$K$15^2)^0.5)) -> 2.4 | AC39: =IF(AJ4=0,AC38+$AC$37*(J15/($I$15^2+$J$15^2+$K$15^2)^0.5),AU47/(($I$15^2+$J$15^2+$K$15^2)^0.5)) -> 3.2 | AD39: =IF(AJ4=0,AD38+$AC$37*(K15/($I$15^2+$J$15^2+$K$15^2)^0.5),AU48/(($I$15^2+$J$15^2+$K$15^2)^0.5)) -> 0 | AE39: =TRANSPOSE(MMULT(O10:Q12,TRANSPOSE(AB39:AD39))) -> 0.9086519547 | AF39: -1.947713507 | AG39: 3.373538753 | AH39: =IF(AD6=0,NA(),$X$5+$X$4*IF($U$8=1,AE39,(AE39*$U$6)/($U$6+$U$7+AF39))) -> 0.9086519547 | AI39: =IF(AD6=0,NA(),$X$6+$X$4*IF($U$8=1,AF39,(AG39*$U$6)/($U$6+$U$7+AF39))) -> -1.947713507 | AK39: kísérő triéder (global_base) | AO39: inverze (báziscsere): | AS39: új bázis gkrben
A40: 40 | L40: =IF($AK$38=0,TRANSPOSE(MMULT($O$10:$Q$12,TRANSPOSE(C40:E40))),TRANSPOSE(MMULT($O$10:$Q$12,TRANSPOSE(Y40:AA40)))) ->  | Q40: =TRANSPOSE(MMULT($AE$10:$AG$12,TRANSPOSE(F40:H40))) ->  | V40: =TRANSPOSE(MMULT($AO$40:$AQ$42,TRANSPOSE(C40:E40))) ->  | AK40: =TRANSPOSE(AB15:AD15) -> 0 | AL40: =TRANSPOSE(AH15:AJ15) -> -0.6425294053 | AM40: =TRANSPOSE(AE15:AG15) -> 0.7662610282 | AO40: =MINVERSE(AS40:AU42) -> 0 | AP40: 0.4472135955 | AQ40: 0.894427191 | AS40: =TRANSPOSE(AB15:AD15) -> 0 | AT40: =IF(AK38=1,AH15,AO35/(AO35^2+AO36^2+AO37^2)^0.5) -> -1 | AU40: =IF(AK38=1,AE15,AP35/(AP35^2+AP36^2+AP37^2)^0.5) -> 0
A41: 41 | L41: =IF($AK$38=0,TRANSPOSE(MMULT($O$10:$Q$12,TRANSPOSE(C41:E41))),TRANSPOSE(MMULT($O$10:$Q$12,TRANSPOSE(Y41:AA41)))) ->  | Q41: =TRANSPOSE(MMULT($AE$10:$AG$12,TRANSPOSE(F41:H41))) ->  | V41: =TRANSPOSE(MMULT($AO$40:$AQ$42,TRANSPOSE(C41:E41))) ->  | AB41: ae_vektor | AK41: 0.4472135955 | AL41: -0.685364699 | AM41: -0.5746957711 | AO41: -1 | AP41: 0 | AQ41: 0 | AS41: 0.4472135955 | AT41: =IF(AK38=1,AI15,AO36/(AO35^2+AO36^2+AO37^2)^0.5) -> 0 | AU41: =IF(AK38=1,AF15,AP36/(AP35^2+AP36^2+AP37^2)^0.5) -> -0.894427191
A42: 42 | C42: =(C$4+F$4*$B42+I$4*$B42^2+L$4*$B42^3+O$4*$B42^4)+(C$5+F$5*$B42+I$5*$B42^2+L$5*$B42^3+O$5*$B42^5)*(COS(C$6+F$6*$B42+I$6*$B42^2+L$6*$B42^3+O$6*$B42^4))+(C$7+F$7*$B42+I$7*$B42^2+L$7*$B42^3+O$7*$B42^4)*(SIN(C$8+F$8*$B42+I$8*$B42^2+L$8*$B42^3+O$8*$B42^4)) ->  | D42: =(D$4+G$4*$B42+J$4*$B42^2+M$4*$B42^3+P$4*$B42^4)+(D$5+G$5*$B42+J$5*$B42^2+M$5*$B42^3+P$5*$B42^5)*(COS(D$6+G$6*$B42+J$6*$B42^2+M$6*$B42^3+P$6*$B42^4))+(D$7+G$7*$B42+J$7*$B42^2+M$7*$B42^3+P$7*$B42^4)*(SIN(D$8+G$8*$B42+J$8*$B42^2+M$8*$B42^3+P$8*$B42^4)) ->  | E42: =(E$4+H$4*$B42+K$4*$B42^2+N$4*$B42^3+Q$4*$B42^4)+(E$5+H$5*$B42+K$5*$B42^2+N$5*$B42^3+Q$5*$B42^5)*(COS(E$6+H$6*$B42+K$6*$B42^2+N$6*$B42^3+Q$6*$B42^4))+(E$7+H$7*$B42+K$7*$B42^2+N$7*$B42^3+Q$7*$B42^4)*(SIN(E$8+H$8*$B42+K$8*$B42^2+N$8*$B42^3+Q$8*$B42^4)) ->  | L42: =IF($AK$38=0,TRANSPOSE(MMULT($O$10:$Q$12,TRANSPOSE(C42:E42))),TRANSPOSE(MMULT($O$10:$Q$12,TRANSPOSE(Y42:AA42)))) ->  | Q42: =TRANSPOSE(MMULT($AE$10:$AG$12,TRANSPOSE(F42:H42))) ->  | V42: =TRANSPOSE(MMULT($AO$40:$AQ$42,TRANSPOSE(C42:E42))) ->  | AB42: =AB38 -> 3 | AC42: =AC38 -> 4 | AD42: 0 | AE42: =TRANSPOSE(MMULT(O10:Q12,TRANSPOSE(AB42:AD42))) -> 1.135814943 | AF42: -2.434641884 | AG42: 4.216923441 | AH42: =IF(AH4=0,NA(),$X$5+$X$4*IF($U$8=1,AE42,(AE42*$U$6)/($U$6+$U$7+AF42))) -> 1.135814943 | AI42: =IF(AH4=0,NA(),$X$6+$X$4*IF($U$8=1,AF42,(AG42*$U$6)/($U$6+$U$7+AF42))) -> -2.434641884 | AK42: 0.894427191 | AL42: 0.3426823495 | AM42: 0.2873478856 | AO42: 0 | AP42: -0.894427191 | AQ42: 0.4472135955 | AS42: 0.894427191 | AT42: =IF(AK38=1,AJ15,AO37/(AO35^2+AO36^2+AO37^2)^0.5) -> 0 | AU42: =IF(AK38=1,AG15,AP37/(AP35^2+AP36^2+AP37^2)^0.5) -> 0.4472135955
A43: 43 | L43: =IF($AK$38=0,TRANSPOSE(MMULT($O$10:$Q$12,TRANSPOSE(C43:E43))),TRANSPOSE(MMULT($O$10:$Q$12,TRANSPOSE(Y43:AA43)))) ->  | Q43: =TRANSPOSE(MMULT($AE$10:$AG$12,TRANSPOSE(F43:H43))) ->  | V43: =TRANSPOSE(MMULT($AO$40:$AQ$42,TRANSPOSE(C43:E43))) ->  | AB43: =AB42+AB44*AQ50 -> 3 | AC43: =AC42+AC44*AQ51 -> 3.84 | AD43: =AD42+AD44*AQ52 -> -0.32 | AE43: =TRANSPOSE(MMULT(O10:Q12,TRANSPOSE(AB43:AD43))) -> 1.013247833 | AF43: -2.660347004 | AG43: 3.967856178 | AH43: =IF(AH4=0,NA(),$X$5+$X$4*IF($U$8=1,AE43,(AE43*$U$6)/($U$6+$U$7+AF43))) -> 1.013247833 | AI43: =IF(AH4=0,NA(),$X$6+$X$4*IF($U$8=1,AF43,(AG43*$U$6)/($U$6+$U$7+AF43))) -> -2.660347004
A44: 44 | L44: =IF($AK$38=0,TRANSPOSE(MMULT($O$10:$Q$12,TRANSPOSE(C44:E44))),TRANSPOSE(MMULT($O$10:$Q$12,TRANSPOSE(Y44:AA44)))) ->  | Q44: =TRANSPOSE(MMULT($AE$10:$AG$12,TRANSPOSE(F44:H44))) ->  | V44: =TRANSPOSE(MMULT($AO$40:$AQ$42,TRANSPOSE(C44:E44))) ->  | AB44: =MMULT(TRANSPOSE(AV50:AV52),$AQ$50:$AQ$52) -> -0.3577708764 | AC44: -0.3577708764 | AD44: -0.3577708764 | AT44: =AC33 -> 0.7 | AU44: =AC37 -> 1
A45: 45 | L45: =IF($AK$38=0,TRANSPOSE(MMULT($O$10:$Q$12,TRANSPOSE(C45:E45))),TRANSPOSE(MMULT($O$10:$Q$12,TRANSPOSE(Y45:AA45)))) ->  | Q45: =TRANSPOSE(MMULT($AE$10:$AG$12,TRANSPOSE(F45:H45))) ->  | V45: =TRANSPOSE(MMULT($AO$40:$AQ$42,TRANSPOSE(C45:E45))) ->  | AK45: helyvektor | AL45: origo | AM45: r | AN45: x | AO45: y | AP45: z | AQ45: e | AR45: n | AS45: b | AT45: v | AU45: a
A46: 46 | L46: =IF($AK$38=0,TRANSPOSE(MMULT($O$10:$Q$12,TRANSPOSE(C46:E46))),TRANSPOSE(MMULT($O$10:$Q$12,TRANSPOSE(Y46:AA46)))) ->  | Q46: =TRANSPOSE(MMULT($AE$10:$AG$12,TRANSPOSE(F46:H46))) ->  | V46: =TRANSPOSE(MMULT($AO$40:$AQ$42,TRANSPOSE(C46:E46))) ->  | AB46: an_vektor | AK46: =C15 -> 3 | AL46: =-1*AM46 -> -1.788854382 | AM46: =MMULT(AO40:AQ42,AK46:AK48) -> 1.788854382 | AN46: =MMULT(AO40:AQ42,AK35:AK37) -> 0 | AO46: =MMULT(AO40:AQ42,AL35:AL37) -> 0.4472135955 | AP46: =MMULT(AO40:AQ42,AM35:AM37) -> 0.894427191 | AQ46: =MMULT(AO40:AQ42,AK40:AK42) -> 1 | AR46: =MMULT(AO40:AQ42,AL40:AL42) -> 0 | AS46: =MMULT(AO40:AQ42,AM40:AM42) -> 0 | AT46: =$AT$44*MMULT($AO$40:$AQ$42,TRANSPOSE($F$15:$H$15)) -> 7.826237921 | AU46: =$AU$44*MMULT($AO$40:$AQ$42,TRANSPOSE($I$15:$K$15)) -> -44.72135955
A47: 47 | L47: =IF($AK$38=0,TRANSPOSE(MMULT($O$10:$Q$12,TRANSPOSE(C47:E47))),TRANSPOSE(MMULT($O$10:$Q$12,TRANSPOSE(Y47:AA47)))) ->  | Q47: =TRANSPOSE(MMULT($AE$10:$AG$12,TRANSPOSE(F47:H47))) ->  | V47: =TRANSPOSE(MMULT($AO$40:$AQ$42,TRANSPOSE(C47:E47))) ->  | AB47: =AB38 -> 3 | AC47: =AC38 -> 4 | AD47: =AD38 -> 0 | AE47: =TRANSPOSE(MMULT(O10:Q12,TRANSPOSE(AB47:AD47))) -> 1.135814943 | AF47: -2.434641884 | AG47: 4.216923441 | AH47: =IF(AH5=0,NA(),$X$5+$X$4*IF($U$8=1,AE47,(AE47*$U$6)/($U$6+$U$7+AF47))) -> 1.135814943 | AI47: =IF(AH5=0,NA(),$X$6+$X$4*IF($U$8=1,AF47,(AG47*$U$6)/($U$6+$U$7+AF47))) -> -2.434641884 | AK47: =D15 -> 4 | AL47: =-1*AM47 -> 3 | AM47: -3 | AN47: -1 | AO47: 0 | AP47: 0 | AQ47: 0 | AR47: 0.6425294053 | AS47: -0.7662610282 | AT47: 0 | AU47: 75
A48: 48 | L48: =IF($AK$38=0,TRANSPOSE(MMULT($O$10:$Q$12,TRANSPOSE(C48:E48))),TRANSPOSE(MMULT($O$10:$Q$12,TRANSPOSE(Y48:AA48)))) ->  | Q48: =TRANSPOSE(MMULT($AE$10:$AG$12,TRANSPOSE(F48:H48))) ->  | V48: =TRANSPOSE(MMULT($AO$40:$AQ$42,TRANSPOSE(C48:E48))) ->  | AB48: =AB47+AB49*AR50 -> 2.4 | AC48: =AC47+AC49*AR51 -> 3.36 | AD48: =AD47+AD49*AR52 -> 0.32 | AE48: =TRANSPOSE(MMULT(O10:Q12,TRANSPOSE(AB48:AD48))) -> 1.031219066 | AF48: -1.722008387 | AG48: 3.622606017 | AH48: =IF(AH5=0,NA(),$X$5+$X$4*IF($U$8=1,AE48,(AE48*$U$6)/($U$6+$U$7+AF48))) -> 1.031219066 | AI48: =IF(AH5=0,NA(),$X$6+$X$4*IF($U$8=1,AF48,(AG48*$U$6)/($U$6+$U$7+AF48))) -> -1.722008387 | AK48: =E15 -> 0 | AL48: 3.577708764 | AM48: -3.577708764 | AN48: 0 | AO48: -0.894427191 | AP48: 0.4472135955 | AQ48: 0 | AR48: 0.7662610282 | AS48: 0.6425294053 | AT48: 0 | AU48: 89.4427191
A49: 49 | L49: =IF($AK$38=0,TRANSPOSE(MMULT($O$10:$Q$12,TRANSPOSE(C49:E49))),TRANSPOSE(MMULT($O$10:$Q$12,TRANSPOSE(Y49:AA49)))) ->  | Q49: =TRANSPOSE(MMULT($AE$10:$AG$12,TRANSPOSE(F49:H49))) ->  | V49: =TRANSPOSE(MMULT($AO$40:$AQ$42,TRANSPOSE(C49:E49))) ->  | AB49: =MMULT(TRANSPOSE(AV50:AV52),$AR$50:$AR$52) -> 0.9338094024 | AC49: 0.9338094024 | AD49: 0.9338094024
A50: 50 | L50: =IF($AK$38=0,TRANSPOSE(MMULT($O$10:$Q$12,TRANSPOSE(C50:E50))),TRANSPOSE(MMULT($O$10:$Q$12,TRANSPOSE(Y50:AA50)))) ->  | Q50: =TRANSPOSE(MMULT($AE$10:$AG$12,TRANSPOSE(F50:H50))) ->  | V50: =TRANSPOSE(MMULT($AO$40:$AQ$42,TRANSPOSE(C50:E50))) ->  | AQ50: =IF($AJ$4=0,AB15,AQ46) -> 0 | AR50: =IF($AJ$4=0,AH15,AR46) -> -0.6425294053 | AS50: =IF($AJ$4=0,AE15,AS46) -> 0.7662610282 | AU50: =IF(AJ4=0,I15,AU46) -> -75 | AV50: =AU50/($AU$50^2+$AU$51^2+$AU$52^2)^0.5 -> -0.6
A51: 51 | L51: =IF($AK$38=0,TRANSPOSE(MMULT($O$10:$Q$12,TRANSPOSE(C51:E51))),TRANSPOSE(MMULT($O$10:$Q$12,TRANSPOSE(Y51:AA51)))) ->  | Q51: =TRANSPOSE(MMULT($AE$10:$AG$12,TRANSPOSE(F51:H51))) ->  | V51: =TRANSPOSE(MMULT($AO$40:$AQ$42,TRANSPOSE(C51:E51))) ->  | AB51: =AB48 -> 2.4 | AC51: =AC48 -> 3.36 | AD51: 0.32 | AE51: =TRANSPOSE(MMULT(O10:Q12,TRANSPOSE(AB51:AD51))) -> 1.031219066 | AF51: -1.722008387 | AG51: 3.622606017 | AH51: =IF(AH6=0,NA(),$X$5+$X$4*IF($U$8=1,AE51,(AE51*$U$6)/($U$6+$U$7+AF51))) -> 1.031219066 | AI51: =IF(AH6=0,NA(),$X$6+$X$4*IF($U$8=1,AF51,(AG51*$U$6)/($U$6+$U$7+AF51))) -> -1.722008387 | AQ51: =IF($AJ$4=0,AC15,AQ47) -> 0.4472135955 | AR51: =IF($AJ$4=0,AI15,AR47) -> -0.685364699 | AS51: =IF($AJ$4=0,AF15,AS47) -> -0.5746957711 | AU51: =IF(AJ4=0,J15,AU47) -> -100 | AV51: =AU51/($AU$50^2+$AU$51^2+$AU$52^2)^0.5 -> -0.8
A52: 52 | C52: =(C$4+F$4*$B52+I$4*$B52^2+L$4*$B52^3+O$4*$B52^4)+(C$5+F$5*$B52+I$5*$B52^2+L$5*$B52^3+O$5*$B52^5)*(COS(C$6+F$6*$B52+I$6*$B52^2+L$6*$B52^3+O$6*$B52^4))+(C$7+F$7*$B52+I$7*$B52^2+L$7*$B52^3+O$7*$B52^4)*(SIN(C$8+F$8*$B52+I$8*$B52^2+L$8*$B52^3+O$8*$B52^4)) ->  | D52: =(D$4+G$4*$B52+J$4*$B52^2+M$4*$B52^3+P$4*$B52^4)+(D$5+G$5*$B52+J$5*$B52^2+M$5*$B52^3+P$5*$B52^5)*(COS(D$6+G$6*$B52+J$6*$B52^2+M$6*$B52^3+P$6*$B52^4))+(D$7+G$7*$B52+J$7*$B52^2+M$7*$B52^3+P$7*$B52^4)*(SIN(D$8+G$8*$B52+J$8*$B52^2+M$8*$B52^3+P$8*$B52^4)) ->  | E52: =(E$4+H$4*$B52+K$4*$B52^2+N$4*$B52^3+Q$4*$B52^4)+(E$5+H$5*$B52+K$5*$B52^2+N$5*$B52^3+Q$5*$B52^5)*(COS(E$6+H$6*$B52+K$6*$B52^2+N$6*$B52^3+Q$6*$B52^4))+(E$7+H$7*$B52+K$7*$B52^2+N$7*$B52^3+Q$7*$B52^4)*(SIN(E$8+H$8*$B52+K$8*$B52^2+N$8*$B52^3+Q$8*$B52^4)) ->  | L52: =IF($AK$38=0,TRANSPOSE(MMULT($O$10:$Q$12,TRANSPOSE(C52:E52))),TRANSPOSE(MMULT($O$10:$Q$12,TRANSPOSE(Y52:AA52)))) ->  | Q52: =TRANSPOSE(MMULT($AE$10:$AG$12,TRANSPOSE(F52:H52))) ->  | V52: =TRANSPOSE(MMULT($AO$40:$AQ$42,TRANSPOSE(C52:E52))) ->  | AB52: =AB39 -> 2.4 | AC52: =AC39 -> 3.2 | AD52: 0 | AE52: =TRANSPOSE(MMULT(O10:Q12,TRANSPOSE(AB52:AD52))) -> 0.9086519547 | AF52: -1.947713507 | AG52: 3.373538753 | AH52: =IF(AH6=0,NA(),$X$5+$X$4*IF($U$8=1,AE52,(AE52*$U$6)/($U$6+$U$7+AF52))) -> 0.9086519547 | AI52: =IF(AH6=0,NA(),$X$6+$X$4*IF($U$8=1,AF52,(AG52*$U$6)/($U$6+$U$7+AF52))) -> -1.947713507 | AQ52: =IF($AJ$4=0,AD15,AQ48) -> 0.894427191 | AR52: =IF($AJ$4=0,AJ15,AR48) -> 0.3426823495 | AS52: =IF($AJ$4=0,AG15,AS48) -> 0.2873478856 | AU52: =IF(AJ4=0,K15,AU48) -> 0 | AV52: 0
A53: 53 | L53: =IF($AK$38=0,TRANSPOSE(MMULT($O$10:$Q$12,TRANSPOSE(C53:E53))),TRANSPOSE(MMULT($O$10:$Q$12,TRANSPOSE(Y53:AA53)))) ->  | Q53: =TRANSPOSE(MMULT($AE$10:$AG$12,TRANSPOSE(F53:H53))) ->  | V53: =TRANSPOSE(MMULT($AO$40:$AQ$42,TRANSPOSE(C53:E53))) ->  | AB53: =AB43 -> 3 | AC53: =AC43 -> 3.84 | AD53: -0.32 | AE53: =TRANSPOSE(MMULT(O10:Q12,TRANSPOSE(AB53:AD53))) -> 1.013247833 | AF53: -2.660347004 | AG53: 3.967856178 | AH53: =IF(AH6=0,NA(),$X$5+$X$4*IF($U$8=1,AE53,(AE53*$U$6)/($U$6+$U$7+AF53))) -> 1.013247833 | AI53: =IF(AH6=0,NA(),$X$6+$X$4*IF($U$8=1,AF53,(AG53*$U$6)/($U$6+$U$7+AF53))) -> -2.660347004
A54: 54 | L54: =IF($AK$38=0,TRANSPOSE(MMULT($O$10:$Q$12,TRANSPOSE(C54:E54))),TRANSPOSE(MMULT($O$10:$Q$12,TRANSPOSE(Y54:AA54)))) ->  | Q54: =TRANSPOSE(MMULT($AE$10:$AG$12,TRANSPOSE(F54:H54))) ->  | V54: =TRANSPOSE(MMULT($AO$40:$AQ$42,TRANSPOSE(C54:E54))) ->  | AP54: e | AQ54: =TRANSPOSE(AQ50:AQ52) -> 0 | AR54: 0.4472135955 | AS54: 0.894427191
A55: 55 | L55: =IF($AK$38=0,TRANSPOSE(MMULT($O$10:$Q$12,TRANSPOSE(C55:E55))),TRANSPOSE(MMULT($O$10:$Q$12,TRANSPOSE(Y55:AA55)))) ->  | Q55: =TRANSPOSE(MMULT($AE$10:$AG$12,TRANSPOSE(F55:H55))) ->  | V55: =TRANSPOSE(MMULT($AO$40:$AQ$42,TRANSPOSE(C55:E55))) ->  | AE55: axonometrikus | AH55: perspektívikus | AP55: n | AQ55: =TRANSPOSE(AR50:AR52) -> -0.6425294053 | AR55: -0.685364699 | AS55: 0.3426823495
A56: 56 | L56: =IF($AK$38=0,TRANSPOSE(MMULT($O$10:$Q$12,TRANSPOSE(C56:E56))),TRANSPOSE(MMULT($O$10:$Q$12,TRANSPOSE(Y56:AA56)))) ->  | Q56: =TRANSPOSE(MMULT($AE$10:$AG$12,TRANSPOSE(F56:H56))) ->  | V56: =TRANSPOSE(MMULT($AO$40:$AQ$42,TRANSPOSE(C56:E56))) ->  | AB56: e: | AC56: =HOME!S46 -> 1 | AE56: x | AF56: y | AG56: z | AH56: u | AI56: v | AP56: b | AQ56: =TRANSPOSE(AS50:AS52) -> 0.7662610282 | AR56: -0.5746957711 | AS56: 0.2873478856
A57: 57 | L57: =IF($AK$38=0,TRANSPOSE(MMULT($O$10:$Q$12,TRANSPOSE(C57:E57))),TRANSPOSE(MMULT($O$10:$Q$12,TRANSPOSE(Y57:AA57)))) ->  | Q57: =TRANSPOSE(MMULT($AE$10:$AG$12,TRANSPOSE(F57:H57))) ->  | V57: =TRANSPOSE(MMULT($AO$40:$AQ$42,TRANSPOSE(C57:E57))) ->  | AB57: =IF(AJ4=1,0,C15) -> 3 | AC57: =IF(AJ4=1,0,D15) -> 4 | AD57: =IF(AJ4=1,0,E15) -> 0 | AE57: =TRANSPOSE(MMULT(O10:Q12,TRANSPOSE(AB57:AD57))) -> 1.135814943 | AF57: -2.434641884 | AG57: 4.216923441 | AH57: =IF(AB5=0,NA(),$X$5+$X$4*IF($U$8=1,AE57,(AE57*$U$6)/($U$6+$U$7+AF57))) -> 1.135814943 | AI57: =IF(AB5=0,NA(),$X$6+$X$4*IF($U$8=1,AF57,(AG57*$U$6)/($U$6+$U$7+AF57))) -> -2.434641884
A58: 58 | L58: =IF($AK$38=0,TRANSPOSE(MMULT($O$10:$Q$12,TRANSPOSE(C58:E58))),TRANSPOSE(MMULT($O$10:$Q$12,TRANSPOSE(Y58:AA58)))) ->  | Q58: =TRANSPOSE(MMULT($AE$10:$AG$12,TRANSPOSE(F58:H58))) ->  | V58: =TRANSPOSE(MMULT($AO$40:$AQ$42,TRANSPOSE(C58:E58))) ->  | AB58: =IF(AJ4=1,$AC$56*AQ46,AB57+AC56*AB15) -> 3 | AC58: =IF(AJ4=1,AC56*AQ47,AC57+AC56*AC15) -> 4.447213595 | AD58: =IF(AJ4=1,AC56*AQ48,AD57+AC56*AD15) -> 0.894427191 | AE58: =TRANSPOSE(MMULT(O10:Q12,TRANSPOSE(AB58:AD58))) -> 1.478400433 | AF58: -1.803776894 | AG58: 4.913087608 | AH58: =IF(AB5=0,NA(),$X$5+$X$4*IF($U$8=1,AE58,(AE58*$U$6)/($U$6+$U$7+AF58))) -> 1.478400433 | AI58: =IF(AB5=0,NA(),$X$6+$X$4*IF($U$8=1,AF58,(AG58*$U$6)/($U$6+$U$7+AF58))) -> -1.803776894
A59: 59 | L59: =IF($AK$38=0,TRANSPOSE(MMULT($O$10:$Q$12,TRANSPOSE(C59:E59))),TRANSPOSE(MMULT($O$10:$Q$12,TRANSPOSE(Y59:AA59)))) ->  | Q59: =TRANSPOSE(MMULT($AE$10:$AG$12,TRANSPOSE(F59:H59))) ->  | V59: =TRANSPOSE(MMULT($AO$40:$AQ$42,TRANSPOSE(C59:E59))) ->  | AE59: axonometrikus | AH59: perspektívikus
A60: 60 | L60: =IF($AK$38=0,TRANSPOSE(MMULT($O$10:$Q$12,TRANSPOSE(C60:E60))),TRANSPOSE(MMULT($O$10:$Q$12,TRANSPOSE(Y60:AA60)))) ->  | Q60: =TRANSPOSE(MMULT($AE$10:$AG$12,TRANSPOSE(F60:H60))) ->  | V60: =TRANSPOSE(MMULT($AO$40:$AQ$42,TRANSPOSE(C60:E60))) ->  | AB60: b: | AE60: x | AF60: y | AG60: z | AH60: u | AI60: v
A61: 61 | L61: =IF($AK$38=0,TRANSPOSE(MMULT($O$10:$Q$12,TRANSPOSE(C61:E61))),TRANSPOSE(MMULT($O$10:$Q$12,TRANSPOSE(Y61:AA61)))) ->  | Q61: =TRANSPOSE(MMULT($AE$10:$AG$12,TRANSPOSE(F61:H61))) ->  | V61: =TRANSPOSE(MMULT($AO$40:$AQ$42,TRANSPOSE(C61:E61))) ->  | AB61: =IF(AJ4=1,0,C15) -> 3 | AC61: =IF(AJ4=1,0,D15) -> 4 | AD61: =IF(AJ4=1,0,E15) -> 0 | AE61: =TRANSPOSE(MMULT(O10:Q12,TRANSPOSE(AB61:AD61))) -> 1.135814943 | AF61: -2.434641884 | AG61: 4.216923441 | AH61: =IF(AD5=0,NA(),$X$5+$X$4*IF($U$8=1,AE61,(AE61*$U$6)/($U$6+$U$7+AF61))) -> 1.135814943 | AI61: =IF(AD5=0,NA(),$X$6+$X$4*IF($U$8=1,AF61,(AG61*$U$6)/($U$6+$U$7+AF61))) -> -2.434641884
A62: 62 | L62: =IF($AK$38=0,TRANSPOSE(MMULT($O$10:$Q$12,TRANSPOSE(C62:E62))),TRANSPOSE(MMULT($O$10:$Q$12,TRANSPOSE(Y62:AA62)))) ->  | Q62: =TRANSPOSE(MMULT($AE$10:$AG$12,TRANSPOSE(F62:H62))) ->  | V62: =TRANSPOSE(MMULT($AO$40:$AQ$42,TRANSPOSE(C62:E62))) ->  | AB62: =IF(AJ4=1,AC56*AS46,AB61+AC56*AE15) -> 3.766261028 | AC62: =IF(AJ4=1,AC56*AS47,AC61+AC56*AF15) -> 3.425304229 | AD62: =IF(AJ4=1,AC56*AS48,AD61+AC56*AG15) -> 0.2873478856 | AE62: =TRANSPOSE(MMULT(O10:Q12,TRANSPOSE(AB62:AD62))) -> 0.2030293468 | AF62: -2.294582656 | AG62: 4.549029514 | AH62: =IF(AD5=0,NA(),$X$5+$X$4*IF($U$8=1,AE62,(AE62*$U$6)/($U$6+$U$7+AF62))) -> 0.2030293468 | AI62: =IF(AD5=0,NA(),$X$6+$X$4*IF($U$8=1,AF62,(AG62*$U$6)/($U$6+$U$7+AF62))) -> -2.294582656
A63: 63 | L63: =IF($AK$38=0,TRANSPOSE(MMULT($O$10:$Q$12,TRANSPOSE(C63:E63))),TRANSPOSE(MMULT($O$10:$Q$12,TRANSPOSE(Y63:AA63)))) ->  | Q63: =TRANSPOSE(MMULT($AE$10:$AG$12,TRANSPOSE(F63:H63))) ->  | V63: =TRANSPOSE(MMULT($AO$40:$AQ$42,TRANSPOSE(C63:E63))) ->  | AE63: axonometrikus | AH63: perspektívikus
A64: 64 | L64: =IF($AK$38=0,TRANSPOSE(MMULT($O$10:$Q$12,TRANSPOSE(C64:E64))),TRANSPOSE(MMULT($O$10:$Q$12,TRANSPOSE(Y64:AA64)))) ->  | Q64: =TRANSPOSE(MMULT($AE$10:$AG$12,TRANSPOSE(F64:H64))) ->  | V64: =TRANSPOSE(MMULT($AO$40:$AQ$42,TRANSPOSE(C64:E64))) ->  | AB64: n: | AE64: x | AF64: y | AG64: z | AH64: u | AI64: v
A65: 65 | L65: =IF($AK$38=0,TRANSPOSE(MMULT($O$10:$Q$12,TRANSPOSE(C65:E65))),TRANSPOSE(MMULT($O$10:$Q$12,TRANSPOSE(Y65:AA65)))) ->  | Q65: =TRANSPOSE(MMULT($AE$10:$AG$12,TRANSPOSE(F65:H65))) ->  | V65: =TRANSPOSE(MMULT($AO$40:$AQ$42,TRANSPOSE(C65:E65))) ->  | AB65: =IF(AJ4=1,0,C15) -> 3 | AC65: =IF(AJ4=1,0,D15) -> 4 | AD65: =IF(AJ4=1,0,E15) -> 0 | AE65: =TRANSPOSE(MMULT(O10:Q12,TRANSPOSE(AB65:AD65))) -> 1.135814943 | AF65: -2.434641884 | AG65: 4.216923441 | AH65: =IF(AF5=0,NA(),$X$5+$X$4*IF($U$8=1,AE65,(AE65*$U$6)/($U$6+$U$7+AF65))) -> 1.135814943 | AI65: =IF(AF5=0,NA(),$X$6+$X$4*IF($U$8=1,AF65,(AG65*$U$6)/($U$6+$U$7+AF65))) -> -2.434641884
A66: 66 | L66: =IF($AK$38=0,TRANSPOSE(MMULT($O$10:$Q$12,TRANSPOSE(C66:E66))),TRANSPOSE(MMULT($O$10:$Q$12,TRANSPOSE(Y66:AA66)))) ->  | Q66: =TRANSPOSE(MMULT($AE$10:$AG$12,TRANSPOSE(F66:H66))) ->  | V66: =TRANSPOSE(MMULT($AO$40:$AQ$42,TRANSPOSE(C66:E66))) ->  | AB66: =IF(AJ4=1,AC56*AR46,AB65+AC56*AH15) -> 2.357470595 | AC66: =IF(AJ4=1,AC56*AR47,AC65+AC56*AI15) -> 3.314635301 | AD66: =IF(AJ4=1,AC56*AR48,AD65+AC56*AJ15) -> 0.3426823495 | AE66: =TRANSPOSE(MMULT(O10:Q12,TRANSPOSE(AB66:AD66))) -> 1.023805065 | AF66: -1.671495255 | AG66: 3.580479406 | AH66: =IF(AF5=0,NA(),$X$5+$X$4*IF($U$8=1,AE66,(AE66*$U$6)/($U$6+$U$7+AF66))) -> 1.023805065 | AI66: =IF(AF5=0,NA(),$X$6+$X$4*IF($U$8=1,AF66,(AG66*$U$6)/($U$6+$U$7+AF66))) -> -1.671495255
A67: 67 | L67: =IF($AK$38=0,TRANSPOSE(MMULT($O$10:$Q$12,TRANSPOSE(C67:E67))),TRANSPOSE(MMULT($O$10:$Q$12,TRANSPOSE(Y67:AA67)))) ->  | Q67: =TRANSPOSE(MMULT($AE$10:$AG$12,TRANSPOSE(F67:H67))) ->  | V67: =TRANSPOSE(MMULT($AO$40:$AQ$42,TRANSPOSE(C67:E67))) -> 
A68: 68 | L68: =IF($AK$38=0,TRANSPOSE(MMULT($O$10:$Q$12,TRANSPOSE(C68:E68))),TRANSPOSE(MMULT($O$10:$Q$12,TRANSPOSE(Y68:AA68)))) ->  | Q68: =TRANSPOSE(MMULT($AE$10:$AG$12,TRANSPOSE(F68:H68))) ->  | V68: =TRANSPOSE(MMULT($AO$40:$AQ$42,TRANSPOSE(C68:E68))) ->  | AB68: görbület: | AC68: =(((G15*K15-H15*J15)^2+(F15*K15-H15*I15)^2+(F15*J15-G15*I15)^2)^0.5)/(((F15^2+G15^2+H15^2)^0.5)^3) -> 0.9338094024
A69: 69 | L69: =IF($AK$38=0,TRANSPOSE(MMULT($O$10:$Q$12,TRANSPOSE(C69:E69))),TRANSPOSE(MMULT($O$10:$Q$12,TRANSPOSE(Y69:AA69)))) ->  | Q69: =TRANSPOSE(MMULT($AE$10:$AG$12,TRANSPOSE(F69:H69))) ->  | V69: =TRANSPOSE(MMULT($AO$40:$AQ$42,TRANSPOSE(C69:E69))) ->  | AB69: R= | AC69: =1/AC68 -> 1.070882342
A70: 70 | L70: =IF($AK$38=0,TRANSPOSE(MMULT($O$10:$Q$12,TRANSPOSE(C70:E70))),TRANSPOSE(MMULT($O$10:$Q$12,TRANSPOSE(Y70:AA70)))) ->  | Q70: =TRANSPOSE(MMULT($AE$10:$AG$12,TRANSPOSE(F70:H70))) ->  | V70: =TRANSPOSE(MMULT($AO$40:$AQ$42,TRANSPOSE(C70:E70))) -> 
A71: 71 | L71: =IF($AK$38=0,TRANSPOSE(MMULT($O$10:$Q$12,TRANSPOSE(C71:E71))),TRANSPOSE(MMULT($O$10:$Q$12,TRANSPOSE(Y71:AA71)))) ->  | Q71: =TRANSPOSE(MMULT($AE$10:$AG$12,TRANSPOSE(F71:H71))) ->  | V71: =TRANSPOSE(MMULT($AO$40:$AQ$42,TRANSPOSE(C71:E71))) ->  | AB71: simuló kör
A72: 72 | L72: =IF($AK$38=0,TRANSPOSE(MMULT($O$10:$Q$12,TRANSPOSE(C72:E72))),TRANSPOSE(MMULT($O$10:$Q$12,TRANSPOSE(Y72:AA72)))) ->  | Q72: =TRANSPOSE(MMULT($AE$10:$AG$12,TRANSPOSE(F72:H72))) ->  | V72: =TRANSPOSE(MMULT($AO$40:$AQ$42,TRANSPOSE(C72:E72))) ->  | AB72: x | AC72: y | AD72: z
A73: 73 | L73: =IF($AK$38=0,TRANSPOSE(MMULT($O$10:$Q$12,TRANSPOSE(C73:E73))),TRANSPOSE(MMULT($O$10:$Q$12,TRANSPOSE(Y73:AA73)))) ->  | Q73: =TRANSPOSE(MMULT($AE$10:$AG$12,TRANSPOSE(F73:H73))) ->  | V73: =TRANSPOSE(MMULT($AO$40:$AQ$42,TRANSPOSE(C73:E73))) ->  | AB73: =C15+AH15*AC69 -> 2.311926606 | AC73: =D15+AI15*AC69 -> 3.266055046 | AD73: =E15+AJ15*AC69 -> 0.3669724771 | AE73: =TRANSPOSE(MMULT(O10:Q12,TRANSPOSE(AB73:AD73))) -> 1.015865542 | AF73: -1.617401635 | AG73: 3.535366762 | AH73: =IF($U$8=1,AE73,(AE73*$U$6)/($U$6+$U$7+AF73)) -> 1.015865542 | AI73: =IF($U$8=1,AF73,(AG73*$U$6)/($U$6+$U$7+AF73)) -> -1.617401635
A74: 74 | L74: =IF($AK$38=0,TRANSPOSE(MMULT($O$10:$Q$12,TRANSPOSE(C74:E74))),TRANSPOSE(MMULT($O$10:$Q$12,TRANSPOSE(Y74:AA74)))) ->  | Q74: =TRANSPOSE(MMULT($AE$10:$AG$12,TRANSPOSE(F74:H74))) ->  | V74: =TRANSPOSE(MMULT($AO$40:$AQ$42,TRANSPOSE(C74:E74))) -> 
A75: 75 | L75: =IF($AK$38=0,TRANSPOSE(MMULT($O$10:$Q$12,TRANSPOSE(C75:E75))),TRANSPOSE(MMULT($O$10:$Q$12,TRANSPOSE(Y75:AA75)))) ->  | Q75: =TRANSPOSE(MMULT($AE$10:$AG$12,TRANSPOSE(F75:H75))) ->  | V75: =TRANSPOSE(MMULT($AO$40:$AQ$42,TRANSPOSE(C75:E75))) ->  | AC75: 0 | AD75: =$AC$69*COS(AC75*PI()/180) -> 1.070882342 | AE75: =$AC$69*SIN(AC75*PI()/180) -> 0 | AF75: =IF($AF$6=1,0,NA()) -> 0 | AG75: =TRANSPOSE(MMULT($AK$40:$AM$42,TRANSPOSE(AD75:AF75))) -> 0 | AH75: 0.4789131426 | AI75: 0.9578262852 | AJ75: =$AB$73+AG75 -> 2.311926606 | AK75: =$AC$73+AH75 -> 3.744968188 | AL75: =$AD$73+AI75 -> 1.324798762 | AM75: =TRANSPOSE(MMULT($O$10:$Q$12,TRANSPOSE(AJ75:AL75))) -> 1.382734294 | AN75: -0.9418194566 | AO75: 4.280876675 | AP75: =$X$5+$X$4*IF($U$8=1,AM75,(AM75*$U$6)/($U$6+$U$7+AN75)) -> 1.382734294 | AQ75: =$X$6+$X$4*IF($U$8=1,AN75,(AO75*$U$6)/($U$6+$U$7+AN75)) -> -0.9418194566
A76: 76 | L76: =IF($AK$38=0,TRANSPOSE(MMULT($O$10:$Q$12,TRANSPOSE(C76:E76))),TRANSPOSE(MMULT($O$10:$Q$12,TRANSPOSE(Y76:AA76)))) ->  | Q76: =TRANSPOSE(MMULT($AE$10:$AG$12,TRANSPOSE(F76:H76))) ->  | V76: =TRANSPOSE(MMULT($AO$40:$AQ$42,TRANSPOSE(C76:E76))) ->  | AC76: 10 | AD76: 1.054613233 | AE76: 0.1859567672 | AF76: 0 | AG76: =TRANSPOSE(MMULT($AK$40:$AM$42,TRANSPOSE(AD76:AF76))) -> -0.1194826911 | AH76: 0.3441891721 | AI76: 1.006998854 | AJ76: 2.192443914 | AK76: 3.610244218 | AL76: 1.373971331 | AM76: =TRANSPOSE(MMULT($O$10:$Q$12,TRANSPOSE(AJ76:AL76))) -> 1.356331738 | AN76: -0.8101707879 | AO76: 4.151199629 | AP76: =$X$5+$X$4*IF($U$8=1,AM76,(AM76*$U$6)/($U$6+$U$7+AN76)) -> 1.356331738 | AQ76: =$X$6+$X$4*IF($U$8=1,AN76,(AO76*$U$6)/($U$6+$U$7+AN76)) -> -0.8101707879
A77: 77 | L77: =IF($AK$38=0,TRANSPOSE(MMULT($O$10:$Q$12,TRANSPOSE(C77:E77))),TRANSPOSE(MMULT($O$10:$Q$12,TRANSPOSE(Y77:AA77)))) ->  | Q77: =TRANSPOSE(MMULT($AE$10:$AG$12,TRANSPOSE(F77:H77))) ->  | V77: =TRANSPOSE(MMULT($AO$40:$AQ$42,TRANSPOSE(C77:E77))) ->  | AC77: 20 | AD77: 1.006300235 | AE77: 0.3662633322 | AF77: 0 | AG77: =TRANSPOSE(MMULT($AK$40:$AM$42,TRANSPOSE(AD77:AF77))) -> -0.235334961 | AH77: 0.1990071877 | AI77: 1.025574271 | AJ77: 2.076591645 | AK77: 3.465062234 | AL77: 1.392546748 | AM77: =TRANSPOSE(MMULT($O$10:$Q$12,TRANSPOSE(AJ77:AL77))) -> 1.31958429 | AN77: -0.7030494201 | AO77: 4.002810813 | AP77: 1.31958429 | AQ77: -0.7030494201
A78: 78 | L78: =IF($AK$38=0,TRANSPOSE(MMULT($O$10:$Q$12,TRANSPOSE(C78:E78))),TRANSPOSE(MMULT($O$10:$Q$12,TRANSPOSE(Y78:AA78)))) ->  | Q78: =TRANSPOSE(MMULT($AE$10:$AG$12,TRANSPOSE(F78:H78))) ->  | V78: =TRANSPOSE(MMULT($AO$40:$AQ$42,TRANSPOSE(C78:E78))) ->  | AC78: 30 | AD78: 0.9274113128 | AE78: 0.5354411711 | AF78: 0 | AG78: =TRANSPOSE(MMULT($AK$40:$AM$42,TRANSPOSE(AD78:AF78))) -> -0.3440366972 | AH78: 0.04777847064 | AI78: 1.012988134 | AJ78: 1.967889908 | AK78: 3.313833517 | AL78: 1.379960611 | AM78: =TRANSPOSE(MMULT($O$10:$Q$12,TRANSPOSE(AJ78:AL78))) -> 1.2736085 | AN78: -0.6237101816 | AO78: 3.840218946 | AP78: 1.2736085 | AQ78: -0.6237101816
A79: 79 | L79: =IF($AK$38=0,TRANSPOSE(MMULT($O$10:$Q$12,TRANSPOSE(C79:E79))),TRANSPOSE(MMULT($O$10:$Q$12,TRANSPOSE(Y79:AA79)))) ->  | Q79: =TRANSPOSE(MMULT($AE$10:$AG$12,TRANSPOSE(F79:H79))) ->  | V79: =TRANSPOSE(MMULT($AO$40:$AQ$42,TRANSPOSE(C79:E79))) ->  | AC79: 40 | AD79: 0.8203434675 | AE79: 0.688349901 | AF79: 0 | AG79: =TRANSPOSE(MMULT($AK$40:$AM$42,TRANSPOSE(AD79:AF79))) -> -0.4422850525 | AH79: -0.1049019711 | AI79: 0.9696228646 | AJ79: 1.869641553 | AK79: 3.161153075 | AL79: 1.336595342 | AM79: =TRANSPOSE(MMULT($O$10:$Q$12,TRANSPOSE(AJ79:AL79))) -> 1.219801322 | AN79: -0.5745637551 | AO79: 3.668364299 | AP79: 1.219801322 | AQ79: -0.5745637551
A80: 80 | F80: =(F$7+2*I$7*$B80+3*L$7*$B80^2+4*O$7*$B80^3)*SIN(O$8*$B80^4+L$8*$B80^3+I$8*$B80^2+F$8*$B80+C$8)+(F$8+2*I$8*$B80+3*L$8*$B80^2+4*O$8*$B80^3)*(C$7+F$7*$B80+I$7*$B80^2+L$7*$B80^3+O$7*$B80^4)*COS(O$8*$B80^4+L$8*$B80^3+I$8*$B80^2+F$8*$B80+C$8)-(F$6+2*I$6*$B80+3*L$6*$B80^2+4*O$6*$B80^3)*(C$5+F$5*$B80+I$5*$B80^2+L$5*$B80^3+O$5*$B80^4)*SIN(O$6*$B80^4+L$6*$B80^3+I$6*$B80^2+F$6*$B80+C$6)+(F$5+2*I$5*$B80+3*L$5*$B80^2+4*O$5*$B80^3)*COS(O$6*$B80^4+L$6*$B80^3+I$6*$B80^2+F$6*$B80+C$6)+4*O$4*$B80^3+3*L$4*$B80^2+2*I$4*$B80+F$4 ->  | G80: =(G$7+2*J$7*$B80+3*M$7*$B80^2+4*P$7*$B80^3)*SIN(P$8*$B80^4+M$8*$B80^3+J$8*$B80^2+G$8*$B80+D$8)+(G$8+2*J$8*$B80+3*M$8*$B80^2+4*P$8*$B80^3)*(D$7+G$7*$B80+J$7*$B80^2+M$7*$B80^3+P$7*$B80^4)*COS(P$8*$B80^4+M$8*$B80^3+J$8*$B80^2+G$8*$B80+D$8)-(G$6+2*J$6*$B80+3*M$6*$B80^2+4*P$6*$B80^3)*(D$5+G$5*$B80+J$5*$B80^2+M$5*$B80^3+P$5*$B80^4)*SIN(P$6*$B80^4+M$6*$B80^3+J$6*$B80^2+G$6*$B80+D$6)+(G$5+2*J$5*$B80+3*M$5*$B80^2+4*P$5*$B80^3)*COS(P$6*$B80^4+M$6*$B80^3+J$6*$B80^2+G$6*$B80+D$6)+4*P$4*$B80^3+3*M$4*$B80^2+2*J$4*$B80+G$4 ->  | H80: =(H$7+2*K$7*$B80+3*N$7*$B80^2+4*Q$7*$B80^3)*SIN(Q$8*$B80^4+N$8*$B80^3+K$8*$B80^2+H$8*$B80+E$8)+(H$8+2*K$8*$B80+3*N$8*$B80^2+4*Q$8*$B80^3)*(E$7+H$7*$B80+K$7*$B80^2+N$7*$B80^3+Q$7*$B80^4)*COS(Q$8*$B80^4+N$8*$B80^3+K$8*$B80^2+H$8*$B80+E$8)-(H$6+2*K$6*$B80+3*N$6*$B80^2+4*Q$6*$B80^3)*(E$5+H$5*$B80+K$5*$B80^2+N$5*$B80^3+Q$5*$B80^4)*SIN(Q$6*$B80^4+N$6*$B80^3+K$6*$B80^2+H$6*$B80+E$6)+(H$5+2*K$5*$B80+3*N$5*$B80^2+4*Q$5*$B80^3)*COS(Q$6*$B80^4+N$6*$B80^3+K$6*$B80^2+H$6*$B80+E$6)+4*Q$4*$B80^3+3*N$4*$B80^2+2*K$4*$B80+H$4 ->  | I80: =-1*(F$8+2*I$8*$B80+3*L$8*$B80^2+4*O$8*$B80^3)^2*(C$7+F$7*$B80+I$7*$B80^2+L$7*$B80^3+O$7*$B80^4)*SIN(O$8*$B80^4+L$8*$B80^3+I$8*$B80^2+F$8*$B80+C$8)+(2*I$7+6*L$7*$B80+12*O$7*$B80^2)*SIN(O$8*$B80^4+L$8*$B80^3+I$8*$B80^2+F$8*$B80+C$8)+(2*I$8+6*L$8*$B80+12*O$8*$B80^2)*(C$7+F$7*$B80+I$7*$B80^2+L$7*$B80^3+O$7*$B80^4)*COS(O$8*$B80^4+L$8*$B80^3+I$8*$B80^2+F$8*$B80+C$8)+2*(F$7+2*I$7*$B80+3*L$7*$B80^2+4*O$7*$B80^3)*(F$8+2*I$8*$B80+3*L$8*$B80^2+4*O$8*$B80^3)*COS(O$8*$B80^4+L$8*$B80^3+I$8*$B80^2+F$8*$B80+C$8)-(2*I$6+6*L$6*$B80+12*O$6*$B80^2)*(C$5+F$5*$B80+I$5*$B80^2+L$5*$B80^3+O$5*$B80^4)*SIN(O$6*$B80^4+L$6*$B80^3+I$6*$B80^2+F$6*$B80+C$6)-2*(F$5+2*I$5*$B80+3*L$5*$B80^2+4*O$5*$B80^3)*(F$6+2*I$6*$B80+3*L$6*$B80^2+4*O$6*$B80^3)*SIN(O$6*$B80^4+L$6*$B80^3+I$6*$B80^2+F$6*$B80+C$6)-(F$6+2*I$6*$B80+3*L$6*$B80^2+4*O$6*$B80^3)^2*(C$5+F$5*$B80+I$5*$B80^2+L$5*$B80^3+O$5*$B80^4)*COS(O$6*$B80^4+L$6*$B80^3+I$6*$B80^2+F$6*$B80+C$6)+(2*I$5+6*L$5*$B80+12*O$5*$B80^2)*COS(O$6*$B80^4+L$6*$B80^3+I$6*$B80^2+F$6*$B80+C$6)+12*O$4*$B80^2+6*L$4*$B80+2*I$4 ->  | J80: =-1*(G$8+2*J$8*$B80+3*M$8*$B80^2+4*P$8*$B80^3)^2*(D$7+G$7*$B80+J$7*$B80^2+M$7*$B80^3+P$7*$B80^4)*SIN(P$8*$B80^4+M$8*$B80^3+J$8*$B80^2+G$8*$B80+D$8)+(2*J$7+6*M$7*$B80+12*P$7*$B80^2)*SIN(P$8*$B80^4+M$8*$B80^3+J$8*$B80^2+G$8*$B80+D$8)+(2*J$8+6*M$8*$B80+12*P$8*$B80^2)*(D$7+G$7*$B80+J$7*$B80^2+M$7*$B80^3+P$7*$B80^4)*COS(P$8*$B80^4+M$8*$B80^3+J$8*$B80^2+G$8*$B80+D$8)+2*(G$7+2*J$7*$B80+3*M$7*$B80^2+4*P$7*$B80^3)*(G$8+2*J$8*$B80+3*M$8*$B80^2+4*P$8*$B80^3)*COS(P$8*$B80^4+M$8*$B80^3+J$8*$B80^2+G$8*$B80+D$8)-(2*J$6+6*M$6*$B80+12*P$6*$B80^2)*(D$5+G$5*$B80+J$5*$B80^2+M$5*$B80^3+P$5*$B80^4)*SIN(P$6*$B80^4+M$6*$B80^3+J$6*$B80^2+G$6*$B80+D$6)-2*(G$5+2*J$5*$B80+3*M$5*$B80^2+4*P$5*$B80^3)*(G$6+2*J$6*$B80+3*M$6*$B80^2+4*P$6*$B80^3)*SIN(P$6*$B80^4+M$6*$B80^3+J$6*$B80^2+G$6*$B80+D$6)-(G$6+2*J$6*$B80+3*M$6*$B80^2+4*P$6*$B80^3)^2*(D$5+G$5*$B80+J$5*$B80^2+M$5*$B80^3+P$5*$B80^4)*COS(P$6*$B80^4+M$6*$B80^3+J$6*$B80^2+G$6*$B80+D$6)+(2*J$5+6*M$5*$B80+12*P$5*$B80^2)*COS(P$6*$B80^4+M$6*$B80^3+J$6*$B80^2+G$6*$B80+D$6)+12*P$4*$B80^2+6*M$4*$B80+2*J$4 ->  | K80: =-1*(H$8+2*K$8*$B80+3*N$8*$B80^2+4*Q$8*$B80^3)^2*(E$7+H$7*$B80+K$7*$B80^2+N$7*$B80^3+Q$7*$B80^4)*SIN(Q$8*$B80^4+N$8*$B80^3+K$8*$B80^2+H$8*$B80+E$8)+(2*K$7+6*N$7*$B80+12*Q$7*$B80^2)*SIN(Q$8*$B80^4+N$8*$B80^3+K$8*$B80^2+H$8*$B80+E$8)+(2*K$8+6*N$8*$B80+12*Q$8*$B80^2)*(E$7+H$7*$B80+K$7*$B80^2+N$7*$B80^3+Q$7*$B80^4)*COS(Q$8*$B80^4+N$8*$B80^3+K$8*$B80^2+H$8*$B80+E$8)+2*(H$7+2*K$7*$B80+3*N$7*$B80^2+4*Q$7*$B80^3)*(H$8+2*K$8*$B80+3*N$8*$B80^2+4*Q$8*$B80^3)*COS(Q$8*$B80^4+N$8*$B80^3+K$8*$B80^2+H$8*$B80+E$8)-(2*K$6+6*N$6*$B80+12*Q$6*$B80^2)*(E$5+H$5*$B80+K$5*$B80^2+N$5*$B80^3+Q$5*$B80^4)*SIN(Q$6*$B80^4+N$6*$B80^3+K$6*$B80^2+H$6*$B80+E$6)-2*(H$5+2*K$5*$B80+3*N$5*$B80^2+4*Q$5*$B80^3)*(H$6+2*K$6*$B80+3*N$6*$B80^2+4*Q$6*$B80^3)*SIN(Q$6*$B80^4+N$6*$B80^3+K$6*$B80^2+H$6*$B80+E$6)-(H$6+2*K$6*$B80+3*N$6*$B80^2+4*Q$6*$B80^3)^2*(E$5+H$5*$B80+K$5*$B80^2+N$5*$B80^3+Q$5*$B80^4)*COS(Q$6*$B80^4+N$6*$B80^3+K$6*$B80^2+H$6*$B80+E$6)+(2*K$5+6*N$5*$B80+12*Q$5*$B80^2)*COS(Q$6*$B80^4+N$6*$B80^3+K$6*$B80^2+H$6*$B80+E$6)+12*Q$4*$B80^2+6*N$4*$B80+2*K$4 ->  | L80: =IF($AK$38=0,TRANSPOSE(MMULT($O$10:$Q$12,TRANSPOSE(C80:E80))),TRANSPOSE(MMULT($O$10:$Q$12,TRANSPOSE(Y80:AA80)))) ->  | Q80: =TRANSPOSE(MMULT($AE$10:$AG$12,TRANSPOSE(F80:H80))) ->  | T80: =$Y$5+$Y$4*IF($U$8=1,Q80,(Q80*$U$6)/($U$6+$U$7+R80)) ->  | U80: =$Y$6+$Y$4*IF($U$8=1,R80,(S80*$U$6)/($U$6+$U$7+R80)) ->  | V80: =TRANSPOSE(MMULT($AO$40:$AQ$42,TRANSPOSE(C80:E80))) ->  | Y80: =V80+$AL$46 ->  | Z80: =W80+$AL$47 ->  | AA80: =X80+$AL$48 ->  | AC80: 50 | AD80: 0.688349901 | AE80: 0.8203434675 | AF80: 0 | AG80: =TRANSPOSE(MMULT($AK$40:$AM$42,TRANSPOSE(AD80:AF80))) -> -0.5270948003 | AH80: -0.2543950195 | AI80: 0.8967960952 | AJ80: 1.784831805 | AK80: 3.011660026 | AL80: 1.263768572 | AM80: =TRANSPOSE(MMULT($O$10:$Q$12,TRANSPOSE(AJ80:AL80))) -> 1.159797658 | AN80: -0.5571034298 | AO80: 3.49246859 | AP80: 1.159797658 | AQ80: -0.5571034298
A81: 81 | L81: =IF($AK$38=0,TRANSPOSE(MMULT($O$10:$Q$12,TRANSPOSE(C81:E81))),TRANSPOSE(MMULT($O$10:$Q$12,TRANSPOSE(Y81:AA81)))) ->  | O81: =IF($AD$4=0,NA(),$X$5+$X$4*IF($U$8=1,L81,(L81*$U$6)/($U$6+$U$7+M81))) ->  | P81: =IF($AD$4=0,NA(),$X$6+$X$4*IF($U$8=1,M81,(N81*$U$6)/($U$6+$U$7+M81))) ->  | Q81: =TRANSPOSE(MMULT($AE$10:$AG$12,TRANSPOSE(F81:H81))) ->  | V81: =TRANSPOSE(MMULT($AO$40:$AQ$42,TRANSPOSE(C81:E81))) ->  | AC81: 60 | AD81: 0.5354411711 | AE81: 0.9274113128 | AF81: 0 | AG81: =TRANSPOSE(MMULT($AK$40:$AM$42,TRANSPOSE(AD81:AF81))) -> -0.5958890393 | AH81: -0.3961584039 | AI81: 0.7967206302 | AJ81: 1.716037566 | AK81: 2.869896642 | AL81: 1.163693107 | AM81: =TRANSPOSE(MMULT($O$10:$Q$12,TRANSPOSE(AJ81:AL81))) -> 1.09542069 | AN81: -0.571859729 | AO81: 3.31787632 | AP81: 1.09542069 | AQ81: -0.571859729
A82: 82 | B82: =IF(B81<$B$3,B81+$S$3,NA()) ->  | L82: =IF($AK$38=0,TRANSPOSE(MMULT($O$10:$Q$12,TRANSPOSE(C82:E82))),TRANSPOSE(MMULT($O$10:$Q$12,TRANSPOSE(Y82:AA82)))) ->  | Q82: =TRANSPOSE(MMULT($AE$10:$AG$12,TRANSPOSE(F82:H82))) ->  | V82: =TRANSPOSE(MMULT($AO$40:$AQ$42,TRANSPOSE(C82:E82))) ->  | AC82: 70 | AD82: 0.3662633322 | AE82: 1.006300235 | AF82: 0 | AG82: =TRANSPOSE(MMULT($AK$40:$AM$42,TRANSPOSE(AD82:AF82))) -> -0.6465774914 | AH82: -0.5258847158 | AI82: 0.6724372121 | AJ82: 1.665349114 | AK82: 2.74017033 | AL82: 1.039409689 | AM82: =TRANSPOSE(MMULT($O$10:$Q$12,TRANSPOSE(AJ82:AL82))) -> 1.028626478 | AN82: -0.6183842899 | AO82: 3.149892387 | AP82: 1.028626478 | AQ82: -0.6183842899
A83: 83 | L83: =IF($AK$38=0,TRANSPOSE(MMULT($O$10:$Q$12,TRANSPOSE(C83:E83))),TRANSPOSE(MMULT($O$10:$Q$12,TRANSPOSE(Y83:AA83)))) ->  | Q83: =TRANSPOSE(MMULT($AE$10:$AG$12,TRANSPOSE(F83:H83))) ->  | V83: =TRANSPOSE(MMULT($AO$40:$AQ$42,TRANSPOSE(C83:E83))) ->  | AC83: 80 | AD83: 0.1859567672 | AE83: 1.054613233 | AF83: 0 | AG83: =TRANSPOSE(MMULT($AK$40:$AM$42,TRANSPOSE(AD83:AF83))) -> -0.6776200135 | AH83: -0.6396322866 | AI83: 0.5277221295 | AJ83: 1.634306592 | AK83: 2.626422759 | AL83: 0.8946946066 | AM83: =TRANSPOSE(MMULT($O$10:$Q$12,TRANSPOSE(AJ83:AL83))) -> 0.9614445323 | AN83: -0.6952634874 | AO83: 2.993620898 | AP83: 0.9614445323 | AQ83: -0.6952634874
A84: 84 | L84: =IF($AK$38=0,TRANSPOSE(MMULT($O$10:$Q$12,TRANSPOSE(C84:E84))),TRANSPOSE(MMULT($O$10:$Q$12,TRANSPOSE(Y84:AA84)))) ->  | Q84: =TRANSPOSE(MMULT($AE$10:$AG$12,TRANSPOSE(F84:H84))) ->  | V84: =TRANSPOSE(MMULT($AO$40:$AQ$42,TRANSPOSE(C84:E84))) ->  | AC84: 90 | AD84: 6.559949235e-17 | AE84: 1.070882342 | AF84: 0 | AG84: =TRANSPOSE(MMULT($AK$40:$AM$42,TRANSPOSE(AD84:AF84))) -> -0.6880733945 | AH84: -0.7339449541 | AI84: 0.3669724771 | AJ84: 1.623853211 | AK84: 2.532110092 | AL84: 0.7339449541 | AM84: =TRANSPOSE(MMULT($O$10:$Q$12,TRANSPOSE(AJ84:AL84))) -> 0.8959161412 | AN84: -0.8001613858 | AO84: 2.853810083 | AP84: 0.8959161412 | AQ84: -0.8001613858
A85: 85 | L85: =IF($AK$38=0,TRANSPOSE(MMULT($O$10:$Q$12,TRANSPOSE(C85:E85))),TRANSPOSE(MMULT($O$10:$Q$12,TRANSPOSE(Y85:AA85)))) ->  | Q85: =TRANSPOSE(MMULT($AE$10:$AG$12,TRANSPOSE(F85:H85))) ->  | V85: =TRANSPOSE(MMULT($AO$40:$AQ$42,TRANSPOSE(C85:E85))) ->  | AC85: 100 | AD85: -0.1859567672 | AE85: 1.054613233 | AF85: 0 | AG85: =TRANSPOSE(MMULT($AK$40:$AM$42,TRANSPOSE(AD85:AF85))) -> -0.6776200135 | AH85: -0.8059570756 | AI85: 0.1950725516 | AJ85: 1.634306592 | AK85: 2.46009797 | AL85: 0.5620450287 | AM85: =TRANSPOSE(MMULT($O$10:$Q$12,TRANSPOSE(AJ85:AL85))) -> 0.8340323519 | AN85: -0.9298907156 | AO85: 2.734708022 | AP85: 0.8340323519 | AQ85: -0.9298907156
A86: 86 | L86: =IF($AK$38=0,TRANSPOSE(MMULT($O$10:$Q$12,TRANSPOSE(C86:E86))),TRANSPOSE(MMULT($O$10:$Q$12,TRANSPOSE(Y86:AA86)))) ->  | Q86: =TRANSPOSE(MMULT($AE$10:$AG$12,TRANSPOSE(F86:H86))) ->  | V86: =TRANSPOSE(MMULT($AO$40:$AQ$42,TRANSPOSE(C86:E86))) ->  | AC86: 110 | AD86: -0.3662633322 | AE86: 1.006300235 | AF86: 0 | AG86: =TRANSPOSE(MMULT($AK$40:$AM$42,TRANSPOSE(AD86:AF86))) -> -0.6465774914 | AH86: -0.8534805991 | AI86: 0.01724544538 | AJ86: 1.665349114 | AK86: 2.412574447 | AL86: 0.3842179224 | AM86: =TRANSPOSE(MMULT($O$10:$Q$12,TRANSPOSE(AJ86:AL86))) -> 0.7776734722 | AN86: -1.080509717 | AO86: 2.639933573 | AP86: 0.7776734722 | AQ86: -1.080509717
A87: 87 | L87: =IF($AK$38=0,TRANSPOSE(MMULT($O$10:$Q$12,TRANSPOSE(C87:E87))),TRANSPOSE(MMULT($O$10:$Q$12,TRANSPOSE(Y87:AA87)))) ->  | Q87: =TRANSPOSE(MMULT($AE$10:$AG$12,TRANSPOSE(F87:H87))) ->  | V87: =TRANSPOSE(MMULT($AO$40:$AQ$42,TRANSPOSE(C87:E87))) ->  | AC87: 120 | AD87: -0.5354411711 | AE87: 0.9274113128 | AF87: 0 | AG87: =TRANSPOSE(MMULT($AK$40:$AM$42,TRANSPOSE(AD87:AF87))) -> -0.5958890393 | AH87: -0.8750715466 | AI87: -0.161105655 | AJ87: 1.716037566 | AK87: 2.390983499 | AL87: 0.2058668221 | AM87: =TRANSPOSE(MMULT($O$10:$Q$12,TRANSPOSE(AJ87:AL87))) -> 0.7285519379 | AN87: -1.247441907 | AO87: 2.572366407 | AP87: 0.7285519379 | AQ87: -1.247441907
A88: 88 | L88: =IF($AK$38=0,TRANSPOSE(MMULT($O$10:$Q$12,TRANSPOSE(C88:E88))),TRANSPOSE(MMULT($O$10:$Q$12,TRANSPOSE(Y88:AA88)))) ->  | Q88: =TRANSPOSE(MMULT($AE$10:$AG$12,TRANSPOSE(F88:H88))) ->  | V88: =TRANSPOSE(MMULT($AO$40:$AQ$42,TRANSPOSE(C88:E88))) ->  | AC88: 130 | AD88: -0.688349901 | AE88: 0.8203434675 | AF88: 0 | AG88: =TRANSPOSE(MMULT($AK$40:$AM$42,TRANSPOSE(AD88:AF88))) -> -0.5270948003 | AH88: -0.8700738879 | AI88: -0.3345616415 | AJ88: 1.784831805 | AK88: 2.395981158 | AL88: 0.03241083552 | AM88: =TRANSPOSE(MMULT($O$10:$Q$12,TRANSPOSE(AJ88:AL88))) -> 0.6881602822 | AN88: -1.425615137 | AO88: 2.53405952 | AP88: 0.6881602822 | AQ88: -1.425615137
A89: 89 | L89: =IF($AK$38=0,TRANSPOSE(MMULT($O$10:$Q$12,TRANSPOSE(C89:E89))),TRANSPOSE(MMULT($O$10:$Q$12,TRANSPOSE(Y89:AA89)))) ->  | Q89: =TRANSPOSE(MMULT($AE$10:$AG$12,TRANSPOSE(F89:H89))) ->  | V89: =TRANSPOSE(MMULT($AO$40:$AQ$42,TRANSPOSE(C89:E89))) ->  | AC89: 140 | AD89: -0.8203434675 | AE89: 0.688349901 | AF89: 0 | AG89: =TRANSPOSE(MMULT($AK$40:$AM$42,TRANSPOSE(AD89:AF89))) -> -0.4422850525 | AH89: -0.8386394743 | AI89: -0.4978521419 | AJ89: 1.869641553 | AK89: 2.427415572 | AL89: -0.1308796648 | AM89: =TRANSPOSE(MMULT($O$10:$Q$12,TRANSPOSE(AJ89:AL89))) -> 0.6577257849 | AN89: -1.609615702 | AO89: 2.526176847 | AP89: 0.6577257849 | AQ89: -1.609615702
A90: 90 | L90: =IF($AK$38=0,TRANSPOSE(MMULT($O$10:$Q$12,TRANSPOSE(C90:E90))),TRANSPOSE(MMULT($O$10:$Q$12,TRANSPOSE(Y90:AA90)))) ->  | Q90: =TRANSPOSE(MMULT($AE$10:$AG$12,TRANSPOSE(F90:H90))) ->  | V90: =TRANSPOSE(MMULT($AO$40:$AQ$42,TRANSPOSE(C90:E90))) ->  | AC90: 150 | AD90: -0.9274113128 | AE90: 0.5354411711 | AF90: 0 | AG90: =TRANSPOSE(MMULT($AK$40:$AM$42,TRANSPOSE(AD90:AF90))) -> -0.3440366972 | AH90: -0.7817234248 | AI90: -0.6460156569 | AJ90: 1.967889908 | AK90: 2.484331621 | AL90: -0.2790431798 | AM90: =TRANSPOSE(MMULT($O$10:$Q$12,TRANSPOSE(AJ90:AL90))) -> 0.638173183 | AN90: -1.793852839 | AO90: 2.548957899 | AP90: 0.638173183 | AQ90: -1.793852839
A91: 91 | L91: =IF($AK$38=0,TRANSPOSE(MMULT($O$10:$Q$12,TRANSPOSE(C91:E91))),TRANSPOSE(MMULT($O$10:$Q$12,TRANSPOSE(Y91:AA91)))) ->  | Q91: =TRANSPOSE(MMULT($AE$10:$AG$12,TRANSPOSE(F91:H91))) ->  | V91: =TRANSPOSE(MMULT($AO$40:$AQ$42,TRANSPOSE(C91:E91))) ->  | AC91: 160 | AD91: -1.006300235 | AE91: 0.3662633322 | AF91: 0 | AG91: =TRANSPOSE(MMULT($AK$40:$AM$42,TRANSPOSE(AD91:AF91))) -> -0.235334961 | AH91: -0.7010551045 | AI91: -0.774550313 | AJ91: 2.076591645 | AK91: 2.564999941 | AL91: -0.407577836 | AM91: =TRANSPOSE(MMULT($O$10:$Q$12,TRANSPOSE(AJ91:AL91))) -> 0.6300965722 | AN91: -1.972728595 | AO91: 2.601710485 | AP91: 0.6300965722 | AQ91: -1.972728595
A92: 92 | L92: =IF($AK$38=0,TRANSPOSE(MMULT($O$10:$Q$12,TRANSPOSE(C92:E92))),TRANSPOSE(MMULT($O$10:$Q$12,TRANSPOSE(Y92:AA92)))) ->  | Q92: =TRANSPOSE(MMULT($AE$10:$AG$12,TRANSPOSE(F92:H92))) ->  | V92: =TRANSPOSE(MMULT($AO$40:$AQ$42,TRANSPOSE(C92:E92))) ->  | AC92: 170 | AD92: -1.054613233 | AE92: 0.1859567672 | AF92: 0 | AG92: =TRANSPOSE(MMULT($AK$40:$AM$42,TRANSPOSE(AD92:AF92))) -> -0.1194826911 | AH92: -0.5990855797 | AI92: -0.8795506498 | AJ92: 2.192443914 | AK92: 2.666969466 | AL92: -0.5125781728 | AM92: =TRANSPOSE(MMULT($O$10:$Q$12,TRANSPOSE(AJ92:AL92))) -> 0.6337413564 | AN92: -2.140807922 | AO92: 2.682831745 | AP92: 0.6337413564 | AQ92: -2.140807922
A93: 93 | L93: =IF($AK$38=0,TRANSPOSE(MMULT($O$10:$Q$12,TRANSPOSE(C93:E93))),TRANSPOSE(MMULT($O$10:$Q$12,TRANSPOSE(Y93:AA93)))) ->  | Q93: =TRANSPOSE(MMULT($AE$10:$AG$12,TRANSPOSE(F93:H93))) ->  | V93: =TRANSPOSE(MMULT($AO$40:$AQ$42,TRANSPOSE(C93:E93))) ->  | AC93: 180 | AD93: -1.070882342 | AE93: 1.311989847e-16 | AF93: 0 | AG93: =TRANSPOSE(MMULT($AK$40:$AM$42,TRANSPOSE(AD93:AF93))) -> -8.429920561e-17 | AH93: -0.4789131426 | AI93: -0.9578262852 | AJ93: 2.311926606 | AK93: 2.787141903 | AL93: -0.5908538082 | AM93: =TRANSPOSE(MMULT($O$10:$Q$12,TRANSPOSE(AJ93:AL93))) -> 0.6489967907 | AN93: -2.292983813 | AO93: 2.789856849 | AP93: 0.6489967907 | AQ93: -2.292983813
A94: 94 | L94: =IF($AK$38=0,TRANSPOSE(MMULT($O$10:$Q$12,TRANSPOSE(C94:E94))),TRANSPOSE(MMULT($O$10:$Q$12,TRANSPOSE(Y94:AA94)))) ->  | Q94: =TRANSPOSE(MMULT($AE$10:$AG$12,TRANSPOSE(F94:H94))) ->  | V94: =TRANSPOSE(MMULT($AO$40:$AQ$42,TRANSPOSE(C94:E94))) ->  | AC94: 190 | AD94: -1.054613233 | AE94: -0.1859567672 | AF94: 0 | AG94: =TRANSPOSE(MMULT($AK$40:$AM$42,TRANSPOSE(AD94:AF94))) -> 0.1194826911 | AH94: -0.3441891721 | AI94: -1.006998854 | AJ94: 2.431409297 | AK94: 2.921865874 | AL94: -0.6400263766 | AM94: =TRANSPOSE(MMULT($O$10:$Q$12,TRANSPOSE(AJ94:AL94))) -> 0.6753993463 | AN94: -2.424632482 | AO94: 2.919533895 | AP94: 0.6753993463 | AQ94: -2.424632482
A95: 95 | L95: =IF($AK$38=0,TRANSPOSE(MMULT($O$10:$Q$12,TRANSPOSE(C95:E95))),TRANSPOSE(MMULT($O$10:$Q$12,TRANSPOSE(Y95:AA95)))) ->  | Q95: =TRANSPOSE(MMULT($AE$10:$AG$12,TRANSPOSE(F95:H95))) ->  | V95: =TRANSPOSE(MMULT($AO$40:$AQ$42,TRANSPOSE(C95:E95))) ->  | AC95: 200 | AD95: -1.006300235 | AE95: -0.3662633322 | AF95: 0 | AG95: =TRANSPOSE(MMULT($AK$40:$AM$42,TRANSPOSE(AD95:AF95))) -> 0.235334961 | AH95: -0.1990071877 | AI95: -1.025574271 | AJ95: 2.547261567 | AK95: 3.067047858 | AL95: -0.6586017944 | AM95: =TRANSPOSE(MMULT($O$10:$Q$12,TRANSPOSE(AJ95:AL95))) -> 0.7121467949 | AN95: -2.53175385 | AO95: 3.067922711 | AP95: 0.7121467949 | AQ95: -2.53175385
A96: 96 | L96: =IF($AK$38=0,TRANSPOSE(MMULT($O$10:$Q$12,TRANSPOSE(C96:E96))),TRANSPOSE(MMULT($O$10:$Q$12,TRANSPOSE(Y96:AA96)))) ->  | Q96: =TRANSPOSE(MMULT($AE$10:$AG$12,TRANSPOSE(F96:H96))) ->  | V96: =TRANSPOSE(MMULT($AO$40:$AQ$42,TRANSPOSE(C96:E96))) ->  | AC96: 210 | AD96: -0.9274113128 | AE96: -0.5354411711 | AF96: 0 | AG96: =TRANSPOSE(MMULT($AK$40:$AM$42,TRANSPOSE(AD96:AF96))) -> 0.3440366972 | AH96: -0.04777847064 | AI96: -1.012988134 | AJ96: 2.655963303 | AK96: 3.218276575 | AL96: -0.6460156569 | AM96: =TRANSPOSE(MMULT($O$10:$Q$12,TRANSPOSE(AJ96:AL96))) -> 0.7581225841 | AN96: -2.611093088 | AO96: 3.230514578 | AP96: 0.7581225841 | AQ96: -2.611093088
A97: 97 | L97: =IF($AK$38=0,TRANSPOSE(MMULT($O$10:$Q$12,TRANSPOSE(C97:E97))),TRANSPOSE(MMULT($O$10:$Q$12,TRANSPOSE(Y97:AA97)))) ->  | Q97: =TRANSPOSE(MMULT($AE$10:$AG$12,TRANSPOSE(F97:H97))) ->  | V97: =TRANSPOSE(MMULT($AO$40:$AQ$42,TRANSPOSE(C97:E97))) ->  | AC97: 220 | AD97: -0.8203434675 | AE97: -0.688349901 | AF97: 0 | AG97: =TRANSPOSE(MMULT($AK$40:$AM$42,TRANSPOSE(AD97:AF97))) -> 0.4422850525 | AH97: 0.1049019711 | AI97: -0.9696228646 | AJ97: 2.754211658 | AK97: 3.370957017 | AL97: -0.6026503876 | AM97: =TRANSPOSE(MMULT($O$10:$Q$12,TRANSPOSE(AJ97:AL97))) -> 0.8119297626 | AN97: -2.660239515 | AO97: 3.402369225 | AP97: 0.8119297626 | AQ97: -2.660239515
A98: 98 | L98: =IF($AK$38=0,TRANSPOSE(MMULT($O$10:$Q$12,TRANSPOSE(C98:E98))),TRANSPOSE(MMULT($O$10:$Q$12,TRANSPOSE(Y98:AA98)))) ->  | Q98: =TRANSPOSE(MMULT($AE$10:$AG$12,TRANSPOSE(F98:H98))) ->  | V98: =TRANSPOSE(MMULT($AO$40:$AQ$42,TRANSPOSE(C98:E98))) ->  | AC98: 230 | AD98: -0.688349901 | AE98: -0.8203434675 | AF98: 0 | AG98: =TRANSPOSE(MMULT($AK$40:$AM$42,TRANSPOSE(AD98:AF98))) -> 0.5270948003 | AH98: 0.2543950195 | AI98: -0.8967960952 | AJ98: 2.839021406 | AK98: 3.520450065 | AL98: -0.5298236181 | AM98: =TRANSPOSE(MMULT($O$10:$Q$12,TRANSPOSE(AJ98:AL98))) -> 0.8719334265 | AN98: -2.67769984 | AO98: 3.578264934 | AP98: 0.8719334265 | AQ98: -2.67769984
A99: 99 | L99: =IF($AK$38=0,TRANSPOSE(MMULT($O$10:$Q$12,TRANSPOSE(C99:E99))),TRANSPOSE(MMULT($O$10:$Q$12,TRANSPOSE(Y99:AA99)))) ->  | Q99: =TRANSPOSE(MMULT($AE$10:$AG$12,TRANSPOSE(F99:H99))) ->  | V99: =TRANSPOSE(MMULT($AO$40:$AQ$42,TRANSPOSE(C99:E99))) ->  | AC99: 240 | AD99: -0.5354411711 | AE99: -0.9274113128 | AF99: 0 | AG99: =TRANSPOSE(MMULT($AK$40:$AM$42,TRANSPOSE(AD99:AF99))) -> 0.5958890393 | AH99: 0.3961584039 | AI99: -0.7967206302 | AJ99: 2.907815645 | AK99: 3.66221345 | AL99: -0.4297481532 | AM99: =TRANSPOSE(MMULT($O$10:$Q$12,TRANSPOSE(AJ99:AL99))) -> 0.936310395 | AN99: -2.662943541 | AO99: 3.752857204 | AP99: 0.936310395 | AQ99: -2.662943541
A100: 100 | L100: =IF($AK$38=0,TRANSPOSE(MMULT($O$10:$Q$12,TRANSPOSE(C100:E100))),TRANSPOSE(MMULT($O$10:$Q$12,TRANSPOSE(Y100:AA100)))) ->  | Q100: =TRANSPOSE(MMULT($AE$10:$AG$12,TRANSPOSE(F100:H100))) ->  | V100: =TRANSPOSE(MMULT($AO$40:$AQ$42,TRANSPOSE(C100:E100))) ->  | AC100: 250 | AD100: -0.3662633322 | AE100: -1.006300235 | AF100: 0 | AG100: =TRANSPOSE(MMULT($AK$40:$AM$42,TRANSPOSE(AD100:AF100))) -> 0.6465774914 | AH100: 0.5258847158 | AI100: -0.6724372121 | AJ100: 2.958504097 | AK100: 3.791939762 | AL100: -0.305464735 | AM100: =TRANSPOSE(MMULT($O$10:$Q$12,TRANSPOSE(AJ100:AL100))) -> 1.003104606 | AN100: -2.61641898 | AO100: 3.920841137 | AP100: 1.003104606 | AQ100: -2.61641898
A101: 101 | L101: =IF($AK$38=0,TRANSPOSE(MMULT($O$10:$Q$12,TRANSPOSE(C101:E101))),TRANSPOSE(MMULT($O$10:$Q$12,TRANSPOSE(Y101:AA101)))) ->  | Q101: =TRANSPOSE(MMULT($AE$10:$AG$12,TRANSPOSE(F101:H101))) ->  | V101: =TRANSPOSE(MMULT($AO$40:$AQ$42,TRANSPOSE(C101:E101))) ->  | AC101: 260 | AD101: -0.1859567672 | AE101: -1.054613233 | AF101: 0 | AG101: =TRANSPOSE(MMULT($AK$40:$AM$42,TRANSPOSE(AD101:AF101))) -> 0.6776200135 | AH101: 0.6396322866 | AI101: -0.5277221295 | AJ101: 2.989546619 | AK101: 3.905687333 | AL101: -0.1607496524 | AM101: =TRANSPOSE(MMULT($O$10:$Q$12,TRANSPOSE(AJ101:AL101))) -> 1.070286552 | AN101: -2.539539782 | AO101: 4.077112626 | AP101: 1.070286552 | AQ101: -2.539539782
A102: 102 | L102: =IF($AK$38=0,TRANSPOSE(MMULT($O$10:$Q$12,TRANSPOSE(C102:E102))),TRANSPOSE(MMULT($O$10:$Q$12,TRANSPOSE(Y102:AA102)))) ->  | Q102: =TRANSPOSE(MMULT($AE$10:$AG$12,TRANSPOSE(F102:H102))) ->  | V102: =TRANSPOSE(MMULT($AO$40:$AQ$42,TRANSPOSE(C102:E102))) ->  | AC102: 270 | AD102: -1.96798477e-16 | AE102: -1.070882342 | AF102: 0 | AG102: =TRANSPOSE(MMULT($AK$40:$AM$42,TRANSPOSE(AD102:AF102))) -> 0.6880733945 | AH102: 0.7339449541 | AI102: -0.3669724771 | AJ102: 3 | AK102: 4 | AL102: 0 | AM102: =TRANSPOSE(MMULT($O$10:$Q$12,TRANSPOSE(AJ102:AL102))) -> 1.135814943 | AN102: -2.434641884 | AO102: 4.216923441 | AP102: 1.135814943 | AQ102: -2.434641884
A103: 103 | L103: =IF($AK$38=0,TRANSPOSE(MMULT($O$10:$Q$12,TRANSPOSE(C103:E103))),TRANSPOSE(MMULT($O$10:$Q$12,TRANSPOSE(Y103:AA103)))) ->  | Q103: =TRANSPOSE(MMULT($AE$10:$AG$12,TRANSPOSE(F103:H103))) ->  | V103: =TRANSPOSE(MMULT($AO$40:$AQ$42,TRANSPOSE(C103:E103))) ->  | AC103: 280 | AD103: 0.1859567672 | AE103: -1.054613233 | AF103: 0 | AG103: =TRANSPOSE(MMULT($AK$40:$AM$42,TRANSPOSE(AD103:AF103))) -> 0.6776200135 | AH103: 0.8059570756 | AI103: -0.1950725516 | AJ103: 2.989546619 | AK103: 4.072012121 | AL103: 0.1718999255 | AM103: =TRANSPOSE(MMULT($O$10:$Q$12,TRANSPOSE(AJ103:AL103))) -> 1.197698733 | AN103: -2.304912554 | AO103: 4.336025502 | AP103: 1.197698733 | AQ103: -2.304912554
A104: 104 | L104: =IF($AK$38=0,TRANSPOSE(MMULT($O$10:$Q$12,TRANSPOSE(C104:E104))),TRANSPOSE(MMULT($O$10:$Q$12,TRANSPOSE(Y104:AA104)))) ->  | Q104: =TRANSPOSE(MMULT($AE$10:$AG$12,TRANSPOSE(F104:H104))) ->  | V104: =TRANSPOSE(MMULT($AO$40:$AQ$42,TRANSPOSE(C104:E104))) ->  | AC104: 290 | AD104: 0.3662633322 | AE104: -1.006300235 | AF104: 0 | AG104: =TRANSPOSE(MMULT($AK$40:$AM$42,TRANSPOSE(AD104:AF104))) -> 0.6465774914 | AH104: 0.8534805991 | AI104: -0.01724544538 | AJ104: 2.958504097 | AK104: 4.119535645 | AL104: 0.3497270317 | AM104: =TRANSPOSE(MMULT($O$10:$Q$12,TRANSPOSE(AJ104:AL104))) -> 1.254057612 | AN104: -2.154293553 | AO104: 4.430799952 | AP104: 1.254057612 | AQ104: -2.154293553
A105: 105 | L105: =IF($AK$38=0,TRANSPOSE(MMULT($O$10:$Q$12,TRANSPOSE(C105:E105))),TRANSPOSE(MMULT($O$10:$Q$12,TRANSPOSE(Y105:AA105)))) ->  | Q105: =TRANSPOSE(MMULT($AE$10:$AG$12,TRANSPOSE(F105:H105))) ->  | V105: =TRANSPOSE(MMULT($AO$40:$AQ$42,TRANSPOSE(C105:E105))) ->  | AC105: 300 | AD105: 0.5354411711 | AE105: -0.9274113128 | AF105: 0 | AG105: =TRANSPOSE(MMULT($AK$40:$AM$42,TRANSPOSE(AD105:AF105))) -> 0.5958890393 | AH105: 0.8750715466 | AI105: 0.161105655 | AJ105: 2.907815645 | AK105: 4.141126592 | AL105: 0.528078132 | AM105: =TRANSPOSE(MMULT($O$10:$Q$12,TRANSPOSE(AJ105:AL105))) -> 1.303179147 | AN105: -1.987361363 | AO105: 4.498367117 | AP105: 1.303179147 | AQ105: -1.987361363
A106: 106 | L106: =IF($AK$38=0,TRANSPOSE(MMULT($O$10:$Q$12,TRANSPOSE(C106:E106))),TRANSPOSE(MMULT($O$10:$Q$12,TRANSPOSE(Y106:AA106)))) ->  | Q106: =TRANSPOSE(MMULT($AE$10:$AG$12,TRANSPOSE(F106:H106))) ->  | V106: =TRANSPOSE(MMULT($AO$40:$AQ$42,TRANSPOSE(C106:E106))) ->  | AC106: 310 | AD106: 0.688349901 | AE106: -0.8203434675 | AF106: 0 | AG106: =TRANSPOSE(MMULT($AK$40:$AM$42,TRANSPOSE(AD106:AF106))) -> 0.5270948003 | AH106: 0.8700738879 | AI106: 0.3345616415 | AJ106: 2.839021406 | AK106: 4.136128934 | AL106: 0.7015341186 | AM106: =TRANSPOSE(MMULT($O$10:$Q$12,TRANSPOSE(AJ106:AL106))) -> 1.343570802 | AN106: -1.809188133 | AO106: 4.536674004 | AP106: 1.343570802 | AQ106: -1.809188133
A107: 107 | L107: =IF($AK$38=0,TRANSPOSE(MMULT($O$10:$Q$12,TRANSPOSE(C107:E107))),TRANSPOSE(MMULT($O$10:$Q$12,TRANSPOSE(Y107:AA107)))) ->  | Q107: =TRANSPOSE(MMULT($AE$10:$AG$12,TRANSPOSE(F107:H107))) ->  | V107: =TRANSPOSE(MMULT($AO$40:$AQ$42,TRANSPOSE(C107:E107))) ->  | AC107: 320 | AD107: 0.8203434675 | AE107: -0.688349901 | AF107: 0 | AG107: =TRANSPOSE(MMULT($AK$40:$AM$42,TRANSPOSE(AD107:AF107))) -> 0.4422850525 | AH107: 0.8386394743 | AI107: 0.4978521419 | AJ107: 2.754211658 | AK107: 4.10469452 | AL107: 0.864824619 | AM107: =TRANSPOSE(MMULT($O$10:$Q$12,TRANSPOSE(AJ107:AL107))) -> 1.3740053 | AN107: -1.625187568 | AO107: 4.544556677 | AP107: 1.3740053 | AQ107: -1.625187568
A108: 108 | L108: =IF($AK$38=0,TRANSPOSE(MMULT($O$10:$Q$12,TRANSPOSE(C108:E108))),TRANSPOSE(MMULT($O$10:$Q$12,TRANSPOSE(Y108:AA108)))) ->  | Q108: =TRANSPOSE(MMULT($AE$10:$AG$12,TRANSPOSE(F108:H108))) ->  | V108: =TRANSPOSE(MMULT($AO$40:$AQ$42,TRANSPOSE(C108:E108))) ->  | AC108: 330 | AD108: 0.9274113128 | AE108: -0.5354411711 | AF108: 0 | AG108: =TRANSPOSE(MMULT($AK$40:$AM$42,TRANSPOSE(AD108:AF108))) -> 0.3440366972 | AH108: 0.7817234248 | AI108: 0.6460156569 | AJ108: 2.655963303 | AK108: 4.047778471 | AL108: 1.012988134 | AM108: =TRANSPOSE(MMULT($O$10:$Q$12,TRANSPOSE(AJ108:AL108))) -> 1.393557902 | AN108: -1.440950431 | AO108: 4.521775625 | AP108: 1.393557902 | AQ108: -1.440950431
A109: 109 | L109: =IF($AK$38=0,TRANSPOSE(MMULT($O$10:$Q$12,TRANSPOSE(C109:E109))),TRANSPOSE(MMULT($O$10:$Q$12,TRANSPOSE(Y109:AA109)))) ->  | Q109: =TRANSPOSE(MMULT($AE$10:$AG$12,TRANSPOSE(F109:H109))) ->  | V109: =TRANSPOSE(MMULT($AO$40:$AQ$42,TRANSPOSE(C109:E109))) ->  | AC109: 340 | AD109: 1.006300235 | AE109: -0.3662633322 | AF109: 0 | AG109: =TRANSPOSE(MMULT($AK$40:$AM$42,TRANSPOSE(AD109:AF109))) -> 0.235334961 | AH109: 0.7010551045 | AI109: 0.774550313 | AJ109: 2.547261567 | AK109: 3.96711015 | AL109: 1.14152279 | AM109: =TRANSPOSE(MMULT($O$10:$Q$12,TRANSPOSE(AJ109:AL109))) -> 1.401634512 | AN109: -1.262074674 | AO109: 4.469023039 | AP109: 1.401634512 | AQ109: -1.262074674
A110: 110 | L110: =IF($AK$38=0,TRANSPOSE(MMULT($O$10:$Q$12,TRANSPOSE(C110:E110))),TRANSPOSE(MMULT($O$10:$Q$12,TRANSPOSE(Y110:AA110)))) ->  | Q110: =TRANSPOSE(MMULT($AE$10:$AG$12,TRANSPOSE(F110:H110))) ->  | V110: =TRANSPOSE(MMULT($AO$40:$AQ$42,TRANSPOSE(C110:E110))) ->  | AC110: 350 | AD110: 1.054613233 | AE110: -0.1859567672 | AF110: 0 | AG110: =TRANSPOSE(MMULT($AK$40:$AM$42,TRANSPOSE(AD110:AF110))) -> 0.1194826911 | AH110: 0.5990855797 | AI110: 0.8795506498 | AJ110: 2.431409297 | AK110: 3.865140626 | AL110: 1.246523127 | AM110: =TRANSPOSE(MMULT($O$10:$Q$12,TRANSPOSE(AJ110:AL110))) -> 1.397989728 | AN110: -1.093995348 | AO110: 4.38790178 | AP110: 1.397989728 | AQ110: -1.093995348
A111: 111 | L111: =IF($AK$38=0,TRANSPOSE(MMULT($O$10:$Q$12,TRANSPOSE(C111:E111))),TRANSPOSE(MMULT($O$10:$Q$12,TRANSPOSE(Y111:AA111)))) ->  | Q111: =TRANSPOSE(MMULT($AE$10:$AG$12,TRANSPOSE(F111:H111))) ->  | V111: =TRANSPOSE(MMULT($AO$40:$AQ$42,TRANSPOSE(C111:E111))) ->  | AC111: 360 | AD111: 1.070882342 | AE111: -2.623979694e-16 | AF111: 0 | AG111: =TRANSPOSE(MMULT($AK$40:$AM$42,TRANSPOSE(AD111:AF111))) -> 1.685984112e-16 | AH111: 0.4789131426 | AI111: 0.9578262852 | AJ111: 2.311926606 | AK111: 3.744968188 | AL111: 1.324798762 | AM111: =TRANSPOSE(MMULT($O$10:$Q$12,TRANSPOSE(AJ111:AL111))) -> 1.382734294 | AN111: -0.9418194566 | AO111: 4.280876675 | AP111: 1.382734294 | AQ111: -0.9418194566
A112: 112 | L112: =IF($AK$38=0,TRANSPOSE(MMULT($O$10:$Q$12,TRANSPOSE(C112:E112))),TRANSPOSE(MMULT($O$10:$Q$12,TRANSPOSE(Y112:AA112)))) ->  | Q112: =TRANSPOSE(MMULT($AE$10:$AG$12,TRANSPOSE(F112:H112))) ->  | V112: =TRANSPOSE(MMULT($AO$40:$AQ$42,TRANSPOSE(C112:E112))) -> 
A113: 113 | L113: =IF($AK$38=0,TRANSPOSE(MMULT($O$10:$Q$12,TRANSPOSE(C113:E113))),TRANSPOSE(MMULT($O$10:$Q$12,TRANSPOSE(Y113:AA113)))) ->  | Q113: =TRANSPOSE(MMULT($AE$10:$AG$12,TRANSPOSE(F113:H113))) ->  | V113: =TRANSPOSE(MMULT($AO$40:$AQ$42,TRANSPOSE(C113:E113))) -> 
A114: 114 | L114: =IF($AK$38=0,TRANSPOSE(MMULT($O$10:$Q$12,TRANSPOSE(C114:E114))),TRANSPOSE(MMULT($O$10:$Q$12,TRANSPOSE(Y114:AA114)))) ->  | Q114: =TRANSPOSE(MMULT($AE$10:$AG$12,TRANSPOSE(F114:H114))) ->  | V114: =TRANSPOSE(MMULT($AO$40:$AQ$42,TRANSPOSE(C114:E114))) ->  | AB114: planes | AC114: méret | AD114: =HOME!S45 -> 5 | AP114: =HOME!AB38 -> 5
A115: 115 | L115: =IF($AK$38=0,TRANSPOSE(MMULT($O$10:$Q$12,TRANSPOSE(C115:E115))),TRANSPOSE(MMULT($O$10:$Q$12,TRANSPOSE(Y115:AA115)))) ->  | Q115: =TRANSPOSE(MMULT($AE$10:$AG$12,TRANSPOSE(F115:H115))) ->  | V115: =TRANSPOSE(MMULT($AO$40:$AQ$42,TRANSPOSE(C115:E115))) ->  | AB115: z
A116: 116 | C116: =(C$4+F$4*$B116+I$4*$B116^2+L$4*$B116^3+O$4*$B116^4)+(C$5+F$5*$B116+I$5*$B116^2+L$5*$B116^3+O$5*$B116^5)*(COS(C$6+F$6*$B116+I$6*$B116^2+L$6*$B116^3+O$6*$B116^4))+(C$7+F$7*$B116+I$7*$B116^2+L$7*$B116^3+O$7*$B116^4)*(SIN(C$8+F$8*$B116+I$8*$B116^2+L$8*$B116^3+O$8*$B116^4)) ->  | D116: =(D$4+G$4*$B116+J$4*$B116^2+M$4*$B116^3+P$4*$B116^4)+(D$5+G$5*$B116+J$5*$B116^2+M$5*$B116^3+P$5*$B116^5)*(COS(D$6+G$6*$B116+J$6*$B116^2+M$6*$B116^3+P$6*$B116^4))+(D$7+G$7*$B116+J$7*$B116^2+M$7*$B116^3+P$7*$B116^4)*(SIN(D$8+G$8*$B116+J$8*$B116^2+M$8*$B116^3+P$8*$B116^4)) ->  | E116: =(E$4+H$4*$B116+K$4*$B116^2+N$4*$B116^3+Q$4*$B116^4)+(E$5+H$5*$B116+K$5*$B116^2+N$5*$B116^3+Q$5*$B116^5)*(COS(E$6+H$6*$B116+K$6*$B116^2+N$6*$B116^3+Q$6*$B116^4))+(E$7+H$7*$B116+K$7*$B116^2+N$7*$B116^3+Q$7*$B116^4)*(SIN(E$8+H$8*$B116+K$8*$B116^2+N$8*$B116^3+Q$8*$B116^4)) ->  | L116: =IF($AK$38=0,TRANSPOSE(MMULT($O$10:$Q$12,TRANSPOSE(C116:E116))),TRANSPOSE(MMULT($O$10:$Q$12,TRANSPOSE(Y116:AA116)))) ->  | Q116: =TRANSPOSE(MMULT($AE$10:$AG$12,TRANSPOSE(F116:H116))) ->  | V116: =TRANSPOSE(MMULT($AO$40:$AQ$42,TRANSPOSE(C116:E116))) ->  | AB116: =IF($AJ$4=0,AH116,AE116+$AL$46) -> 0 | AC116: =IF($AJ$4=0,AI116,AF116+$AL$47) -> -5 | AD116: =IF($AJ$4=0,AJ116,AG116+$AL$48) -> 0 | AE116: =TRANSPOSE(MMULT($AO$40:$AQ$42,TRANSPOSE(AH116:AJ116))) -> -2.236067977 | AF116: 0 | AG116: 4.472135955 | AH116: 0 | AI116: =-AD114 -> -5 | AJ116: =IF($AB$7=0,NA(),0) -> 0 | AK116: =TRANSPOSE(MMULT($O$10:$Q$12,TRANSPOSE(AB116:AD116))) -> -3.830222216 | AL116: 1.606969024 | AM116: -2.783351996 | AN116: =$X$5+$X$4*IF($U$8=1,AK116,(AK116*$U$6)/($U$6+$U$7+AL116)) -> -3.830222216 | AO116: =$X$6+$X$4*IF($U$8=1,AL116,(AM116*$U$6)/($U$6+$U$7+AL116)) -> 1.606969024 | AP116: =AH116 -> 0 | AQ116: =-AP114 -> -5 | AR116: =AJ116 -> 0 | AS116: =TRANSPOSE(MMULT($AE$10:$AG$12,TRANSPOSE(AP116:AR116))) -> -3.830222216 | AT116: 1.606969024 | AU116: -2.783351996 | AV116: =$Y$5+$Y$4*IF($U$8=1,AS116,(AS116*$U$6)/($U$6+$U$7+AT116)) -> -1.532088886 | AW116: =$Y$6+$Y$4*IF($U$8=1,AT116,(AU116*$U$6)/($U$6+$U$7+AT116)) -> 0.6427876097
A117: 117 | L117: =IF($AK$38=0,TRANSPOSE(MMULT($O$10:$Q$12,TRANSPOSE(C117:E117))),TRANSPOSE(MMULT($O$10:$Q$12,TRANSPOSE(Y117:AA117)))) ->  | Q117: =TRANSPOSE(MMULT($AE$10:$AG$12,TRANSPOSE(F117:H117))) ->  | V117: =TRANSPOSE(MMULT($AO$40:$AQ$42,TRANSPOSE(C117:E117))) ->  | AB117: =IF($AJ$4=0,AH117,AE117+$AL$46) -> 5 | AC117: =IF($AJ$4=0,AI117,AF117+$AL$47) -> -5 | AD117: =IF($AJ$4=0,AJ117,AG117+$AL$48) -> 0 | AE117: =TRANSPOSE(MMULT($AO$40:$AQ$42,TRANSPOSE(AH117:AJ117))) -> -2.236067977 | AF117: -5 | AG117: 4.472135955 | AH117: =AD114 -> 5 | AI117: =-AD114 -> -5 | AJ117: =IF($AB$7=0,NA(),0) -> 0 | AK117: =TRANSPOSE(MMULT($O$10:$Q$12,TRANSPOSE(AB117:AD117))) -> -7.044160264 | AL117: -0.3081420836 | AM117: 0.5337177447 | AN117: =$X$5+$X$4*IF($U$8=1,AK117,(AK117*$U$6)/($U$6+$U$7+AL117)) -> -7.044160264 | AO117: =$X$6+$X$4*IF($U$8=1,AL117,(AM117*$U$6)/($U$6+$U$7+AL117)) -> -0.3081420836 | AP117: =AP114 -> 5 | AQ117: =-AP114 -> -5 | AR117: 0 | AS117: =TRANSPOSE(MMULT($AE$10:$AG$12,TRANSPOSE(AP117:AR117))) -> -7.044160264 | AT117: -0.3081420836 | AU117: 0.5337177447 | AV117: =$Y$5+$Y$4*IF($U$8=1,AS117,(AS117*$U$6)/($U$6+$U$7+AT117)) -> -2.817664106 | AW117: =$Y$6+$Y$4*IF($U$8=1,AT117,(AU117*$U$6)/($U$6+$U$7+AT117)) -> -0.1232568334
A118: 118 | L118: =IF($AK$38=0,TRANSPOSE(MMULT($O$10:$Q$12,TRANSPOSE(C118:E118))),TRANSPOSE(MMULT($O$10:$Q$12,TRANSPOSE(Y118:AA118)))) ->  | Q118: =TRANSPOSE(MMULT($AE$10:$AG$12,TRANSPOSE(F118:H118))) ->  | V118: =TRANSPOSE(MMULT($AO$40:$AQ$42,TRANSPOSE(C118:E118))) ->  | AB118: 5 | AC118: 5 | AD118: 0 | AE118: =TRANSPOSE(MMULT($AO$40:$AQ$42,TRANSPOSE(AH118:AJ118))) -> 2.236067977 | AF118: -5 | AG118: -4.472135955 | AH118: =AD114 -> 5 | AI118: =AD114 -> 5 | AJ118: 0 | AK118: =TRANSPOSE(MMULT($O$10:$Q$12,TRANSPOSE(AB118:AD118))) -> 0.6162841672 | AL118: -3.522080132 | AM118: 6.100421737 | AN118: 0.6162841672 | AO118: -3.522080132 | AP118: =AP114 -> 5 | AQ118: =AP114 -> 5 | AR118: 0 | AS118: =TRANSPOSE(MMULT($AE$10:$AG$12,TRANSPOSE(AP118:AR118))) -> 0.6162841672 | AT118: -3.522080132 | AU118: 6.100421737 | AV118: 0.2465136669 | AW118: -1.408832053
A119: 119 | L119: =IF($AK$38=0,TRANSPOSE(MMULT($O$10:$Q$12,TRANSPOSE(C119:E119))),TRANSPOSE(MMULT($O$10:$Q$12,TRANSPOSE(Y119:AA119)))) ->  | Q119: =TRANSPOSE(MMULT($AE$10:$AG$12,TRANSPOSE(F119:H119))) ->  | V119: =TRANSPOSE(MMULT($AO$40:$AQ$42,TRANSPOSE(C119:E119))) ->  | AB119: 0 | AC119: 5 | AD119: 0 | AE119: =TRANSPOSE(MMULT($AO$40:$AQ$42,TRANSPOSE(AH119:AJ119))) -> 2.236067977 | AF119: 0 | AG119: -4.472135955 | AH119: 0 | AI119: =AD114 -> 5 | AJ119: 0 | AK119: =TRANSPOSE(MMULT($O$10:$Q$12,TRANSPOSE(AB119:AD119))) -> 3.830222216 | AL119: -1.606969024 | AM119: 2.783351996 | AN119: 3.830222216 | AO119: -1.606969024 | AP119: =AH119 -> 0 | AQ119: =AP114 -> 5 | AR119: 0 | AS119: =TRANSPOSE(MMULT($AE$10:$AG$12,TRANSPOSE(AP119:AR119))) -> 3.830222216 | AT119: -1.606969024 | AU119: 2.783351996 | AV119: 1.532088886 | AW119: -0.6427876097
A120: 120 | L120: =IF($AK$38=0,TRANSPOSE(MMULT($O$10:$Q$12,TRANSPOSE(C120:E120))),TRANSPOSE(MMULT($O$10:$Q$12,TRANSPOSE(Y120:AA120)))) ->  | Q120: =TRANSPOSE(MMULT($AE$10:$AG$12,TRANSPOSE(F120:H120))) ->  | V120: =TRANSPOSE(MMULT($AO$40:$AQ$42,TRANSPOSE(C120:E120))) ->  | AB120: 0 | AC120: -5 | AD120: 0 | AE120: =TRANSPOSE(MMULT($AO$40:$AQ$42,TRANSPOSE(AH120:AJ120))) -> -2.236067977 | AF120: 0 | AG120: 4.472135955 | AH120: 0 | AI120: =-AD114 -> -5 | AJ120: 0 | AK120: =TRANSPOSE(MMULT($O$10:$Q$12,TRANSPOSE(AB120:AD120))) -> -3.830222216 | AL120: 1.606969024 | AM120: -2.783351996 | AN120: -3.830222216 | AO120: 1.606969024 | AP120: =AH120 -> 0 | AQ120: =-AP114 -> -5 | AR120: 0 | AS120: =TRANSPOSE(MMULT($AE$10:$AG$12,TRANSPOSE(AP120:AR120))) -> -3.830222216 | AT120: 1.606969024 | AU120: -2.783351996 | AV120: -1.532088886 | AW120: 0.6427876097
A121: 121 | L121: =IF($AK$38=0,TRANSPOSE(MMULT($O$10:$Q$12,TRANSPOSE(C121:E121))),TRANSPOSE(MMULT($O$10:$Q$12,TRANSPOSE(Y121:AA121)))) ->  | Q121: =TRANSPOSE(MMULT($AE$10:$AG$12,TRANSPOSE(F121:H121))) ->  | V121: =TRANSPOSE(MMULT($AO$40:$AQ$42,TRANSPOSE(C121:E121))) ->  | AB121: -5 | AC121: -5 | AD121: 0 | AE121: =TRANSPOSE(MMULT($AO$40:$AQ$42,TRANSPOSE(AH121:AJ121))) -> -2.236067977 | AF121: 5 | AG121: 4.472135955 | AH121: =-AD114 -> -5 | AI121: =-AD114 -> -5 | AJ121: 0 | AK121: =TRANSPOSE(MMULT($O$10:$Q$12,TRANSPOSE(AB121:AD121))) -> -0.6162841672 | AL121: 3.522080132 | AM121: -6.100421737 | AN121: -0.6162841672 | AO121: 3.522080132 | AP121: =-AP114 -> -5 | AQ121: =-AP114 -> -5 | AR121: 0 | AS121: =TRANSPOSE(MMULT($AE$10:$AG$12,TRANSPOSE(AP121:AR121))) -> -0.6162841672 | AT121: 3.522080132 | AU121: -6.100421737 | AV121: -0.2465136669 | AW121: 1.408832053
A122: 122 | L122: =IF($AK$38=0,TRANSPOSE(MMULT($O$10:$Q$12,TRANSPOSE(C122:E122))),TRANSPOSE(MMULT($O$10:$Q$12,TRANSPOSE(Y122:AA122)))) ->  | Q122: =TRANSPOSE(MMULT($AE$10:$AG$12,TRANSPOSE(F122:H122))) ->  | V122: =TRANSPOSE(MMULT($AO$40:$AQ$42,TRANSPOSE(C122:E122))) ->  | AB122: -5 | AC122: 5 | AD122: 0 | AE122: =TRANSPOSE(MMULT($AO$40:$AQ$42,TRANSPOSE(AH122:AJ122))) -> 2.236067977 | AF122: 5 | AG122: -4.472135955 | AH122: =-AD114 -> -5 | AI122: =AD114 -> 5 | AJ122: 0 | AK122: =TRANSPOSE(MMULT($O$10:$Q$12,TRANSPOSE(AB122:AD122))) -> 7.044160264 | AL122: 0.3081420836 | AM122: -0.5337177447 | AN122: 7.044160264 | AO122: 0.3081420836 | AP122: =-AP114 -> -5 | AQ122: =AP114 -> 5 | AR122: 0 | AS122: =TRANSPOSE(MMULT($AE$10:$AG$12,TRANSPOSE(AP122:AR122))) -> 7.044160264 | AT122: 0.3081420836 | AU122: -0.5337177447 | AV122: 2.817664106 | AW122: 0.1232568334
A123: 123 | L123: =IF($AK$38=0,TRANSPOSE(MMULT($O$10:$Q$12,TRANSPOSE(C123:E123))),TRANSPOSE(MMULT($O$10:$Q$12,TRANSPOSE(Y123:AA123)))) ->  | Q123: =TRANSPOSE(MMULT($AE$10:$AG$12,TRANSPOSE(F123:H123))) ->  | V123: =TRANSPOSE(MMULT($AO$40:$AQ$42,TRANSPOSE(C123:E123))) ->  | AB123: 5 | AC123: 5 | AD123: 0 | AE123: =TRANSPOSE(MMULT($AO$40:$AQ$42,TRANSPOSE(AH123:AJ123))) -> 2.236067977 | AF123: -5 | AG123: -4.472135955 | AH123: =AD114 -> 5 | AI123: =AD114 -> 5 | AJ123: 0 | AK123: =TRANSPOSE(MMULT($O$10:$Q$12,TRANSPOSE(AB123:AD123))) -> 0.6162841672 | AL123: -3.522080132 | AM123: 6.100421737 | AN123: 0.6162841672 | AO123: -3.522080132 | AP123: =AP114 -> 5 | AQ123: =AP114 -> 5 | AR123: 0 | AS123: =TRANSPOSE(MMULT($AE$10:$AG$12,TRANSPOSE(AP123:AR123))) -> 0.6162841672 | AT123: -3.522080132 | AU123: 6.100421737 | AV123: 0.2465136669 | AW123: -1.408832053
A124: 124 | L124: =IF($AK$38=0,TRANSPOSE(MMULT($O$10:$Q$12,TRANSPOSE(C124:E124))),TRANSPOSE(MMULT($O$10:$Q$12,TRANSPOSE(Y124:AA124)))) ->  | Q124: =TRANSPOSE(MMULT($AE$10:$AG$12,TRANSPOSE(F124:H124))) ->  | V124: =TRANSPOSE(MMULT($AO$40:$AQ$42,TRANSPOSE(C124:E124))) ->  | AB124: 5 | AC124: 0 | AD124: 0 | AE124: =TRANSPOSE(MMULT($AO$40:$AQ$42,TRANSPOSE(AH124:AJ124))) -> 0 | AF124: -5 | AG124: 0 | AH124: =AD114 -> 5 | AI124: 0 | AJ124: 0 | AK124: =TRANSPOSE(MMULT($O$10:$Q$12,TRANSPOSE(AB124:AD124))) -> -3.213938048 | AL124: -1.915111108 | AM124: 3.317069741 | AN124: -3.213938048 | AO124: -1.915111108 | AP124: =AP114 -> 5 | AQ124: =AI124 -> 0 | AR124: 0 | AS124: =TRANSPOSE(MMULT($AE$10:$AG$12,TRANSPOSE(AP124:AR124))) -> -3.213938048 | AT124: -1.915111108 | AU124: 3.317069741 | AV124: -1.285575219 | AW124: -0.7660444431
A125: 125 | L125: =IF($AK$38=0,TRANSPOSE(MMULT($O$10:$Q$12,TRANSPOSE(C125:E125))),TRANSPOSE(MMULT($O$10:$Q$12,TRANSPOSE(Y125:AA125)))) ->  | Q125: =TRANSPOSE(MMULT($AE$10:$AG$12,TRANSPOSE(F125:H125))) ->  | V125: =TRANSPOSE(MMULT($AO$40:$AQ$42,TRANSPOSE(C125:E125))) ->  | AB125: -5 | AC125: 0 | AD125: 0 | AE125: =TRANSPOSE(MMULT($AO$40:$AQ$42,TRANSPOSE(AH125:AJ125))) -> 0 | AF125: 5 | AG125: 0 | AH125: =-AD114 -> -5 | AI125: 0 | AJ125: 0 | AK125: =TRANSPOSE(MMULT($O$10:$Q$12,TRANSPOSE(AB125:AD125))) -> 3.213938048 | AL125: 1.915111108 | AM125: -3.317069741 | AN125: 3.213938048 | AO125: 1.915111108 | AP125: =-AP114 -> -5 | AQ125: =AI125 -> 0 | AR125: 0 | AS125: =TRANSPOSE(MMULT($AE$10:$AG$12,TRANSPOSE(AP125:AR125))) -> 3.213938048 | AT125: 1.915111108 | AU125: -3.317069741 | AV125: 1.285575219 | AW125: 0.7660444431
A126: 126 | L126: =IF($AK$38=0,TRANSPOSE(MMULT($O$10:$Q$12,TRANSPOSE(C126:E126))),TRANSPOSE(MMULT($O$10:$Q$12,TRANSPOSE(Y126:AA126)))) ->  | Q126: =TRANSPOSE(MMULT($AE$10:$AG$12,TRANSPOSE(F126:H126))) ->  | V126: =TRANSPOSE(MMULT($AO$40:$AQ$42,TRANSPOSE(C126:E126))) -> 
A127: 127 | L127: =IF($AK$38=0,TRANSPOSE(MMULT($O$10:$Q$12,TRANSPOSE(C127:E127))),TRANSPOSE(MMULT($O$10:$Q$12,TRANSPOSE(Y127:AA127)))) ->  | Q127: =TRANSPOSE(MMULT($AE$10:$AG$12,TRANSPOSE(F127:H127))) ->  | V127: =TRANSPOSE(MMULT($AO$40:$AQ$42,TRANSPOSE(C127:E127))) ->  | AB127: y | AP127: =AB127 -> y
A128: 128 | L128: =IF($AK$38=0,TRANSPOSE(MMULT($O$10:$Q$12,TRANSPOSE(C128:E128))),TRANSPOSE(MMULT($O$10:$Q$12,TRANSPOSE(Y128:AA128)))) ->  | Q128: =TRANSPOSE(MMULT($AE$10:$AG$12,TRANSPOSE(F128:H128))) ->  | V128: =TRANSPOSE(MMULT($AO$40:$AQ$42,TRANSPOSE(C128:E128))) ->  | AB128: =IF($AJ$4=0,AH128,AE128+$AL$46) -> 5 | AC128: =IF($AJ$4=0,AI128,AF128+$AL$47) -> 0 | AD128: =IF($AJ$4=0,AJ128,AG128+$AL$48) -> 0 | AE128: =TRANSPOSE(MMULT($AO$40:$AQ$42,TRANSPOSE(AH128:AJ128))) -> 0 | AF128: -5 | AG128: 0 | AH128: =AD114 -> 5 | AI128: =IF($AD$7=0,NA(),0) -> 0 | AJ128: 0 | AK128: =TRANSPOSE(MMULT($O$10:$Q$12,TRANSPOSE(AB128:AD128))) -> -3.213938048 | AL128: -1.915111108 | AM128: 3.317069741 | AN128: =$X$5+$X$4*IF($U$8=1,AK128,(AK128*$U$6)/($U$6+$U$7+AL128)) -> -3.213938048 | AO128: =$X$6+$X$4*IF($U$8=1,AL128,(AM128*$U$6)/($U$6+$U$7+AL128)) -> -1.915111108 | AP128: =AP114 -> 5 | AQ128: =AI128 -> 0 | AR128: =AJ128 -> 0 | AS128: =TRANSPOSE(MMULT($AE$10:$AG$12,TRANSPOSE(AP128:AR128))) -> -3.213938048 | AT128: -1.915111108 | AU128: 3.317069741 | AV128: =$Y$5+$Y$4*IF($U$8=1,AS128,(AS128*$U$6)/($U$6+$U$7+AT128)) -> -1.285575219 | AW128: =$Y$6+$Y$4*IF($U$8=1,AT128,(AU128*$U$6)/($U$6+$U$7+AT128)) -> -0.7660444431
A129: 129 | L129: =IF($AK$38=0,TRANSPOSE(MMULT($O$10:$Q$12,TRANSPOSE(C129:E129))),TRANSPOSE(MMULT($O$10:$Q$12,TRANSPOSE(Y129:AA129)))) ->  | Q129: =TRANSPOSE(MMULT($AE$10:$AG$12,TRANSPOSE(F129:H129))) ->  | V129: =TRANSPOSE(MMULT($AO$40:$AQ$42,TRANSPOSE(C129:E129))) ->  | AB129: 5 | AC129: 0 | AD129: -5 | AE129: =TRANSPOSE(MMULT($AO$40:$AQ$42,TRANSPOSE(AH129:AJ129))) -> -4.472135955 | AF129: -5 | AG129: -2.236067977 | AH129: =AD114 -> 5 | AI129: =IF($AD$7=0,NA(),0) -> 0 | AJ129: =-AD114 -> -5 | AK129: =TRANSPOSE(MMULT($O$10:$Q$12,TRANSPOSE(AB129:AD129))) -> -3.213938048 | AL129: -6.245238127 | AM129: 0.8170697408 | AN129: =$X$5+$X$4*IF($U$8=1,AK129,(AK129*$U$6)/($U$6+$U$7+AL129)) -> -3.213938048 | AO129: =$X$6+$X$4*IF($U$8=1,AL129,(AM129*$U$6)/($U$6+$U$7+AL129)) -> -6.245238127 | AP129: =AP114 -> 5 | AQ129: =AI129 -> 0 | AR129: =-AP114 -> -5 | AS129: =TRANSPOSE(MMULT($AE$10:$AG$12,TRANSPOSE(AP129:AR129))) -> -3.213938048 | AT129: -6.245238127 | AU129: 0.8170697408 | AV129: =$Y$5+$Y$4*IF($U$8=1,AS129,(AS129*$U$6)/($U$6+$U$7+AT129)) -> -1.285575219 | AW129: =$Y$6+$Y$4*IF($U$8=1,AT129,(AU129*$U$6)/($U$6+$U$7+AT129)) -> -2.498095251
A130: 130 | L130: =IF($AK$38=0,TRANSPOSE(MMULT($O$10:$Q$12,TRANSPOSE(C130:E130))),TRANSPOSE(MMULT($O$10:$Q$12,TRANSPOSE(Y130:AA130)))) ->  | Q130: =TRANSPOSE(MMULT($AE$10:$AG$12,TRANSPOSE(F130:H130))) ->  | V130: =TRANSPOSE(MMULT($AO$40:$AQ$42,TRANSPOSE(C130:E130))) ->  | AB130: -5 | AC130: 0 | AD130: -5 | AE130: =TRANSPOSE(MMULT($AO$40:$AQ$42,TRANSPOSE(AH130:AJ130))) -> -4.472135955 | AF130: 5 | AG130: -2.236067977 | AH130: =-AD114 -> -5 | AI130: 0 | AJ130: =-AD114 -> -5 | AK130: =TRANSPOSE(MMULT($O$10:$Q$12,TRANSPOSE(AB130:AD130))) -> 3.213938048 | AL130: -2.415015911 | AM130: -5.817069741 | AN130: 3.213938048 | AO130: -2.415015911 | AP130: =-AP114 -> -5 | AQ130: 0 | AR130: =-AP114 -> -5 | AS130: =TRANSPOSE(MMULT($AE$10:$AG$12,TRANSPOSE(AP130:AR130))) -> 3.213938048 | AT130: -2.415015911 | AU130: -5.817069741 | AV130: 1.285575219 | AW130: -0.9660063644
A131: 131 | L131: =IF($AK$38=0,TRANSPOSE(MMULT($O$10:$Q$12,TRANSPOSE(C131:E131))),TRANSPOSE(MMULT($O$10:$Q$12,TRANSPOSE(Y131:AA131)))) ->  | Q131: =TRANSPOSE(MMULT($AE$10:$AG$12,TRANSPOSE(F131:H131))) ->  | V131: =TRANSPOSE(MMULT($AO$40:$AQ$42,TRANSPOSE(C131:E131))) ->  | AB131: -5 | AC131: 0 | AD131: 0 | AE131: =TRANSPOSE(MMULT($AO$40:$AQ$42,TRANSPOSE(AH131:AJ131))) -> 0 | AF131: 5 | AG131: 0 | AH131: =-AD114 -> -5 | AI131: 0 | AJ131: 0 | AK131: =TRANSPOSE(MMULT($O$10:$Q$12,TRANSPOSE(AB131:AD131))) -> 3.213938048 | AL131: 1.915111108 | AM131: -3.317069741 | AN131: 3.213938048 | AO131: 1.915111108 | AP131: =-AP114 -> -5 | AQ131: 0 | AR131: =AJ131 -> 0 | AS131: =TRANSPOSE(MMULT($AE$10:$AG$12,TRANSPOSE(AP131:AR131))) -> 3.213938048 | AT131: 1.915111108 | AU131: -3.317069741 | AV131: 1.285575219 | AW131: 0.7660444431
A132: 132 | L132: =IF($AK$38=0,TRANSPOSE(MMULT($O$10:$Q$12,TRANSPOSE(C132:E132))),TRANSPOSE(MMULT($O$10:$Q$12,TRANSPOSE(Y132:AA132)))) ->  | Q132: =TRANSPOSE(MMULT($AE$10:$AG$12,TRANSPOSE(F132:H132))) ->  | V132: =TRANSPOSE(MMULT($AO$40:$AQ$42,TRANSPOSE(C132:E132))) ->  | AB132: 5 | AC132: 0 | AD132: 0 | AE132: =TRANSPOSE(MMULT($AO$40:$AQ$42,TRANSPOSE(AH132:AJ132))) -> 0 | AF132: -5 | AG132: 0 | AH132: =AD114 -> 5 | AI132: 0 | AJ132: 0 | AK132: =TRANSPOSE(MMULT($O$10:$Q$12,TRANSPOSE(AB132:AD132))) -> -3.213938048 | AL132: -1.915111108 | AM132: 3.317069741 | AN132: -3.213938048 | AO132: -1.915111108 | AP132: =AP114 -> 5 | AQ132: 0 | AR132: =AJ132 -> 0 | AS132: =TRANSPOSE(MMULT($AE$10:$AG$12,TRANSPOSE(AP132:AR132))) -> -3.213938048 | AT132: -1.915111108 | AU132: 3.317069741 | AV132: -1.285575219 | AW132: -0.7660444431
A133: 133 | L133: =IF($AK$38=0,TRANSPOSE(MMULT($O$10:$Q$12,TRANSPOSE(C133:E133))),TRANSPOSE(MMULT($O$10:$Q$12,TRANSPOSE(Y133:AA133)))) ->  | Q133: =TRANSPOSE(MMULT($AE$10:$AG$12,TRANSPOSE(F133:H133))) ->  | V133: =TRANSPOSE(MMULT($AO$40:$AQ$42,TRANSPOSE(C133:E133))) ->  | AB133: 5 | AC133: 0 | AD133: 5 | AE133: =TRANSPOSE(MMULT($AO$40:$AQ$42,TRANSPOSE(AH133:AJ133))) -> 4.472135955 | AF133: -5 | AG133: 2.236067977 | AH133: =AD114 -> 5 | AI133: 0 | AJ133: =AD114 -> 5 | AK133: =TRANSPOSE(MMULT($O$10:$Q$12,TRANSPOSE(AB133:AD133))) -> -3.213938048 | AL133: 2.415015911 | AM133: 5.817069741 | AN133: -3.213938048 | AO133: 2.415015911 | AP133: =AP114 -> 5 | AQ133: 0 | AR133: =AP114 -> 5 | AS133: =TRANSPOSE(MMULT($AE$10:$AG$12,TRANSPOSE(AP133:AR133))) -> -3.213938048 | AT133: 2.415015911 | AU133: 5.817069741 | AV133: -1.285575219 | AW133: 0.9660063644
A134: 134 | L134: =IF($AK$38=0,TRANSPOSE(MMULT($O$10:$Q$12,TRANSPOSE(C134:E134))),TRANSPOSE(MMULT($O$10:$Q$12,TRANSPOSE(Y134:AA134)))) ->  | Q134: =TRANSPOSE(MMULT($AE$10:$AG$12,TRANSPOSE(F134:H134))) ->  | V134: =TRANSPOSE(MMULT($AO$40:$AQ$42,TRANSPOSE(C134:E134))) ->  | AB134: -5 | AC134: 0 | AD134: 5 | AE134: =TRANSPOSE(MMULT($AO$40:$AQ$42,TRANSPOSE(AH134:AJ134))) -> 4.472135955 | AF134: 5 | AG134: 2.236067977 | AH134: =-AD114 -> -5 | AI134: 0 | AJ134: =AD114 -> 5 | AK134: =TRANSPOSE(MMULT($O$10:$Q$12,TRANSPOSE(AB134:AD134))) -> 3.213938048 | AL134: 6.245238127 | AM134: -0.8170697408 | AN134: 3.213938048 | AO134: 6.245238127 | AP134: =-AP114 -> -5 | AQ134: 0 | AR134: =AP114 -> 5 | AS134: =TRANSPOSE(MMULT($AE$10:$AG$12,TRANSPOSE(AP134:AR134))) -> 3.213938048 | AT134: 6.245238127 | AU134: -0.8170697408 | AV134: 1.285575219 | AW134: 2.498095251
A135: 135 | L135: =IF($AK$38=0,TRANSPOSE(MMULT($O$10:$Q$12,TRANSPOSE(C135:E135))),TRANSPOSE(MMULT($O$10:$Q$12,TRANSPOSE(Y135:AA135)))) ->  | Q135: =TRANSPOSE(MMULT($AE$10:$AG$12,TRANSPOSE(F135:H135))) ->  | V135: =TRANSPOSE(MMULT($AO$40:$AQ$42,TRANSPOSE(C135:E135))) ->  | AB135: -5 | AC135: 0 | AD135: -5 | AE135: =TRANSPOSE(MMULT($AO$40:$AQ$42,TRANSPOSE(AH135:AJ135))) -> -4.472135955 | AF135: 5 | AG135: -2.236067977 | AH135: =-AD114 -> -5 | AI135: 0 | AJ135: =-AD114 -> -5 | AK135: =TRANSPOSE(MMULT($O$10:$Q$12,TRANSPOSE(AB135:AD135))) -> 3.213938048 | AL135: -2.415015911 | AM135: -5.817069741 | AN135: 3.213938048 | AO135: -2.415015911 | AP135: =-AP114 -> -5 | AQ135: 0 | AR135: =-AP114 -> -5 | AS135: =TRANSPOSE(MMULT($AE$10:$AG$12,TRANSPOSE(AP135:AR135))) -> 3.213938048 | AT135: -2.415015911 | AU135: -5.817069741 | AV135: 1.285575219 | AW135: -0.9660063644
A136: 136 | L136: =IF($AK$38=0,TRANSPOSE(MMULT($O$10:$Q$12,TRANSPOSE(C136:E136))),TRANSPOSE(MMULT($O$10:$Q$12,TRANSPOSE(Y136:AA136)))) ->  | Q136: =TRANSPOSE(MMULT($AE$10:$AG$12,TRANSPOSE(F136:H136))) ->  | V136: =TRANSPOSE(MMULT($AO$40:$AQ$42,TRANSPOSE(C136:E136))) ->  | AB136: 0 | AC136: 0 | AD136: -5 | AE136: =TRANSPOSE(MMULT($AO$40:$AQ$42,TRANSPOSE(AH136:AJ136))) -> -4.472135955 | AF136: 0 | AG136: -2.236067977 | AH136: 0 | AI136: 0 | AJ136: =-AD114 -> -5 | AK136: =TRANSPOSE(MMULT($O$10:$Q$12,TRANSPOSE(AB136:AD136))) -> -3.062871137e-16 | AL136: -4.330127019 | AM136: -2.5 | AN136: -3.062871137e-16 | AO136: -4.330127019 | AP136: =AH136 -> 0 | AQ136: 0 | AR136: =-AP114 -> -5 | AS136: =TRANSPOSE(MMULT($AE$10:$AG$12,TRANSPOSE(AP136:AR136))) -> -3.062871137e-16 | AT136: -4.330127019 | AU136: -2.5 | AV136: -1.225148455e-16 | AW136: -1.732050808
A137: 137 | L137: =IF($AK$38=0,TRANSPOSE(MMULT($O$10:$Q$12,TRANSPOSE(C137:E137))),TRANSPOSE(MMULT($O$10:$Q$12,TRANSPOSE(Y137:AA137)))) ->  | Q137: =TRANSPOSE(MMULT($AE$10:$AG$12,TRANSPOSE(F137:H137))) ->  | V137: =TRANSPOSE(MMULT($AO$40:$AQ$42,TRANSPOSE(C137:E137))) ->  | AB137: 0 | AC137: 0 | AD137: 5 | AE137: =TRANSPOSE(MMULT($AO$40:$AQ$42,TRANSPOSE(AH137:AJ137))) -> 4.472135955 | AF137: 0 | AG137: 2.236067977 | AH137: 0 | AI137: 0 | AJ137: =AD114 -> 5 | AK137: =TRANSPOSE(MMULT($O$10:$Q$12,TRANSPOSE(AB137:AD137))) -> 3.062871137e-16 | AL137: 4.330127019 | AM137: 2.5 | AN137: 3.062871137e-16 | AO137: 4.330127019 | AP137: =AH137 -> 0 | AQ137: 0 | AR137: =AP114 -> 5 | AS137: =TRANSPOSE(MMULT($AE$10:$AG$12,TRANSPOSE(AP137:AR137))) -> 3.062871137e-16 | AT137: 4.330127019 | AU137: 2.5 | AV137: 1.225148455e-16 | AW137: 1.732050808
A138: 138 | L138: =IF($AK$38=0,TRANSPOSE(MMULT($O$10:$Q$12,TRANSPOSE(C138:E138))),TRANSPOSE(MMULT($O$10:$Q$12,TRANSPOSE(Y138:AA138)))) ->  | Q138: =TRANSPOSE(MMULT($AE$10:$AG$12,TRANSPOSE(F138:H138))) ->  | V138: =TRANSPOSE(MMULT($AO$40:$AQ$42,TRANSPOSE(C138:E138))) -> 
A139: 139 | L139: =IF($AK$38=0,TRANSPOSE(MMULT($O$10:$Q$12,TRANSPOSE(C139:E139))),TRANSPOSE(MMULT($O$10:$Q$12,TRANSPOSE(Y139:AA139)))) ->  | Q139: =TRANSPOSE(MMULT($AE$10:$AG$12,TRANSPOSE(F139:H139))) ->  | V139: =TRANSPOSE(MMULT($AO$40:$AQ$42,TRANSPOSE(C139:E139))) ->  | AB139: z | AP139: =AB139 -> z
A140: 140 | L140: =IF($AK$38=0,TRANSPOSE(MMULT($O$10:$Q$12,TRANSPOSE(C140:E140))),TRANSPOSE(MMULT($O$10:$Q$12,TRANSPOSE(Y140:AA140)))) ->  | Q140: =TRANSPOSE(MMULT($AE$10:$AG$12,TRANSPOSE(F140:H140))) ->  | V140: =TRANSPOSE(MMULT($AO$40:$AQ$42,TRANSPOSE(C140:E140))) ->  | AB140: 0 | AC140: -5 | AD140: 0 | AE140: =TRANSPOSE(MMULT($AO$40:$AQ$42,TRANSPOSE(AH140:AJ140))) -> -2.236067977 | AF140: 0 | AG140: 4.472135955 | AH140: =IF($AF$7=0,NA(),0) -> 0 | AI140: =AI116 -> -5 | AJ140: =AH116 -> 0 | AK140: =TRANSPOSE(MMULT($O$10:$Q$12,TRANSPOSE(AB140:AD140))) -> -3.830222216 | AL140: 1.606969024 | AM140: -2.783351996 | AN140: =$X$5+$X$4*IF($U$8=1,AK140,(AK140*$U$6)/($U$6+$U$7+AL140)) -> -3.830222216 | AO140: =$X$6+$X$4*IF($U$8=1,AL140,(AM140*$U$6)/($U$6+$U$7+AL140)) -> 1.606969024 | AP140: =AH140 -> 0 | AQ140: =AQ116 -> -5 | AR140: =AP116 -> 0 | AS140: =TRANSPOSE(MMULT($AE$10:$AG$12,TRANSPOSE(AP140:AR140))) -> -3.830222216 | AT140: 1.606969024 | AU140: -2.783351996 | AV140: =$Y$5+$Y$4*IF($U$8=1,AS140,(AS140*$U$6)/($U$6+$U$7+AT140)) -> -1.532088886 | AW140: =$Y$6+$Y$4*IF($U$8=1,AT140,(AU140*$U$6)/($U$6+$U$7+AT140)) -> 0.6427876097
A141: 141 | L141: =IF($AK$38=0,TRANSPOSE(MMULT($O$10:$Q$12,TRANSPOSE(C141:E141))),TRANSPOSE(MMULT($O$10:$Q$12,TRANSPOSE(Y141:AA141)))) ->  | Q141: =TRANSPOSE(MMULT($AE$10:$AG$12,TRANSPOSE(F141:H141))) ->  | V141: =TRANSPOSE(MMULT($AO$40:$AQ$42,TRANSPOSE(C141:E141))) ->  | AB141: 0 | AC141: -5 | AD141: 5 | AE141: =TRANSPOSE(MMULT($AO$40:$AQ$42,TRANSPOSE(AH141:AJ141))) -> 2.236067977 | AF141: 0 | AG141: 6.708203932 | AH141: =IF($AF$7=0,NA(),0) -> 0 | AI141: -5 | AJ141: 5 | AK141: =TRANSPOSE(MMULT($O$10:$Q$12,TRANSPOSE(AB141:AD141))) -> -3.830222216 | AL141: 5.937096043 | AM141: -0.2833519961 | AN141: =$X$5+$X$4*IF($U$8=1,AK141,(AK141*$U$6)/($U$6+$U$7+AL141)) -> -3.830222216 | AO141: =$X$6+$X$4*IF($U$8=1,AL141,(AM141*$U$6)/($U$6+$U$7+AL141)) -> 5.937096043 | AP141: 0 | AQ141: =AQ117 -> -5 | AR141: =AP117 -> 5 | AS141: =TRANSPOSE(MMULT($AE$10:$AG$12,TRANSPOSE(AP141:AR141))) -> -3.830222216 | AT141: 5.937096043 | AU141: -0.2833519961 | AV141: =$Y$5+$Y$4*IF($U$8=1,AS141,(AS141*$U$6)/($U$6+$U$7+AT141)) -> -1.532088886 | AW141: =$Y$6+$Y$4*IF($U$8=1,AT141,(AU141*$U$6)/($U$6+$U$7+AT141)) -> 2.374838417
A142: 142 | L142: =IF($AK$38=0,TRANSPOSE(MMULT($O$10:$Q$12,TRANSPOSE(C142:E142))),TRANSPOSE(MMULT($O$10:$Q$12,TRANSPOSE(Y142:AA142)))) ->  | Q142: =TRANSPOSE(MMULT($AE$10:$AG$12,TRANSPOSE(F142:H142))) ->  | V142: =TRANSPOSE(MMULT($AO$40:$AQ$42,TRANSPOSE(C142:E142))) ->  | AB142: 0 | AC142: 5 | AD142: 5 | AE142: =TRANSPOSE(MMULT($AO$40:$AQ$42,TRANSPOSE(AH142:AJ142))) -> 6.708203932 | AF142: 0 | AG142: -2.236067977 | AH142: 0 | AI142: 5 | AJ142: 5 | AK142: =TRANSPOSE(MMULT($O$10:$Q$12,TRANSPOSE(AB142:AD142))) -> 3.830222216 | AL142: 2.723157995 | AM142: 5.283351996 | AN142: 3.830222216 | AO142: 2.723157995 | AP142: 0 | AQ142: 5 | AR142: 5 | AS142: =TRANSPOSE(MMULT($AE$10:$AG$12,TRANSPOSE(AP142:AR142))) -> 3.830222216 | AT142: 2.723157995 | AU142: 5.283351996 | AV142: 1.532088886 | AW142: 1.089263198
A143: 143 | L143: =IF($AK$38=0,TRANSPOSE(MMULT($O$10:$Q$12,TRANSPOSE(C143:E143))),TRANSPOSE(MMULT($O$10:$Q$12,TRANSPOSE(Y143:AA143)))) ->  | Q143: =TRANSPOSE(MMULT($AE$10:$AG$12,TRANSPOSE(F143:H143))) ->  | V143: =TRANSPOSE(MMULT($AO$40:$AQ$42,TRANSPOSE(C143:E143))) ->  | AB143: 0 | AC143: 5 | AD143: 0 | AE143: =TRANSPOSE(MMULT($AO$40:$AQ$42,TRANSPOSE(AH143:AJ143))) -> 2.236067977 | AF143: 0 | AG143: -4.472135955 | AH143: 0 | AI143: 5 | AJ143: 0 | AK143: =TRANSPOSE(MMULT($O$10:$Q$12,TRANSPOSE(AB143:AD143))) -> 3.830222216 | AL143: -1.606969024 | AM143: 2.783351996 | AN143: 3.830222216 | AO143: -1.606969024 | AP143: 0 | AQ143: 5 | AR143: 0 | AS143: =TRANSPOSE(MMULT($AE$10:$AG$12,TRANSPOSE(AP143:AR143))) -> 3.830222216 | AT143: -1.606969024 | AU143: 2.783351996 | AV143: 1.532088886 | AW143: -0.6427876097
A144: 144 | F144: =(F$7+2*I$7*$B144+3*L$7*$B144^2+4*O$7*$B144^3)*SIN(O$8*$B144^4+L$8*$B144^3+I$8*$B144^2+F$8*$B144+C$8)+(F$8+2*I$8*$B144+3*L$8*$B144^2+4*O$8*$B144^3)*(C$7+F$7*$B144+I$7*$B144^2+L$7*$B144^3+O$7*$B144^4)*COS(O$8*$B144^4+L$8*$B144^3+I$8*$B144^2+F$8*$B144+C$8)-(F$6+2*I$6*$B144+3*L$6*$B144^2+4*O$6*$B144^3)*(C$5+F$5*$B144+I$5*$B144^2+L$5*$B144^3+O$5*$B144^4)*SIN(O$6*$B144^4+L$6*$B144^3+I$6*$B144^2+F$6*$B144+C$6)+(F$5+2*I$5*$B144+3*L$5*$B144^2+4*O$5*$B144^3)*COS(O$6*$B144^4+L$6*$B144^3+I$6*$B144^2+F$6*$B144+C$6)+4*O$4*$B144^3+3*L$4*$B144^2+2*I$4*$B144+F$4 ->  | G144: =(G$7+2*J$7*$B144+3*M$7*$B144^2+4*P$7*$B144^3)*SIN(P$8*$B144^4+M$8*$B144^3+J$8*$B144^2+G$8*$B144+D$8)+(G$8+2*J$8*$B144+3*M$8*$B144^2+4*P$8*$B144^3)*(D$7+G$7*$B144+J$7*$B144^2+M$7*$B144^3+P$7*$B144^4)*COS(P$8*$B144^4+M$8*$B144^3+J$8*$B144^2+G$8*$B144+D$8)-(G$6+2*J$6*$B144+3*M$6*$B144^2+4*P$6*$B144^3)*(D$5+G$5*$B144+J$5*$B144^2+M$5*$B144^3+P$5*$B144^4)*SIN(P$6*$B144^4+M$6*$B144^3+J$6*$B144^2+G$6*$B144+D$6)+(G$5+2*J$5*$B144+3*M$5*$B144^2+4*P$5*$B144^3)*COS(P$6*$B144^4+M$6*$B144^3+J$6*$B144^2+G$6*$B144+D$6)+4*P$4*$B144^3+3*M$4*$B144^2+2*J$4*$B144+G$4 ->  | H144: =(H$7+2*K$7*$B144+3*N$7*$B144^2+4*Q$7*$B144^3)*SIN(Q$8*$B144^4+N$8*$B144^3+K$8*$B144^2+H$8*$B144+E$8)+(H$8+2*K$8*$B144+3*N$8*$B144^2+4*Q$8*$B144^3)*(E$7+H$7*$B144+K$7*$B144^2+N$7*$B144^3+Q$7*$B144^4)*COS(Q$8*$B144^4+N$8*$B144^3+K$8*$B144^2+H$8*$B144+E$8)-(H$6+2*K$6*$B144+3*N$6*$B144^2+4*Q$6*$B144^3)*(E$5+H$5*$B144+K$5*$B144^2+N$5*$B144^3+Q$5*$B144^4)*SIN(Q$6*$B144^4+N$6*$B144^3+K$6*$B144^2+H$6*$B144+E$6)+(H$5+2*K$5*$B144+3*N$5*$B144^2+4*Q$5*$B144^3)*COS(Q$6*$B144^4+N$6*$B144^3+K$6*$B144^2+H$6*$B144+E$6)+4*Q$4*$B144^3+3*N$4*$B144^2+2*K$4*$B144+H$4 ->  | I144: =-1*(F$8+2*I$8*$B144+3*L$8*$B144^2+4*O$8*$B144^3)^2*(C$7+F$7*$B144+I$7*$B144^2+L$7*$B144^3+O$7*$B144^4)*SIN(O$8*$B144^4+L$8*$B144^3+I$8*$B144^2+F$8*$B144+C$8)+(2*I$7+6*L$7*$B144+12*O$7*$B144^2)*SIN(O$8*$B144^4+L$8*$B144^3+I$8*$B144^2+F$8*$B144+C$8)+(2*I$8+6*L$8*$B144+12*O$8*$B144^2)*(C$7+F$7*$B144+I$7*$B144^2+L$7*$B144^3+O$7*$B144^4)*COS(O$8*$B144^4+L$8*$B144^3+I$8*$B144^2+F$8*$B144+C$8)+2*(F$7+2*I$7*$B144+3*L$7*$B144^2+4*O$7*$B144^3)*(F$8+2*I$8*$B144+3*L$8*$B144^2+4*O$8*$B144^3)*COS(O$8*$B144^4+L$8*$B144^3+I$8*$B144^2+F$8*$B144+C$8)-(2*I$6+6*L$6*$B144+12*O$6*$B144^2)*(C$5+F$5*$B144+I$5*$B144^2+L$5*$B144^3+O$5*$B144^4)*SIN(O$6*$B144^4+L$6*$B144^3+I$6*$B144^2+F$6*$B144+C$6)-2*(F$5+2*I$5*$B144+3*L$5*$B144^2+4*O$5*$B144^3)*(F$6+2*I$6*$B144+3*L$6*$B144^2+4*O$6*$B144^3)*SIN(O$6*$B144^4+L$6*$B144^3+I$6*$B144^2+F$6*$B144+C$6)-(F$6+2*I$6*$B144+3*L$6*$B144^2+4*O$6*$B144^3)^2*(C$5+F$5*$B144+I$5*$B144^2+L$5*$B144^3+O$5*$B144^4)*COS(O$6*$B144^4+L$6*$B144^3+I$6*$B144^2+F$6*$B144+C$6)+(2*I$5+6*L$5*$B144+12*O$5*$B144^2)*COS(O$6*$B144^4+L$6*$B144^3+I$6*$B144^2+F$6*$B144+C$6)+12*O$4*$B144^2+6*L$4*$B144+2*I$4 ->  | J144: =-1*(G$8+2*J$8*$B144+3*M$8*$B144^2+4*P$8*$B144^3)^2*(D$7+G$7*$B144+J$7*$B144^2+M$7*$B144^3+P$7*$B144^4)*SIN(P$8*$B144^4+M$8*$B144^3+J$8*$B144^2+G$8*$B144+D$8)+(2*J$7+6*M$7*$B144+12*P$7*$B144^2)*SIN(P$8*$B144^4+M$8*$B144^3+J$8*$B144^2+G$8*$B144+D$8)+(2*J$8+6*M$8*$B144+12*P$8*$B144^2)*(D$7+G$7*$B144+J$7*$B144^2+M$7*$B144^3+P$7*$B144^4)*COS(P$8*$B144^4+M$8*$B144^3+J$8*$B144^2+G$8*$B144+D$8)+2*(G$7+2*J$7*$B144+3*M$7*$B144^2+4*P$7*$B144^3)*(G$8+2*J$8*$B144+3*M$8*$B144^2+4*P$8*$B144^3)*COS(P$8*$B144^4+M$8*$B144^3+J$8*$B144^2+G$8*$B144+D$8)-(2*J$6+6*M$6*$B144+12*P$6*$B144^2)*(D$5+G$5*$B144+J$5*$B144^2+M$5*$B144^3+P$5*$B144^4)*SIN(P$6*$B144^4+M$6*$B144^3+J$6*$B144^2+G$6*$B144+D$6)-2*(G$5+2*J$5*$B144+3*M$5*$B144^2+4*P$5*$B144^3)*(G$6+2*J$6*$B144+3*M$6*$B144^2+4*P$6*$B144^3)*SIN(P$6*$B144^4+M$6*$B144^3+J$6*$B144^2+G$6*$B144+D$6)-(G$6+2*J$6*$B144+3*M$6*$B144^2+4*P$6*$B144^3)^2*(D$5+G$5*$B144+J$5*$B144^2+M$5*$B144^3+P$5*$B144^4)*COS(P$6*$B144^4+M$6*$B144^3+J$6*$B144^2+G$6*$B144+D$6)+(2*J$5+6*M$5*$B144+12*P$5*$B144^2)*COS(P$6*$B144^4+M$6*$B144^3+J$6*$B144^2+G$6*$B144+D$6)+12*P$4*$B144^2+6*M$4*$B144+2*J$4 ->  | K144: =-1*(H$8+2*K$8*$B144+3*N$8*$B144^2+4*Q$8*$B144^3)^2*(E$7+H$7*$B144+K$7*$B144^2+N$7*$B144^3+Q$7*$B144^4)*SIN(Q$8*$B144^4+N$8*$B144^3+K$8*$B144^2+H$8*$B144+E$8)+(2*K$7+6*N$7*$B144+12*Q$7*$B144^2)*SIN(Q$8*$B144^4+N$8*$B144^3+K$8*$B144^2+H$8*$B144+E$8)+(2*K$8+6*N$8*$B144+12*Q$8*$B144^2)*(E$7+H$7*$B144+K$7*$B144^2+N$7*$B144^3+Q$7*$B144^4)*COS(Q$8*$B144^4+N$8*$B144^3+K$8*$B144^2+H$8*$B144+E$8)+2*(H$7+2*K$7*$B144+3*N$7*$B144^2+4*Q$7*$B144^3)*(H$8+2*K$8*$B144+3*N$8*$B144^2+4*Q$8*$B144^3)*COS(Q$8*$B144^4+N$8*$B144^3+K$8*$B144^2+H$8*$B144+E$8)-(2*K$6+6*N$6*$B144+12*Q$6*$B144^2)*(E$5+H$5*$B144+K$5*$B144^2+N$5*$B144^3+Q$5*$B144^4)*SIN(Q$6*$B144^4+N$6*$B144^3+K$6*$B144^2+H$6*$B144+E$6)-2*(H$5+2*K$5*$B144+3*N$5*$B144^2+4*Q$5*$B144^3)*(H$6+2*K$6*$B144+3*N$6*$B144^2+4*Q$6*$B144^3)*SIN(Q$6*$B144^4+N$6*$B144^3+K$6*$B144^2+H$6*$B144+E$6)-(H$6+2*K$6*$B144+3*N$6*$B144^2+4*Q$6*$B144^3)^2*(E$5+H$5*$B144+K$5*$B144^2+N$5*$B144^3+Q$5*$B144^4)*COS(Q$6*$B144^4+N$6*$B144^3+K$6*$B144^2+H$6*$B144+E$6)+(2*K$5+6*N$5*$B144+12*Q$5*$B144^2)*COS(Q$6*$B144^4+N$6*$B144^3+K$6*$B144^2+H$6*$B144+E$6)+12*Q$4*$B144^2+6*N$4*$B144+2*K$4 ->  | L144: =IF($AK$38=0,TRANSPOSE(MMULT($O$10:$Q$12,TRANSPOSE(C144:E144))),TRANSPOSE(MMULT($O$10:$Q$12,TRANSPOSE(Y144:AA144)))) ->  | Q144: =TRANSPOSE(MMULT($AE$10:$AG$12,TRANSPOSE(F144:H144))) ->  | T144: =$Y$5+$Y$4*IF($U$8=1,Q144,(Q144*$U$6)/($U$6+$U$7+R144)) ->  | U144: =$Y$6+$Y$4*IF($U$8=1,R144,(S144*$U$6)/($U$6+$U$7+R144)) ->  | V144: =TRANSPOSE(MMULT($AO$40:$AQ$42,TRANSPOSE(C144:E144))) ->  | Y144: =V144+$AL$46 ->  | Z144: =W144+$AL$47 ->  | AA144: =X144+$AL$48 ->  | AB144: 0 | AC144: -5 | AD144: 0 | AE144: =TRANSPOSE(MMULT($AO$40:$AQ$42,TRANSPOSE(AH144:AJ144))) -> -2.236067977 | AF144: 0 | AG144: 4.472135955 | AH144: 0 | AI144: -5 | AJ144: 0 | AK144: =TRANSPOSE(MMULT($O$10:$Q$12,TRANSPOSE(AB144:AD144))) -> -3.830222216 | AL144: 1.606969024 | AM144: -2.783351996 | AN144: -3.830222216 | AO144: 1.606969024 | AP144: 0 | AQ144: -5 | AR144: 0 | AS144: =TRANSPOSE(MMULT($AE$10:$AG$12,TRANSPOSE(AP144:AR144))) -> -3.830222216 | AT144: 1.606969024 | AU144: -2.783351996 | AV144: -1.532088886 | AW144: 0.6427876097
A145: 145 | L145: =IF($AK$38=0,TRANSPOSE(MMULT($O$10:$Q$12,TRANSPOSE(C145:E145))),TRANSPOSE(MMULT($O$10:$Q$12,TRANSPOSE(Y145:AA145)))) ->  | O145: =IF($AD$4=0,NA(),$X$5+$X$4*IF($U$8=1,L145,(L145*$U$6)/($U$6+$U$7+M145))) ->  | P145: =IF($AD$4=0,NA(),$X$6+$X$4*IF($U$8=1,M145,(N145*$U$6)/($U$6+$U$7+M145))) ->  | Q145: =TRANSPOSE(MMULT($AE$10:$AG$12,TRANSPOSE(F145:H145))) ->  | V145: =TRANSPOSE(MMULT($AO$40:$AQ$42,TRANSPOSE(C145:E145))) ->  | AB145: 0 | AC145: -5 | AD145: -5 | AE145: =TRANSPOSE(MMULT($AO$40:$AQ$42,TRANSPOSE(AH145:AJ145))) -> -6.708203932 | AF145: 0 | AG145: 2.236067977 | AH145: 0 | AI145: -5 | AJ145: -5 | AK145: =TRANSPOSE(MMULT($O$10:$Q$12,TRANSPOSE(AB145:AD145))) -> -3.830222216 | AL145: -2.723157995 | AM145: -5.283351996 | AN145: -3.830222216 | AO145: -2.723157995 | AP145: 0 | AQ145: -5 | AR145: -5 | AS145: =TRANSPOSE(MMULT($AE$10:$AG$12,TRANSPOSE(AP145:AR145))) -> -3.830222216 | AT145: -2.723157995 | AU145: -5.283351996 | AV145: -1.532088886 | AW145: -1.089263198
A146: 146 | B146: =IF(B145<$B$3,B145+$S$3,NA()) ->  | L146: =IF($AK$38=0,TRANSPOSE(MMULT($O$10:$Q$12,TRANSPOSE(C146:E146))),TRANSPOSE(MMULT($O$10:$Q$12,TRANSPOSE(Y146:AA146)))) ->  | Q146: =TRANSPOSE(MMULT($AE$10:$AG$12,TRANSPOSE(F146:H146))) ->  | V146: =TRANSPOSE(MMULT($AO$40:$AQ$42,TRANSPOSE(C146:E146))) ->  | AB146: 0 | AC146: 5 | AD146: -5 | AE146: =TRANSPOSE(MMULT($AO$40:$AQ$42,TRANSPOSE(AH146:AJ146))) -> -2.236067977 | AF146: 0 | AG146: -6.708203932 | AH146: 0 | AI146: 5 | AJ146: -5 | AK146: =TRANSPOSE(MMULT($O$10:$Q$12,TRANSPOSE(AB146:AD146))) -> 3.830222216 | AL146: -5.937096043 | AM146: 0.2833519961 | AN146: 3.830222216 | AO146: -5.937096043 | AP146: 0 | AQ146: 5 | AR146: -5 | AS146: =TRANSPOSE(MMULT($AE$10:$AG$12,TRANSPOSE(AP146:AR146))) -> 3.830222216 | AT146: -5.937096043 | AU146: 0.2833519961 | AV146: 1.532088886 | AW146: -2.374838417
A147: 147 | L147: =IF($AK$38=0,TRANSPOSE(MMULT($O$10:$Q$12,TRANSPOSE(C147:E147))),TRANSPOSE(MMULT($O$10:$Q$12,TRANSPOSE(Y147:AA147)))) ->  | Q147: =TRANSPOSE(MMULT($AE$10:$AG$12,TRANSPOSE(F147:H147))) ->  | V147: =TRANSPOSE(MMULT($AO$40:$AQ$42,TRANSPOSE(C147:E147))) ->  | AB147: 0 | AC147: 5 | AD147: 5 | AE147: =TRANSPOSE(MMULT($AO$40:$AQ$42,TRANSPOSE(AH147:AJ147))) -> 6.708203932 | AF147: 0 | AG147: -2.236067977 | AH147: 0 | AI147: 5 | AJ147: 5 | AK147: =TRANSPOSE(MMULT($O$10:$Q$12,TRANSPOSE(AB147:AD147))) -> 3.830222216 | AL147: 2.723157995 | AM147: 5.283351996 | AN147: 3.830222216 | AO147: 2.723157995 | AP147: 0 | AQ147: 5 | AR147: 5 | AS147: =TRANSPOSE(MMULT($AE$10:$AG$12,TRANSPOSE(AP147:AR147))) -> 3.830222216 | AT147: 2.723157995 | AU147: 5.283351996 | AV147: 1.532088886 | AW147: 1.089263198
A148: 148 | L148: =IF($AK$38=0,TRANSPOSE(MMULT($O$10:$Q$12,TRANSPOSE(C148:E148))),TRANSPOSE(MMULT($O$10:$Q$12,TRANSPOSE(Y148:AA148)))) ->  | Q148: =TRANSPOSE(MMULT($AE$10:$AG$12,TRANSPOSE(F148:H148))) ->  | V148: =TRANSPOSE(MMULT($AO$40:$AQ$42,TRANSPOSE(C148:E148))) ->  | AB148: 0 | AC148: 0 | AD148: 5 | AE148: =TRANSPOSE(MMULT($AO$40:$AQ$42,TRANSPOSE(AH148:AJ148))) -> 4.472135955 | AF148: 0 | AG148: 2.236067977 | AH148: 0 | AI148: 0 | AJ148: 5 | AK148: =TRANSPOSE(MMULT($O$10:$Q$12,TRANSPOSE(AB148:AD148))) -> 3.062871137e-16 | AL148: 4.330127019 | AM148: 2.5 | AN148: 3.062871137e-16 | AO148: 4.330127019 | AP148: 0 | AQ148: 0 | AR148: 5 | AS148: =TRANSPOSE(MMULT($AE$10:$AG$12,TRANSPOSE(AP148:AR148))) -> 3.062871137e-16 | AT148: 4.330127019 | AU148: 2.5 | AV148: 1.225148455e-16 | AW148: 1.732050808
A149: 149 | L149: =IF($AK$38=0,TRANSPOSE(MMULT($O$10:$Q$12,TRANSPOSE(C149:E149))),TRANSPOSE(MMULT($O$10:$Q$12,TRANSPOSE(Y149:AA149)))) ->  | Q149: =TRANSPOSE(MMULT($AE$10:$AG$12,TRANSPOSE(F149:H149))) ->  | V149: =TRANSPOSE(MMULT($AO$40:$AQ$42,TRANSPOSE(C149:E149))) -> 
A150: 150 | L150: =IF($AK$38=0,TRANSPOSE(MMULT($O$10:$Q$12,TRANSPOSE(C150:E150))),TRANSPOSE(MMULT($O$10:$Q$12,TRANSPOSE(Y150:AA150)))) ->  | Q150: =TRANSPOSE(MMULT($AE$10:$AG$12,TRANSPOSE(F150:H150))) ->  | V150: =TRANSPOSE(MMULT($AO$40:$AQ$42,TRANSPOSE(C150:E150))) ->  | AB150: triéder_síkok | AD150: =HOME!S47 -> 1
A151: 151 | L151: =IF($AK$38=0,TRANSPOSE(MMULT($O$10:$Q$12,TRANSPOSE(C151:E151))),TRANSPOSE(MMULT($O$10:$Q$12,TRANSPOSE(Y151:AA151)))) ->  | Q151: =TRANSPOSE(MMULT($AE$10:$AG$12,TRANSPOSE(F151:H151))) ->  | V151: =TRANSPOSE(MMULT($AO$40:$AQ$42,TRANSPOSE(C151:E151))) ->  | AB151: b
A152: 152 | L152: =IF($AK$38=0,TRANSPOSE(MMULT($O$10:$Q$12,TRANSPOSE(C152:E152))),TRANSPOSE(MMULT($O$10:$Q$12,TRANSPOSE(Y152:AA152)))) ->  | Q152: =TRANSPOSE(MMULT($AE$10:$AG$12,TRANSPOSE(F152:H152))) ->  | V152: =TRANSPOSE(MMULT($AO$40:$AQ$42,TRANSPOSE(C152:E152))) ->  | AB152: 0 | AC152: =-AD150 -> -1 | AD152: =IF($AB$8=0,NA(),0) -> 0 | AE152: =TRANSPOSE(MMULT($AK$40:$AM$42,TRANSPOSE(AB152:AD152))) -> 0.6425294053 | AF152: 0.685364699 | AG152: -0.3426823495 | AH152: =AE152+C$15 -> 3.642529405 | AI152: =AF152+D$15 -> 4.685364699 | AJ152: =AG152+E$15 -> -0.3426823495 | AK152: =TRANSPOSE(MMULT($O$10:$Q$12,TRANSPOSE(AH152:AJ152))) -> 1.247824822 | AL152: -3.197788513 | AM152: 4.853367477 | AN152: =$X$5+$X$4*IF($U$8=1,AK152,(AK152*$U$6)/($U$6+$U$7+AL152)) -> 1.247824822 | AO152: =$X$6+$X$4*IF($U$8=1,AL152,(AM152*$U$6)/($U$6+$U$7+AL152)) -> -3.197788513
A153: 153 | L153: =IF($AK$38=0,TRANSPOSE(MMULT($O$10:$Q$12,TRANSPOSE(C153:E153))),TRANSPOSE(MMULT($O$10:$Q$12,TRANSPOSE(Y153:AA153)))) ->  | Q153: =TRANSPOSE(MMULT($AE$10:$AG$12,TRANSPOSE(F153:H153))) ->  | V153: =TRANSPOSE(MMULT($AO$40:$AQ$42,TRANSPOSE(C153:E153))) ->  | AB153: =AD150 -> 1 | AC153: =-AD150 -> -1 | AD153: =IF($AB$8=0,NA(),0) -> 0 | AE153: =TRANSPOSE(MMULT($AK$40:$AM$42,TRANSPOSE(AB153:AD153))) -> 0.6425294053 | AF153: 1.132578295 | AG153: 0.5517448415 | AH153: 3.642529405 | AI153: 5.132578295 | AJ153: 0.5517448415 | AK153: =TRANSPOSE(MMULT($O$10:$Q$12,TRANSPOSE(AH153:AJ153))) -> 1.590410312 | AL153: -2.566923523 | AM153: 5.549531643 | AN153: =$X$5+$X$4*IF($U$8=1,AK153,(AK153*$U$6)/($U$6+$U$7+AL153)) -> 1.590410312 | AO153: =$X$6+$X$4*IF($U$8=1,AL153,(AM153*$U$6)/($U$6+$U$7+AL153)) -> -2.566923523
A154: 154 | L154: =IF($AK$38=0,TRANSPOSE(MMULT($O$10:$Q$12,TRANSPOSE(C154:E154))),TRANSPOSE(MMULT($O$10:$Q$12,TRANSPOSE(Y154:AA154)))) ->  | Q154: =TRANSPOSE(MMULT($AE$10:$AG$12,TRANSPOSE(F154:H154))) ->  | V154: =TRANSPOSE(MMULT($AO$40:$AQ$42,TRANSPOSE(C154:E154))) ->  | AB154: =AD150 -> 1 | AC154: =AD150 -> 1 | AD154: 0 | AE154: =TRANSPOSE(MMULT($AK$40:$AM$42,TRANSPOSE(AB154:AD154))) -> -0.6425294053 | AF154: -0.2381511035 | AG154: 1.237109541 | AH154: 2.357470595 | AI154: 3.761848896 | AJ154: 1.237109541 | AK154: =TRANSPOSE(MMULT($O$10:$Q$12,TRANSPOSE(AH154:AJ154))) -> 1.366390555 | AL154: -1.040630265 | AM154: 4.276643572 | AN154: 1.366390555 | AO154: -1.040630265
A155: 155 | L155: =IF($AK$38=0,TRANSPOSE(MMULT($O$10:$Q$12,TRANSPOSE(C155:E155))),TRANSPOSE(MMULT($O$10:$Q$12,TRANSPOSE(Y155:AA155)))) ->  | Q155: =TRANSPOSE(MMULT($AE$10:$AG$12,TRANSPOSE(F155:H155))) ->  | V155: =TRANSPOSE(MMULT($AO$40:$AQ$42,TRANSPOSE(C155:E155))) ->  | AB155: 0 | AC155: =AD150 -> 1 | AD155: 0 | AE155: =TRANSPOSE(MMULT($AK$40:$AM$42,TRANSPOSE(AB155:AD155))) -> -0.6425294053 | AF155: -0.685364699 | AG155: 0.3426823495 | AH155: 2.357470595 | AI155: 3.314635301 | AJ155: 0.3426823495 | AK155: =TRANSPOSE(MMULT($O$10:$Q$12,TRANSPOSE(AH155:AJ155))) -> 1.023805065 | AL155: -1.671495255 | AM155: 3.580479406 | AN155: 1.023805065 | AO155: -1.671495255
A156: 156 | L156: =IF($AK$38=0,TRANSPOSE(MMULT($O$10:$Q$12,TRANSPOSE(C156:E156))),TRANSPOSE(MMULT($O$10:$Q$12,TRANSPOSE(Y156:AA156)))) ->  | Q156: =TRANSPOSE(MMULT($AE$10:$AG$12,TRANSPOSE(F156:H156))) ->  | V156: =TRANSPOSE(MMULT($AO$40:$AQ$42,TRANSPOSE(C156:E156))) ->  | AB156: 0 | AC156: =-AD150 -> -1 | AD156: 0 | AE156: =TRANSPOSE(MMULT($AK$40:$AM$42,TRANSPOSE(AB156:AD156))) -> 0.6425294053 | AF156: 0.685364699 | AG156: -0.3426823495 | AH156: 3.642529405 | AI156: 4.685364699 | AJ156: -0.3426823495 | AK156: =TRANSPOSE(MMULT($O$10:$Q$12,TRANSPOSE(AH156:AJ156))) -> 1.247824822 | AL156: -3.197788513 | AM156: 4.853367477 | AN156: 1.247824822 | AO156: -3.197788513
A157: 157 | L157: =IF($AK$38=0,TRANSPOSE(MMULT($O$10:$Q$12,TRANSPOSE(C157:E157))),TRANSPOSE(MMULT($O$10:$Q$12,TRANSPOSE(Y157:AA157)))) ->  | Q157: =TRANSPOSE(MMULT($AE$10:$AG$12,TRANSPOSE(F157:H157))) ->  | V157: =TRANSPOSE(MMULT($AO$40:$AQ$42,TRANSPOSE(C157:E157))) ->  | AB157: =-AD150 -> -1 | AC157: =-AD150 -> -1 | AD157: 0 | AE157: =TRANSPOSE(MMULT($AK$40:$AM$42,TRANSPOSE(AB157:AD157))) -> 0.6425294053 | AF157: 0.2381511035 | AG157: -1.237109541 | AH157: 3.642529405 | AI157: 4.238151104 | AJ157: -1.237109541 | AK157: =TRANSPOSE(MMULT($O$10:$Q$12,TRANSPOSE(AH157:AJ157))) -> 0.9052393323 | AL157: -3.828653503 | AM157: 4.157203311 | AN157: 0.9052393323 | AO157: -3.828653503
A158: 158 | L158: =IF($AK$38=0,TRANSPOSE(MMULT($O$10:$Q$12,TRANSPOSE(C158:E158))),TRANSPOSE(MMULT($O$10:$Q$12,TRANSPOSE(Y158:AA158)))) ->  | Q158: =TRANSPOSE(MMULT($AE$10:$AG$12,TRANSPOSE(F158:H158))) ->  | V158: =TRANSPOSE(MMULT($AO$40:$AQ$42,TRANSPOSE(C158:E158))) ->  | AB158: =-AD150 -> -1 | AC158: =AD150 -> 1 | AD158: 0 | AE158: =TRANSPOSE(MMULT($AK$40:$AM$42,TRANSPOSE(AB158:AD158))) -> -0.6425294053 | AF158: -1.132578295 | AG158: -0.5517448415 | AH158: 2.357470595 | AI158: 2.867421705 | AJ158: -0.5517448415 | AK158: =TRANSPOSE(MMULT($O$10:$Q$12,TRANSPOSE(AH158:AJ158))) -> 0.6812195751 | AL158: -2.302360246 | AM158: 2.88431524 | AN158: 0.6812195751 | AO158: -2.302360246
A159: 159 | L159: =IF($AK$38=0,TRANSPOSE(MMULT($O$10:$Q$12,TRANSPOSE(C159:E159))),TRANSPOSE(MMULT($O$10:$Q$12,TRANSPOSE(Y159:AA159)))) ->  | Q159: =TRANSPOSE(MMULT($AE$10:$AG$12,TRANSPOSE(F159:H159))) ->  | V159: =TRANSPOSE(MMULT($AO$40:$AQ$42,TRANSPOSE(C159:E159))) ->  | AB159: =AD150 -> 1 | AC159: =AD150 -> 1 | AD159: 0 | AE159: =TRANSPOSE(MMULT($AK$40:$AM$42,TRANSPOSE(AB159:AD159))) -> -0.6425294053 | AF159: -0.2381511035 | AG159: 1.237109541 | AH159: 2.357470595 | AI159: 3.761848896 | AJ159: 1.237109541 | AK159: =TRANSPOSE(MMULT($O$10:$Q$12,TRANSPOSE(AH159:AJ159))) -> 1.366390555 | AL159: -1.040630265 | AM159: 4.276643572 | AN159: 1.366390555 | AO159: -1.040630265
A160: 160 | L160: =IF($AK$38=0,TRANSPOSE(MMULT($O$10:$Q$12,TRANSPOSE(C160:E160))),TRANSPOSE(MMULT($O$10:$Q$12,TRANSPOSE(Y160:AA160)))) ->  | Q160: =TRANSPOSE(MMULT($AE$10:$AG$12,TRANSPOSE(F160:H160))) ->  | V160: =TRANSPOSE(MMULT($AO$40:$AQ$42,TRANSPOSE(C160:E160))) ->  | AB160: =AD150 -> 1 | AC160: 0 | AD160: 0 | AE160: =TRANSPOSE(MMULT($AK$40:$AM$42,TRANSPOSE(AB160:AD160))) -> 0 | AF160: 0.4472135955 | AG160: 0.894427191 | AH160: 3 | AI160: 4.447213595 | AJ160: 0.894427191 | AK160: =TRANSPOSE(MMULT($O$10:$Q$12,TRANSPOSE(AH160:AJ160))) -> 1.478400433 | AL160: -1.803776894 | AM160: 4.913087608 | AN160: 1.478400433 | AO160: -1.803776894
A161: 161 | L161: =IF($AK$38=0,TRANSPOSE(MMULT($O$10:$Q$12,TRANSPOSE(C161:E161))),TRANSPOSE(MMULT($O$10:$Q$12,TRANSPOSE(Y161:AA161)))) ->  | Q161: =TRANSPOSE(MMULT($AE$10:$AG$12,TRANSPOSE(F161:H161))) ->  | V161: =TRANSPOSE(MMULT($AO$40:$AQ$42,TRANSPOSE(C161:E161))) ->  | AB161: =-AD150 -> -1 | AC161: 0 | AD161: 0 | AE161: =TRANSPOSE(MMULT($AK$40:$AM$42,TRANSPOSE(AB161:AD161))) -> 0 | AF161: -0.4472135955 | AG161: -0.894427191 | AH161: 3 | AI161: 3.552786405 | AJ161: -0.894427191 | AK161: =TRANSPOSE(MMULT($O$10:$Q$12,TRANSPOSE(AH161:AJ161))) -> 0.7932294537 | AL161: -3.065506874 | AM161: 3.520759275 | AN161: 0.7932294537 | AO161: -3.065506874
A162: 162 | L162: =IF($AK$38=0,TRANSPOSE(MMULT($O$10:$Q$12,TRANSPOSE(C162:E162))),TRANSPOSE(MMULT($O$10:$Q$12,TRANSPOSE(Y162:AA162)))) ->  | Q162: =TRANSPOSE(MMULT($AE$10:$AG$12,TRANSPOSE(F162:H162))) ->  | V162: =TRANSPOSE(MMULT($AO$40:$AQ$42,TRANSPOSE(C162:E162))) -> 
A163: 163 | L163: =IF($AK$38=0,TRANSPOSE(MMULT($O$10:$Q$12,TRANSPOSE(C163:E163))),TRANSPOSE(MMULT($O$10:$Q$12,TRANSPOSE(Y163:AA163)))) ->  | Q163: =TRANSPOSE(MMULT($AE$10:$AG$12,TRANSPOSE(F163:H163))) ->  | V163: =TRANSPOSE(MMULT($AO$40:$AQ$42,TRANSPOSE(C163:E163))) ->  | AB163: n
A164: 164 | L164: =IF($AK$38=0,TRANSPOSE(MMULT($O$10:$Q$12,TRANSPOSE(C164:E164))),TRANSPOSE(MMULT($O$10:$Q$12,TRANSPOSE(Y164:AA164)))) ->  | Q164: =TRANSPOSE(MMULT($AE$10:$AG$12,TRANSPOSE(F164:H164))) ->  | V164: =TRANSPOSE(MMULT($AO$40:$AQ$42,TRANSPOSE(C164:E164))) ->  | AB164: =AD150 -> 1 | AC164: =IF($AD$8=0,NA(),0) -> 0 | AD164: 0 | AE164: =TRANSPOSE(MMULT($AK$40:$AM$42,TRANSPOSE(AB164:AD164))) -> 0 | AF164: 0.4472135955 | AG164: 0.894427191 | AH164: =AE164+C$15 -> 3 | AI164: =AF164+D$15 -> 4.447213595 | AJ164: =AG164+E$15 -> 0.894427191 | AK164: =TRANSPOSE(MMULT($O$10:$Q$12,TRANSPOSE(AH164:AJ164))) -> 1.478400433 | AL164: -1.803776894 | AM164: 4.913087608 | AN164: =$X$5+$X$4*IF($U$8=1,AK164,(AK164*$U$6)/($U$6+$U$7+AL164)) -> 1.478400433 | AO164: =$X$6+$X$4*IF($U$8=1,AL164,(AM164*$U$6)/($U$6+$U$7+AL164)) -> -1.803776894
A165: 165 | L165: =IF($AK$38=0,TRANSPOSE(MMULT($O$10:$Q$12,TRANSPOSE(C165:E165))),TRANSPOSE(MMULT($O$10:$Q$12,TRANSPOSE(Y165:AA165)))) ->  | Q165: =TRANSPOSE(MMULT($AE$10:$AG$12,TRANSPOSE(F165:H165))) ->  | V165: =TRANSPOSE(MMULT($AO$40:$AQ$42,TRANSPOSE(C165:E165))) ->  | AB165: =AD150 -> 1 | AC165: =IF($AD$8=0,NA(),0) -> 0 | AD165: =-AD150 -> -1 | AE165: =TRANSPOSE(MMULT($AK$40:$AM$42,TRANSPOSE(AB165:AD165))) -> -0.7662610282 | AF165: 1.021909367 | AG165: 0.6070793054 | AH165: 2.233738972 | AI165: 5.021909367 | AJ165: 0.6070793054 | AK165: =TRANSPOSE(MMULT($O$10:$Q$12,TRANSPOSE(AH165:AJ165))) -> 2.41118603 | AL165: -1.943836122 | AM165: 4.580981535 | AN165: =$X$5+$X$4*IF($U$8=1,AK165,(AK165*$U$6)/($U$6+$U$7+AL165)) -> 2.41118603 | AO165: =$X$6+$X$4*IF($U$8=1,AL165,(AM165*$U$6)/($U$6+$U$7+AL165)) -> -1.943836122
A166: 166 | L166: =IF($AK$38=0,TRANSPOSE(MMULT($O$10:$Q$12,TRANSPOSE(C166:E166))),TRANSPOSE(MMULT($O$10:$Q$12,TRANSPOSE(Y166:AA166)))) ->  | Q166: =TRANSPOSE(MMULT($AE$10:$AG$12,TRANSPOSE(F166:H166))) ->  | V166: =TRANSPOSE(MMULT($AO$40:$AQ$42,TRANSPOSE(C166:E166))) ->  | AB166: =-AD150 -> -1 | AC166: 0 | AD166: =-AD150 -> -1 | AE166: =TRANSPOSE(MMULT($AK$40:$AM$42,TRANSPOSE(AB166:AD166))) -> -0.7662610282 | AF166: 0.1274821756 | AG166: -1.181775077 | AH166: 2.233738972 | AI166: 4.127482176 | AJ166: -1.181775077 | AK166: =TRANSPOSE(MMULT($O$10:$Q$12,TRANSPOSE(AH166:AJ166))) -> 1.72601505 | AL166: -3.205566102 | AM166: 3.188653203 | AN166: 1.72601505 | AO166: -3.205566102
A167: 167 | L167: =IF($AK$38=0,TRANSPOSE(MMULT($O$10:$Q$12,TRANSPOSE(C167:E167))),TRANSPOSE(MMULT($O$10:$Q$12,TRANSPOSE(Y167:AA167)))) ->  | Q167: =TRANSPOSE(MMULT($AE$10:$AG$12,TRANSPOSE(F167:H167))) ->  | V167: =TRANSPOSE(MMULT($AO$40:$AQ$42,TRANSPOSE(C167:E167))) ->  | AB167: =-AD150 -> -1 | AC167: 0 | AD167: 0 | AE167: =TRANSPOSE(MMULT($AK$40:$AM$42,TRANSPOSE(AB167:AD167))) -> 0 | AF167: -0.4472135955 | AG167: -0.894427191 | AH167: 3 | AI167: 3.552786405 | AJ167: -0.894427191 | AK167: =TRANSPOSE(MMULT($O$10:$Q$12,TRANSPOSE(AH167:AJ167))) -> 0.7932294537 | AL167: -3.065506874 | AM167: 3.520759275 | AN167: 0.7932294537 | AO167: -3.065506874
A168: 168 | L168: =IF($AK$38=0,TRANSPOSE(MMULT($O$10:$Q$12,TRANSPOSE(C168:E168))),TRANSPOSE(MMULT($O$10:$Q$12,TRANSPOSE(Y168:AA168)))) ->  | Q168: =TRANSPOSE(MMULT($AE$10:$AG$12,TRANSPOSE(F168:H168))) ->  | V168: =TRANSPOSE(MMULT($AO$40:$AQ$42,TRANSPOSE(C168:E168))) ->  | AB168: =AD150 -> 1 | AC168: 0 | AD168: 0 | AE168: =TRANSPOSE(MMULT($AK$40:$AM$42,TRANSPOSE(AB168:AD168))) -> 0 | AF168: 0.4472135955 | AG168: 0.894427191 | AH168: 3 | AI168: 4.447213595 | AJ168: 0.894427191 | AK168: =TRANSPOSE(MMULT($O$10:$Q$12,TRANSPOSE(AH168:AJ168))) -> 1.478400433 | AL168: -1.803776894 | AM168: 4.913087608 | AN168: 1.478400433 | AO168: -1.803776894
A169: 169 | L169: =IF($AK$38=0,TRANSPOSE(MMULT($O$10:$Q$12,TRANSPOSE(C169:E169))),TRANSPOSE(MMULT($O$10:$Q$12,TRANSPOSE(Y169:AA169)))) ->  | Q169: =TRANSPOSE(MMULT($AE$10:$AG$12,TRANSPOSE(F169:H169))) ->  | V169: =TRANSPOSE(MMULT($AO$40:$AQ$42,TRANSPOSE(C169:E169))) ->  | AB169: =AD150 -> 1 | AC169: 0 | AD169: =AD150 -> 1 | AE169: =TRANSPOSE(MMULT($AK$40:$AM$42,TRANSPOSE(AB169:AD169))) -> 0.7662610282 | AF169: -0.1274821756 | AG169: 1.181775077 | AH169: 3.766261028 | AI169: 3.872517824 | AJ169: 1.181775077 | AK169: =TRANSPOSE(MMULT($O$10:$Q$12,TRANSPOSE(AH169:AJ169))) -> 0.5456148365 | AL169: -1.663717666 | AM169: 5.24519368 | AN169: 0.5456148365 | AO169: -1.663717666
A170: 170 | L170: =IF($AK$38=0,TRANSPOSE(MMULT($O$10:$Q$12,TRANSPOSE(C170:E170))),TRANSPOSE(MMULT($O$10:$Q$12,TRANSPOSE(Y170:AA170)))) ->  | Q170: =TRANSPOSE(MMULT($AE$10:$AG$12,TRANSPOSE(F170:H170))) ->  | V170: =TRANSPOSE(MMULT($AO$40:$AQ$42,TRANSPOSE(C170:E170))) ->  | AB170: =-AD150 -> -1 | AC170: 0 | AD170: =AD150 -> 1 | AE170: =TRANSPOSE(MMULT($AK$40:$AM$42,TRANSPOSE(AB170:AD170))) -> 0.7662610282 | AF170: -1.021909367 | AG170: -0.6070793054 | AH170: 3.766261028 | AI170: 2.978090633 | AJ170: -0.6070793054 | AK170: =TRANSPOSE(MMULT($O$10:$Q$12,TRANSPOSE(AH170:AJ170))) -> -0.139556143 | AL170: -2.925447646 | AM170: 3.852865348 | AN170: -0.139556143 | AO170: -2.925447646
A171: 171 | L171: =IF($AK$38=0,TRANSPOSE(MMULT($O$10:$Q$12,TRANSPOSE(C171:E171))),TRANSPOSE(MMULT($O$10:$Q$12,TRANSPOSE(Y171:AA171)))) ->  | Q171: =TRANSPOSE(MMULT($AE$10:$AG$12,TRANSPOSE(F171:H171))) ->  | V171: =TRANSPOSE(MMULT($AO$40:$AQ$42,TRANSPOSE(C171:E171))) ->  | AB171: =-AD150 -> -1 | AC171: 0 | AD171: =-AD150 -> -1 | AE171: =TRANSPOSE(MMULT($AK$40:$AM$42,TRANSPOSE(AB171:AD171))) -> -0.7662610282 | AF171: 0.1274821756 | AG171: -1.181775077 | AH171: 2.233738972 | AI171: 4.127482176 | AJ171: -1.181775077 | AK171: =TRANSPOSE(MMULT($O$10:$Q$12,TRANSPOSE(AH171:AJ171))) -> 1.72601505 | AL171: -3.205566102 | AM171: 3.188653203 | AN171: 1.72601505 | AO171: -3.205566102
A172: 172 | L172: =IF($AK$38=0,TRANSPOSE(MMULT($O$10:$Q$12,TRANSPOSE(C172:E172))),TRANSPOSE(MMULT($O$10:$Q$12,TRANSPOSE(Y172:AA172)))) ->  | Q172: =TRANSPOSE(MMULT($AE$10:$AG$12,TRANSPOSE(F172:H172))) ->  | V172: =TRANSPOSE(MMULT($AO$40:$AQ$42,TRANSPOSE(C172:E172))) ->  | AB172: 0 | AC172: 0 | AD172: =-AD150 -> -1 | AE172: =TRANSPOSE(MMULT($AK$40:$AM$42,TRANSPOSE(AB172:AD172))) -> -0.7662610282 | AF172: 0.5746957711 | AG172: -0.2873478856 | AH172: 2.233738972 | AI172: 4.574695771 | AJ172: -0.2873478856 | AK172: =TRANSPOSE(MMULT($O$10:$Q$12,TRANSPOSE(AH172:AJ172))) -> 2.06860054 | AL172: -2.574701112 | AM172: 3.884817369 | AN172: 2.06860054 | AO172: -2.574701112
A173: 173 | L173: =IF($AK$38=0,TRANSPOSE(MMULT($O$10:$Q$12,TRANSPOSE(C173:E173))),TRANSPOSE(MMULT($O$10:$Q$12,TRANSPOSE(Y173:AA173)))) ->  | Q173: =TRANSPOSE(MMULT($AE$10:$AG$12,TRANSPOSE(F173:H173))) ->  | V173: =TRANSPOSE(MMULT($AO$40:$AQ$42,TRANSPOSE(C173:E173))) ->  | AB173: 0 | AC173: 0 | AD173: =AD150 -> 1 | AE173: =TRANSPOSE(MMULT($AK$40:$AM$42,TRANSPOSE(AB173:AD173))) -> 0.7662610282 | AF173: -0.5746957711 | AG173: 0.2873478856 | AH173: 3.766261028 | AI173: 3.425304229 | AJ173: 0.2873478856 | AK173: =TRANSPOSE(MMULT($O$10:$Q$12,TRANSPOSE(AH173:AJ173))) -> 0.2030293468 | AL173: -2.294582656 | AM173: 4.549029514 | AN173: 0.2030293468 | AO173: -2.294582656
A174: 174 | L174: =IF($AK$38=0,TRANSPOSE(MMULT($O$10:$Q$12,TRANSPOSE(C174:E174))),TRANSPOSE(MMULT($O$10:$Q$12,TRANSPOSE(Y174:AA174)))) ->  | Q174: =TRANSPOSE(MMULT($AE$10:$AG$12,TRANSPOSE(F174:H174))) ->  | V174: =TRANSPOSE(MMULT($AO$40:$AQ$42,TRANSPOSE(C174:E174))) -> 
A175: 175 | L175: =IF($AK$38=0,TRANSPOSE(MMULT($O$10:$Q$12,TRANSPOSE(C175:E175))),TRANSPOSE(MMULT($O$10:$Q$12,TRANSPOSE(Y175:AA175)))) ->  | Q175: =TRANSPOSE(MMULT($AE$10:$AG$12,TRANSPOSE(F175:H175))) ->  | V175: =TRANSPOSE(MMULT($AO$40:$AQ$42,TRANSPOSE(C175:E175))) ->  | AB175: e
A176: 176 | L176: =IF($AK$38=0,TRANSPOSE(MMULT($O$10:$Q$12,TRANSPOSE(C176:E176))),TRANSPOSE(MMULT($O$10:$Q$12,TRANSPOSE(Y176:AA176)))) ->  | Q176: =TRANSPOSE(MMULT($AE$10:$AG$12,TRANSPOSE(F176:H176))) ->  | V176: =TRANSPOSE(MMULT($AO$40:$AQ$42,TRANSPOSE(C176:E176))) ->  | AB176: =IF($AF$8=0,NA(),0) -> 0 | AC176: =AC152 -> -1 | AD176: =AB152 -> 0 | AE176: =TRANSPOSE(MMULT($AK$40:$AM$42,TRANSPOSE(AB176:AD176))) -> 0.6425294053 | AF176: 0.685364699 | AG176: -0.3426823495 | AH176: =AE176+C$15 -> 3.642529405 | AI176: =AF176+D$15 -> 4.685364699 | AJ176: =AG176+E$15 -> -0.3426823495 | AK176: =TRANSPOSE(MMULT($O$10:$Q$12,TRANSPOSE(AH176:AJ176))) -> 1.247824822 | AL176: -3.197788513 | AM176: 4.853367477 | AN176: =$X$5+$X$4*IF($U$8=1,AK176,(AK176*$U$6)/($U$6+$U$7+AL176)) -> 1.247824822 | AO176: =$X$6+$X$4*IF($U$8=1,AL176,(AM176*$U$6)/($U$6+$U$7+AL176)) -> -3.197788513
A177: 177 | L177: =IF($AK$38=0,TRANSPOSE(MMULT($O$10:$Q$12,TRANSPOSE(C177:E177))),TRANSPOSE(MMULT($O$10:$Q$12,TRANSPOSE(Y177:AA177)))) ->  | Q177: =TRANSPOSE(MMULT($AE$10:$AG$12,TRANSPOSE(F177:H177))) ->  | V177: =TRANSPOSE(MMULT($AO$40:$AQ$42,TRANSPOSE(C177:E177))) ->  | AB177: =IF($AF$8=0,NA(),0) -> 0 | AC177: -1 | AD177: 1 | AE177: =TRANSPOSE(MMULT($AK$40:$AM$42,TRANSPOSE(AB177:AD177))) -> 1.408790433 | AF177: 0.1106689279 | AG177: -0.05533446394 | AH177: 4.408790433 | AI177: 4.110668928 | AJ177: -0.05533446394 | AK177: =TRANSPOSE(MMULT($O$10:$Q$12,TRANSPOSE(AH177:AJ177))) -> 0.3150392253 | AL177: -3.057729285 | AM177: 5.185473549 | AN177: =$X$5+$X$4*IF($U$8=1,AK177,(AK177*$U$6)/($U$6+$U$7+AL177)) -> 0.3150392253 | AO177: =$X$6+$X$4*IF($U$8=1,AL177,(AM177*$U$6)/($U$6+$U$7+AL177)) -> -3.057729285
A178: 178 | L178: =IF($AK$38=0,TRANSPOSE(MMULT($O$10:$Q$12,TRANSPOSE(C178:E178))),TRANSPOSE(MMULT($O$10:$Q$12,TRANSPOSE(Y178:AA178)))) ->  | Q178: =TRANSPOSE(MMULT($AE$10:$AG$12,TRANSPOSE(F178:H178))) ->  | V178: =TRANSPOSE(MMULT($AO$40:$AQ$42,TRANSPOSE(C178:E178))) ->  | AB178: 0 | AC178: 1 | AD178: 1 | AE178: =TRANSPOSE(MMULT($AK$40:$AM$42,TRANSPOSE(AB178:AD178))) -> 0.1237316229 | AF178: -1.26006047 | AG178: 0.6300302351 | AH178: 3.123731623 | AI178: 2.73993953 | AJ178: 0.6300302351 | AK178: =TRANSPOSE(MMULT($O$10:$Q$12,TRANSPOSE(AH178:AJ178))) -> 0.09101946817 | AL178: -1.531436028 | AM178: 3.912585478 | AN178: 0.09101946817 | AO178: -1.531436028
A179: 179 | L179: =IF($AK$38=0,TRANSPOSE(MMULT($O$10:$Q$12,TRANSPOSE(C179:E179))),TRANSPOSE(MMULT($O$10:$Q$12,TRANSPOSE(Y179:AA179)))) ->  | Q179: =TRANSPOSE(MMULT($AE$10:$AG$12,TRANSPOSE(F179:H179))) ->  | V179: =TRANSPOSE(MMULT($AO$40:$AQ$42,TRANSPOSE(C179:E179))) ->  | AB179: 0 | AC179: 1 | AD179: 0 | AE179: =TRANSPOSE(MMULT($AK$40:$AM$42,TRANSPOSE(AB179:AD179))) -> -0.6425294053 | AF179: -0.685364699 | AG179: 0.3426823495 | AH179: 2.357470595 | AI179: 3.314635301 | AJ179: 0.3426823495 | AK179: =TRANSPOSE(MMULT($O$10:$Q$12,TRANSPOSE(AH179:AJ179))) -> 1.023805065 | AL179: -1.671495255 | AM179: 3.580479406 | AN179: 1.023805065 | AO179: -1.671495255
A180: 180 | C180: =(C$4+F$4*$B180+I$4*$B180^2+L$4*$B180^3+O$4*$B180^4)+(C$5+F$5*$B180+I$5*$B180^2+L$5*$B180^3+O$5*$B180^5)*(COS(C$6+F$6*$B180+I$6*$B180^2+L$6*$B180^3+O$6*$B180^4))+(C$7+F$7*$B180+I$7*$B180^2+L$7*$B180^3+O$7*$B180^4)*(SIN(C$8+F$8*$B180+I$8*$B180^2+L$8*$B180^3+O$8*$B180^4)) ->  | D180: =(D$4+G$4*$B180+J$4*$B180^2+M$4*$B180^3+P$4*$B180^4)+(D$5+G$5*$B180+J$5*$B180^2+M$5*$B180^3+P$5*$B180^5)*(COS(D$6+G$6*$B180+J$6*$B180^2+M$6*$B180^3+P$6*$B180^4))+(D$7+G$7*$B180+J$7*$B180^2+M$7*$B180^3+P$7*$B180^4)*(SIN(D$8+G$8*$B180+J$8*$B180^2+M$8*$B180^3+P$8*$B180^4)) ->  | E180: =(E$4+H$4*$B180+K$4*$B180^2+N$4*$B180^3+Q$4*$B180^4)+(E$5+H$5*$B180+K$5*$B180^2+N$5*$B180^3+Q$5*$B180^5)*(COS(E$6+H$6*$B180+K$6*$B180^2+N$6*$B180^3+Q$6*$B180^4))+(E$7+H$7*$B180+K$7*$B180^2+N$7*$B180^3+Q$7*$B180^4)*(SIN(E$8+H$8*$B180+K$8*$B180^2+N$8*$B180^3+Q$8*$B180^4)) ->  | L180: =IF($AK$38=0,TRANSPOSE(MMULT($O$10:$Q$12,TRANSPOSE(C180:E180))),TRANSPOSE(MMULT($O$10:$Q$12,TRANSPOSE(Y180:AA180)))) ->  | Q180: =TRANSPOSE(MMULT($AE$10:$AG$12,TRANSPOSE(F180:H180))) ->  | V180: =TRANSPOSE(MMULT($AO$40:$AQ$42,TRANSPOSE(C180:E180))) ->  | AB180: 0 | AC180: -1 | AD180: 0 | AE180: =TRANSPOSE(MMULT($AK$40:$AM$42,TRANSPOSE(AB180:AD180))) -> 0.6425294053 | AF180: 0.685364699 | AG180: -0.3426823495 | AH180: 3.642529405 | AI180: 4.685364699 | AJ180: -0.3426823495 | AK180: =TRANSPOSE(MMULT($O$10:$Q$12,TRANSPOSE(AH180:AJ180))) -> 1.247824822 | AL180: -3.197788513 | AM180: 4.853367477 | AN180: 1.247824822 | AO180: -3.197788513
A181: 181 | L181: =IF($AK$38=0,TRANSPOSE(MMULT($O$10:$Q$12,TRANSPOSE(C181:E181))),TRANSPOSE(MMULT($O$10:$Q$12,TRANSPOSE(Y181:AA181)))) ->  | Q181: =TRANSPOSE(MMULT($AE$10:$AG$12,TRANSPOSE(F181:H181))) ->  | V181: =TRANSPOSE(MMULT($AO$40:$AQ$42,TRANSPOSE(C181:E181))) ->  | AB181: 0 | AC181: -1 | AD181: -1 | AE181: =TRANSPOSE(MMULT($AK$40:$AM$42,TRANSPOSE(AB181:AD181))) -> -0.1237316229 | AF181: 1.26006047 | AG181: -0.6300302351 | AH181: 2.876268377 | AI181: 5.26006047 | AJ181: -0.6300302351 | AK181: =TRANSPOSE(MMULT($O$10:$Q$12,TRANSPOSE(AH181:AJ181))) -> 2.180610419 | AL181: -3.337847741 | AM181: 4.521261404 | AN181: 2.180610419 | AO181: -3.337847741
A182: 182 | L182: =IF($AK$38=0,TRANSPOSE(MMULT($O$10:$Q$12,TRANSPOSE(C182:E182))),TRANSPOSE(MMULT($O$10:$Q$12,TRANSPOSE(Y182:AA182)))) ->  | Q182: =TRANSPOSE(MMULT($AE$10:$AG$12,TRANSPOSE(F182:H182))) ->  | V182: =TRANSPOSE(MMULT($AO$40:$AQ$42,TRANSPOSE(C182:E182))) ->  | AB182: 0 | AC182: 1 | AD182: -1 | AE182: =TRANSPOSE(MMULT($AK$40:$AM$42,TRANSPOSE(AB182:AD182))) -> -1.408790433 | AF182: -0.1106689279 | AG182: 0.05533446394 | AH182: 1.591209567 | AI182: 3.889331072 | AJ182: 0.05533446394 | AK182: =TRANSPOSE(MMULT($O$10:$Q$12,TRANSPOSE(AH182:AJ182))) -> 1.956590661 | AL182: -1.811554483 | AM182: 3.248373333 | AN182: 1.956590661 | AO182: -1.811554483
A183: 183 | L183: =IF($AK$38=0,TRANSPOSE(MMULT($O$10:$Q$12,TRANSPOSE(C183:E183))),TRANSPOSE(MMULT($O$10:$Q$12,TRANSPOSE(Y183:AA183)))) ->  | Q183: =TRANSPOSE(MMULT($AE$10:$AG$12,TRANSPOSE(F183:H183))) ->  | V183: =TRANSPOSE(MMULT($AO$40:$AQ$42,TRANSPOSE(C183:E183))) ->  | AB183: 0 | AC183: 1 | AD183: 1 | AE183: =TRANSPOSE(MMULT($AK$40:$AM$42,TRANSPOSE(AB183:AD183))) -> 0.1237316229 | AF183: -1.26006047 | AG183: 0.6300302351 | AH183: 3.123731623 | AI183: 2.73993953 | AJ183: 0.6300302351 | AK183: =TRANSPOSE(MMULT($O$10:$Q$12,TRANSPOSE(AH183:AJ183))) -> 0.09101946817 | AL183: -1.531436028 | AM183: 3.912585478 | AN183: 0.09101946817 | AO183: -1.531436028
A184: 184 | L184: =IF($AK$38=0,TRANSPOSE(MMULT($O$10:$Q$12,TRANSPOSE(C184:E184))),TRANSPOSE(MMULT($O$10:$Q$12,TRANSPOSE(Y184:AA184)))) ->  | Q184: =TRANSPOSE(MMULT($AE$10:$AG$12,TRANSPOSE(F184:H184))) ->  | V184: =TRANSPOSE(MMULT($AO$40:$AQ$42,TRANSPOSE(C184:E184))) ->  | AB184: 0 | AC184: 0 | AD184: 1 | AE184: =TRANSPOSE(MMULT($AK$40:$AM$42,TRANSPOSE(AB184:AD184))) -> 0.7662610282 | AF184: -0.5746957711 | AG184: 0.2873478856 | AH184: 3.766261028 | AI184: 3.425304229 | AJ184: 0.2873478856 | AK184: =TRANSPOSE(MMULT($O$10:$Q$12,TRANSPOSE(AH184:AJ184))) -> 0.2030293468 | AL184: -2.294582656 | AM184: 4.549029514 | AN184: 0.2030293468 | AO184: -2.294582656
A185: 185 | L185: =IF($AK$38=0,TRANSPOSE(MMULT($O$10:$Q$12,TRANSPOSE(C185:E185))),TRANSPOSE(MMULT($O$10:$Q$12,TRANSPOSE(Y185:AA185)))) ->  | Q185: =TRANSPOSE(MMULT($AE$10:$AG$12,TRANSPOSE(F185:H185))) ->  | V185: =TRANSPOSE(MMULT($AO$40:$AQ$42,TRANSPOSE(C185:E185))) -> 
A186: 186 | L186: =IF($AK$38=0,TRANSPOSE(MMULT($O$10:$Q$12,TRANSPOSE(C186:E186))),TRANSPOSE(MMULT($O$10:$Q$12,TRANSPOSE(Y186:AA186)))) ->  | Q186: =TRANSPOSE(MMULT($AE$10:$AG$12,TRANSPOSE(F186:H186))) ->  | V186: =TRANSPOSE(MMULT($AO$40:$AQ$42,TRANSPOSE(C186:E186))) ->  | AB186: vetítőegyenes | AD186: =IF($AH$3=0,NA(),C15) -> 3 | AE186: =IF($AH$3=0,NA(),D15) -> 4 | AF186: =IF($AH$3=0,NA(),E15) -> 0
A187: 187 | L187: =IF($AK$38=0,TRANSPOSE(MMULT($O$10:$Q$12,TRANSPOSE(C187:E187))),TRANSPOSE(MMULT($O$10:$Q$12,TRANSPOSE(Y187:AA187)))) ->  | Q187: =TRANSPOSE(MMULT($AE$10:$AG$12,TRANSPOSE(F187:H187))) ->  | V187: =TRANSPOSE(MMULT($AO$40:$AQ$42,TRANSPOSE(C187:E187))) -> 
A188: 188 | L188: =IF($AK$38=0,TRANSPOSE(MMULT($O$10:$Q$12,TRANSPOSE(C188:E188))),TRANSPOSE(MMULT($O$10:$Q$12,TRANSPOSE(Y188:AA188)))) ->  | Q188: =TRANSPOSE(MMULT($AE$10:$AG$12,TRANSPOSE(F188:H188))) ->  | V188: =TRANSPOSE(MMULT($AO$40:$AQ$42,TRANSPOSE(C188:E188))) ->  | AB188: =$AD$186 -> 3 | AC188: 0 | AD188: =$AF$186 -> 0 | AE188: =TRANSPOSE(MMULT($O$10:$Q$12,TRANSPOSE(AB188:AD188))) -> -1.928362829 | AF188: -1.149066665 | AG188: 1.990241845 | AH188: =$X$5+$X$4*IF($U$8=1,AE188,(AE188*$U$6)/($U$6+$U$7+AF188)) -> -1.928362829 | AI188: =$X$6+$X$4*IF($U$8=1,AF188,(AG188*$U$6)/($U$6+$U$7+AF188)) -> -1.149066665
A189: 189 | L189: =IF($AK$38=0,TRANSPOSE(MMULT($O$10:$Q$12,TRANSPOSE(C189:E189))),TRANSPOSE(MMULT($O$10:$Q$12,TRANSPOSE(Y189:AA189)))) ->  | Q189: =TRANSPOSE(MMULT($AE$10:$AG$12,TRANSPOSE(F189:H189))) ->  | V189: =TRANSPOSE(MMULT($AO$40:$AQ$42,TRANSPOSE(C189:E189))) ->  | AB189: =$AD$186 -> 3 | AC189: 0 | AD189: 0 | AE189: =TRANSPOSE(MMULT($O$10:$Q$12,TRANSPOSE(AB189:AD189))) -> -1.928362829 | AF189: -1.149066665 | AG189: 1.990241845 | AH189: =$X$5+$X$4*IF($U$8=1,AE189,(AE189*$U$6)/($U$6+$U$7+AF189)) -> -1.928362829 | AI189: =$X$6+$X$4*IF($U$8=1,AF189,(AG189*$U$6)/($U$6+$U$7+AF189)) -> -1.149066665
A190: 190 | L190: =IF($AK$38=0,TRANSPOSE(MMULT($O$10:$Q$12,TRANSPOSE(C190:E190))),TRANSPOSE(MMULT($O$10:$Q$12,TRANSPOSE(Y190:AA190)))) ->  | Q190: =TRANSPOSE(MMULT($AE$10:$AG$12,TRANSPOSE(F190:H190))) ->  | V190: =TRANSPOSE(MMULT($AO$40:$AQ$42,TRANSPOSE(C190:E190))) ->  | AB190: =$AD$186 -> 3 | AC190: =$AE$186 -> 4 | AD190: 0 | AE190: =TRANSPOSE(MMULT($O$10:$Q$12,TRANSPOSE(AB190:AD190))) -> 1.135814943 | AF190: -2.434641884 | AG190: 4.216923441 | AH190: 1.135814943 | AI190: -2.434641884
A191: 191 | L191: =IF($AK$38=0,TRANSPOSE(MMULT($O$10:$Q$12,TRANSPOSE(C191:E191))),TRANSPOSE(MMULT($O$10:$Q$12,TRANSPOSE(Y191:AA191)))) ->  | Q191: =TRANSPOSE(MMULT($AE$10:$AG$12,TRANSPOSE(F191:H191))) ->  | V191: =TRANSPOSE(MMULT($AO$40:$AQ$42,TRANSPOSE(C191:E191))) ->  | AB191: =$AD$186 -> 3 | AC191: =$AE$186 -> 4 | AD191: =$AF$186 -> 0 | AE191: =TRANSPOSE(MMULT($O$10:$Q$12,TRANSPOSE(AB191:AD191))) -> 1.135814943 | AF191: -2.434641884 | AG191: 4.216923441 | AH191: 1.135814943 | AI191: -2.434641884
A192: 192 | L192: =IF($AK$38=0,TRANSPOSE(MMULT($O$10:$Q$12,TRANSPOSE(C192:E192))),TRANSPOSE(MMULT($O$10:$Q$12,TRANSPOSE(Y192:AA192)))) ->  | Q192: =TRANSPOSE(MMULT($AE$10:$AG$12,TRANSPOSE(F192:H192))) ->  | V192: =TRANSPOSE(MMULT($AO$40:$AQ$42,TRANSPOSE(C192:E192))) ->  | AB192: =$AD$186 -> 3 | AC192: 0 | AD192: =$AF$186 -> 0 | AE192: =TRANSPOSE(MMULT($O$10:$Q$12,TRANSPOSE(AB192:AD192))) -> -1.928362829 | AF192: -1.149066665 | AG192: 1.990241845 | AH192: -1.928362829 | AI192: -1.149066665
A193: 193 | L193: =IF($AK$38=0,TRANSPOSE(MMULT($O$10:$Q$12,TRANSPOSE(C193:E193))),TRANSPOSE(MMULT($O$10:$Q$12,TRANSPOSE(Y193:AA193)))) ->  | Q193: =TRANSPOSE(MMULT($AE$10:$AG$12,TRANSPOSE(F193:H193))) ->  | V193: =TRANSPOSE(MMULT($AO$40:$AQ$42,TRANSPOSE(C193:E193))) ->  | AB193: 0 | AC193: 0 | AD193: =$AF$186 -> 0 | AE193: =TRANSPOSE(MMULT($O$10:$Q$12,TRANSPOSE(AB193:AD193))) -> 0 | AF193: 0 | AG193: 0 | AH193: 0 | AI193: 0
A194: 194 | L194: =IF($AK$38=0,TRANSPOSE(MMULT($O$10:$Q$12,TRANSPOSE(C194:E194))),TRANSPOSE(MMULT($O$10:$Q$12,TRANSPOSE(Y194:AA194)))) ->  | Q194: =TRANSPOSE(MMULT($AE$10:$AG$12,TRANSPOSE(F194:H194))) ->  | V194: =TRANSPOSE(MMULT($AO$40:$AQ$42,TRANSPOSE(C194:E194))) ->  | AB194: 0 | AC194: =$AE$186 -> 4 | AD194: =$AF$186 -> 0 | AE194: =TRANSPOSE(MMULT($O$10:$Q$12,TRANSPOSE(AB194:AD194))) -> 3.064177772 | AF194: -1.285575219 | AG194: 2.226681597 | AH194: 3.064177772 | AI194: -1.285575219
A195: 195 | L195: =IF($AK$38=0,TRANSPOSE(MMULT($O$10:$Q$12,TRANSPOSE(C195:E195))),TRANSPOSE(MMULT($O$10:$Q$12,TRANSPOSE(Y195:AA195)))) ->  | Q195: =TRANSPOSE(MMULT($AE$10:$AG$12,TRANSPOSE(F195:H195))) ->  | V195: =TRANSPOSE(MMULT($AO$40:$AQ$42,TRANSPOSE(C195:E195))) ->  | AB195: =$AD$186 -> 3 | AC195: =$AE$186 -> 4 | AD195: =$AF$186 -> 0 | AE195: =TRANSPOSE(MMULT($O$10:$Q$12,TRANSPOSE(AB195:AD195))) -> 1.135814943 | AF195: -2.434641884 | AG195: 4.216923441 | AH195: 1.135814943 | AI195: -2.434641884
A196: 196 | L196: =IF($AK$38=0,TRANSPOSE(MMULT($O$10:$Q$12,TRANSPOSE(C196:E196))),TRANSPOSE(MMULT($O$10:$Q$12,TRANSPOSE(Y196:AA196)))) ->  | Q196: =TRANSPOSE(MMULT($AE$10:$AG$12,TRANSPOSE(F196:H196))) ->  | V196: =TRANSPOSE(MMULT($AO$40:$AQ$42,TRANSPOSE(C196:E196))) ->  | AB196: =$AD$186 -> 3 | AC196: =$AE$186 -> 4 | AD196: 0 | AE196: =TRANSPOSE(MMULT($O$10:$Q$12,TRANSPOSE(AB196:AD196))) -> 1.135814943 | AF196: -2.434641884 | AG196: 4.216923441 | AH196: 1.135814943 | AI196: -2.434641884
A197: 197 | L197: =IF($AK$38=0,TRANSPOSE(MMULT($O$10:$Q$12,TRANSPOSE(C197:E197))),TRANSPOSE(MMULT($O$10:$Q$12,TRANSPOSE(Y197:AA197)))) ->  | Q197: =TRANSPOSE(MMULT($AE$10:$AG$12,TRANSPOSE(F197:H197))) ->  | V197: =TRANSPOSE(MMULT($AO$40:$AQ$42,TRANSPOSE(C197:E197))) ->  | AB197: 0 | AC197: =$AE$186 -> 4 | AD197: 0 | AE197: =TRANSPOSE(MMULT($O$10:$Q$12,TRANSPOSE(AB197:AD197))) -> 3.064177772 | AF197: -1.285575219 | AG197: 2.226681597 | AH197: 3.064177772 | AI197: -1.285575219
A198: 198 | L198: =IF($AK$38=0,TRANSPOSE(MMULT($O$10:$Q$12,TRANSPOSE(C198:E198))),TRANSPOSE(MMULT($O$10:$Q$12,TRANSPOSE(Y198:AA198)))) ->  | Q198: =TRANSPOSE(MMULT($AE$10:$AG$12,TRANSPOSE(F198:H198))) ->  | V198: =TRANSPOSE(MMULT($AO$40:$AQ$42,TRANSPOSE(C198:E198))) ->  | AB198: 0 | AC198: =$AE$186 -> 4 | AD198: =$AF$186 -> 0 | AE198: =TRANSPOSE(MMULT($O$10:$Q$12,TRANSPOSE(AB198:AD198))) -> 3.064177772 | AF198: -1.285575219 | AG198: 2.226681597 | AH198: 3.064177772 | AI198: -1.285575219
A199: 199 | L199: =IF($AK$38=0,TRANSPOSE(MMULT($O$10:$Q$12,TRANSPOSE(C199:E199))),TRANSPOSE(MMULT($O$10:$Q$12,TRANSPOSE(Y199:AA199)))) ->  | Q199: =TRANSPOSE(MMULT($AE$10:$AG$12,TRANSPOSE(F199:H199))) ->  | V199: =TRANSPOSE(MMULT($AO$40:$AQ$42,TRANSPOSE(C199:E199))) -> 
A200: 200 | L200: =IF($AK$38=0,TRANSPOSE(MMULT($O$10:$Q$12,TRANSPOSE(C200:E200))),TRANSPOSE(MMULT($O$10:$Q$12,TRANSPOSE(Y200:AA200)))) ->  | Q200: =TRANSPOSE(MMULT($AE$10:$AG$12,TRANSPOSE(F200:H200))) ->  | V200: =TRANSPOSE(MMULT($AO$40:$AQ$42,TRANSPOSE(C200:E200))) -> 
... 816 more rows

Sheet Munka3
